{"text_format":"1","workbook":"xlsx","n_sheets":12,"sheets":["リスト","1経歴書","1a写真張り付け","2技術分野(別紙1)","2a活動実績(別紙2)","3口座振込","4委嘱承諾書","5所属長承諾書","入力後のチェック","6確約書家族同意書(70歳以上)","【記入例】添付資料","集計用"],"not_rendered":{"charts":0,"images":0,"macros":1,"external_links":1,"defined_names":23,"comments":0,"pivot_tables":0},"unopened":[],"bounds":{"document_bytes":16777216,"sheet_cells":100000,"rows_first":2000,"rows_last":500,"rows_between":2000,"halvings":0,"cell_chars":16384,"cell_head_chars":4096},"cells_cut":0,"cells_raw":0,"read":"whole","date_system":"1900"}

{"sheet":"リスト","index":0,"n_rows":38,"n_cols":8,"rows_kept":38,"cut":false,"hidden":true,"merged":[]}
["選択リスト"]
[]
["和暦","距離単位","業種","チェック","ボタン","専門分野","旅費等級","本支部"]
[null,null,null,"□","○"]
["明治","km","01- 農業","ゝ","●","◎","特級","北海道"]
["大正","m","05- 鉱業，採石業，砂利採取業",null,null,"○","１級","東北"]
["昭和",null,"09- 食料品製造業",null,null,null,"２級ａ","本部"]
["平成",null,"10- 飲料・たばこ・飼料製造業",null,null,null,"２級ｂ","東海"]
["令和",null,"11- 繊維工業",null,null,null,null,"北陸"]
[null,null,"12- 木材・木製品製造業",null,null,null,null,"近畿"]
[null,null,"13- 家具・装備品製造業",null,null,null,null,"中国"]
[null,null,"14- パルプ・紙・紙加工品製造業",null,null,null,null,"四国"]
[null,null,"15- 印刷・同関連業",null,null,null,null,"九州"]
[null,null,"16- 化学工業"]
[null,null,"17- 石油製品・石炭製品製造業"]
[null,null,"18- プラスチック製品製造業"]
[null,null,"19- ゴム製品製造業"]
[null,null,"20- なめし革・同製品・毛皮製造業"]
[null,null,"21- 窯業・土石製品製造業"]
[null,null,"22- 鉄鋼業"]
[null,null,"23- 非鉄金属製造業"]
[null,null,"24- 金属製品製造業"]
[null,null,"25- はん用機械器具製造業"]
[null,null,"26- 生産用機械器具製造業"]
[null,null,"27- 業務用機械器具製造業"]
[null,null,"28- 電子部品・デバイス・電子回路製造業"]
[null,null,"29- 電気機械器具製造業"]
[null,null,"30- 情報通信機械器具製造業"]
[null,null,"31- 輸送用機械器具製造業"]
[null,null,"32- その他製造業"]
[null,null,"33- 電気業"]
[null,null,"34- ガス業"]
[null,null,"35- 熱供給業"]
[null,null,"36- 水道業"]
[null,null,"78- 洗濯・理容･美容･浴場業"]
[null,null,"88- 廃棄物処理業"]
[null,null,"89- 自動車整備業"]
[null,null,"99- その他"]

{"sheet":"1経歴書","index":1,"n_rows":85,"n_cols":32,"rows_kept":85,"cut":false,"hidden":false,"merged":[[15,3,15,5],[18,3,18,5],[30,6,30,10],[30,11,30,29],[3,31,4,31],[12,19,12,21],[18,13,18,18],[18,20,18,26],[19,13,19,18],[19,20,19,26],[15,6,15,12],[14,20,14,26],[15,20,15,26],[14,13,14,18],[2,23,8,29],[16,13,16,18],[7,18,7,21],[15,13,15,18],[14,6,14,12],[15,31,17,31],[28,31,30,31],[49,16,49,18],[52,2,52,29],[64,4,64,5],[65,4,65,5],[66,4,66,5],[63,10,63,11],[64,10,64,11],[61,9,61,29],[62,9,62,29],[63,15,63,29],[64,15,64,29],[50,14,50,21],[50,6,50,13],[60,9,60,29],[65,10,65,11],[66,10,66,11],[65,15,65,29],[76,4,76,5],[74,15,74,29],[79,10,79,11],[75,1,77,1],[67,1,70,1],[67,15,67,29],[67,4,67,5],[67,10,67,11],[77,15,77,29],[74,4,74,5],[74,10,74,11],[76,10,76,11],[75,4,75,5],[75,10,75,11],[76,15,76,29],[79,15,79,29],[78,4,78,5],[77,10,77,11],[63,1,66,1],[66,15,66,29],[73,15,73,29],[72,4,72,5],[72,10,72,11],[70,15,70,29],[73,10,73,11],[80,4,80,5],[82,2,82,29],[68,4,68,5],[68,10,68,11],[69,4,69,5],[69,10,69,11],[70,4,70,5],[68,15,68,29],[69,15,69,29],[80,15,80,29],[81,6,81,7],[81,12,81,13],[70,10,70,11],[71,4,71,5],[71,10,71,11],[78,15,78,29],[75,15,75,29],[81,18,81,29],[78,1,80,1],[71,1,74,1],[63,4,63,5],[53,1,56,1],[56,7,56,28],[58,2,58,29],[50,1,51,1],[57,2,57,29],[60,1,62,1],[60,4,60,5],[61,4,61,5],[62,4,62,5],[59,2,59,29],[51,9,51,29],[53,16,53,28],[50,22,50,29],[78,10,78,11],[79,4,79,5],[80,10,80,11],[77,4,77,5],[71,15,71,29],[72,15,72,29],[73,4,73,5],[14,1,19,1],[1,26,1,27],[8,2,8,3],[35,1,46,1],[46,6,46,29],[47,20,47,21],[47,25,47,26],[35,11,35,13],[36,7,36,10],[35,14,35,16],[35,17,35,19],[35,20,35,29],[47,6,47,7],[47,11,47,12],[14,2,16,2],[17,2,19,2],[17,6,17,12],[17,13,17,18],[17,20,17,26],[18,6,18,12],[16,20,16,26],[29,2,29,5],[28,6,28,29],[29,6,29,17],[31,1,33,1],[20,1,27,1],[28,1,30,1],[25,22,25,29],[25,10,25,17],[26,22,26,29],[27,22,27,29],[26,10,26,17],[27,10,27,17],[29,22,29,29],[20,18,21,19],[20,6,20,17],[22,7,22,12],[22,13,22,29],[23,6,23,29],[24,6,24,29],[20,20,21,29],[21,6,21,17],[47,31,48,31],[0,1,0,29],[10,1,13,1],[7,1,8,1],[7,2,7,3],[7,7,7,8],[7,4,7,5],[7,10,7,11],[8,11,8,12],[6,2,6,17],[5,2,5,17],[10,3,10,8],[11,2,11,29],[12,6,12,10],[12,14,12,18],[12,22,12,29],[13,6,13,29],[1,8,1,16],[7,15,7,16],[1,28,1,29],[1,20,1,21],[1,18,1,19],[1,23,1,24],[8,4,8,5]]}
[null,"エネルギー使用合理化専門員　経歴書",null,null,null,null,null,null,null,null,null,null,null,null,null,null,null,null,null,null,null,null,null,null,null,null,null,null,null,null,null,"＜＜操作等の説明（印刷範囲外）＞＞"]
[null,"　一般財団法人　省エネルギーセンター　　　　　",null,null,null,null,null,null,null,null,null,null,null,null,null,null,null,null,"令和",null,null,null,"年",null,null,"月",null,null,"日作成",null,null,"・背景色が白の部分・・・専門員（応募者）の記入欄"]
[null,"新規・更新の選択","●","新規登録",null,null,null,null,null,null,"○","更新登録",null,null,null,null,null,null,null,null,null,null,null,"印刷して提出する\n場合に、写真貼付"]
[null,null,"　　↑１つ選択"]
[]
[null,"ふりがな"]
[null,"氏名"]
[null,"生年月日","昭和",null,null,null,"年",null,null,"月",null,null,"日","年齢 満",null,{"$f":"IF(AND($E$9<>\"\",$L$9<>0),IF(DATE($E$9,$H$8,$K$8)<=DATE($L$9,4,1),DATEDIF(DATE($E$9,$H$8,$K$8),DATE($L$9,4,1),\"Y\"),\"－\"),\"\")","v":""},null,"歳","←例：昭和30年",null,null,null,null,null,null,null,null,null,null,null,null,"←和暦の元号はリストボックスから選択（昭和～令和）"]
[null,null,"（西暦",null,{"$f":"IF($E$8<>\"\",IF($C$8=\"昭和\",1925,IF($C$8=\"平成\",1988,IF($C$8=\"令和\",2018,0)))+$E$8,\"\")","v":""},null,"年）",null,null,"（西暦",null,2023,null,"年 4 月 1 日現在）",null,null,null,null,null,null,null,null,null,null,null,null,null,null,null,null,null,"←西暦・年齢は自動計算されます。"]
[null,null,null,null,null,null,null,null,null,null,null,null,null,null,null,null,null,null,null,null,null,null,null,null,null,null,null,null,null,null,null,"　※年齢：年度初め（ 4月 1日）と生年月日から計算。"]
[null,"現 住 所\n（ 自  宅 ）\n(注)住所は都道府県も入力。郵便番号・電話番号・E-mailは半角文字","〒"]
[null,null,null,null,null,null,null,null,null,null,null,null,null,null,null,null,null,null,null,null,null,null,null,null,null,null,null,null,null,null,null,"←①自宅、および勤務先がある場合は必ず住所の記載"]
[null,null,null,null,null,"TEL：",null,null,null,null,null,null,null,"FAX：",null,null,null,null,null,"個人携帯："]
[null,null,null,null,null,"E-mail："]
[null,"公共交通機関、最寄駅\n(注)\n・診断先により異なる最寄駅を使用する場合、②も記入\n・バス：使用する場合は必ず記入","最寄駅①",null,null,"鉄道会社名：",null,null,null,null,null,null,null,null,null,null,null,null,null,"線",null,null,null,null,null,null,null,"駅"]
[null,null,null,"バス会社名名：",null,null,null,null,null,null,null,null,null,null,null,null,null,null,null,"線",null,null,null,null,null,null,null,"バス停",null,null,null,"←②最寄駅までバスを利用（1km以上の場合のみ）する場合に記入\n　　距離：バスに乗ってから降りるまでの距離\n　　料金：消費税込、ICカードで支払いが可能な場合はIC料金を記入"]
[null,null,null,null,null,null,null,null,null,null,null,null,"バスの乗車距離、IC料金：",null,null,null,null,null,null,"km",null,null,null,null,null,null,null,"円"]
[null,null,"最寄駅② or 高速バス",null,null,"鉄道会社名：",null,null,null,null,null,null,null,null,null,null,null,null,null,"線",null,null,null,null,null,null,null,"駅"]
[null,null,null,"バス会社名名：",null,null,null,null,null,null,null,null,null,null,null,null,null,null,null,"線",null,null,null,null,null,null,null,"バス停",null,null,null,"←高速バスの記入可（路線のセルに降車停留所も記入）"]
[null,null,null,null,null,null,null,null,null,null,null,null,"バスの乗車距離、IC料金：",null,null,null,null,null,null,"km",null,null,null,null,null,null,null,"円",null,null,null," 　例：高速バス（鹿島神宮-東京線、東京駅まで）"]
[null,"勤 務 先\n\n(注)住所は都道府県も入力。郵便番号・電話番号・E-mailは半角文字で入力","ふりがな",null,null,null,null,null,null,null,null,null,null,null,null,null,null,null,"業種",null,null,null,null,null,null,null,null,null,null,null,null,"　"]
[null,null,"名称",null,null,null,null,null,null,null,null,null,null,null,null,null,null,null,null,null,null,null,null,null,null,null,null,null,null,null,null,"←業種はリストボックスから選択"]
[null,null,null,null,null,null,"〒　"]
[]
[null,null,"所在地"]
[null,null,null,null,null,null,null,null,null,"TEL：",null,null,null,null,null,null,null,null,null,null,null,"FAX："]
[null,null,null,null,null,null,null,null,null,"E-mail：",null,null,null,null,null,null,null,null,null,null,null,"会社携帯："]
[null,null,"所属部課",null,null,null,null,null,null,"部署：",null,null,null,null,null,null,null,null,null,null,null,"役職："]
[null,"所属長",null,null,null,"所属長の部署：",null,null,null,null,null,null,null,null,null,null,null,null,null,null,null,null,null,null,null,null,null,null,null,null,null,"←所属長\n　・記入不要な場合：　個人事業主、勤務先が無い、ご自分が所属長（社長、部門長など）"]
[null,null,"役職：",null,null,null,null,null,null,null,null,null,null,null,null,null,null,null,null,null,null,"氏名："]
[null,null,null,null,null,"TEL："]
[null,"連絡先","電話（１つ選択）",null,null,null,null,null,null,null,null,null,null,null,null,null,"メール（２つ選択可）",null,null,null,null,null,null,"資料送付先（１つ選択）",null,null,null,null,null,null,null,"←③連絡先（電話、メール、資料送付先）について、"]
[null,null,"○","自宅",null,null,null,null,null,"○","個人携帯",null,null,null,null,null,"□","自宅",null,null,null,null,null,"○","自宅",null,null,null,null,null,null,"　自宅と勤務先が同じ場合、自宅を選択してください。"]
[null,null,"○","勤務先",null,null,null,null,null,"○","会社携帯",null,null,null,null,null,"□","勤務先",null,null,null,null,null,"○","勤務先",null,null,null,null,null,null,"　□：リストボックスで　ゝ　を選択"]
[null," 業務依頼書・引受書に勤務先併記",null,null,null,null,null,null,null,"●","不要",null,null,"○","要",null,null,null,null,null,null,null,null,null,null,null,null,null,null,null,null,"　○：リストボックスで　●　を選択"]
[null,"資  格　等\n\n（全ての該当箇所を\n選択又は記載）\n","□","エネルギー管理士",null,null,null,null,null,null,"取得年度：",null,null,null,null,null,null,null,null,null,null,null,null,null,null,null,null,null,null,null,null,"←④取得年度：免状の種類の上の枠に記入"]
[null,null,null,null,null,null,null,"免状の種類：",null,null,null,"○","熱",null,"○","電気",null,"○","区別なし"]
[null,null,"□","エネルギー診断プロフェッショナル認定"]
[null,null,"□","技術士（機械）",null,null,null,null,null,null,null,null,null,null,null,null,"□","技術士（電気電子）"]
[null,null,"□","技術士（化学）",null,null,null,null,null,null,null,null,null,null,null,null,"□","技術士（衛生工学）"]
[null,null,"□","技術士（環境）",null,null,null,null,null,null,null,null,null,null,null,null,"□","一級建築士"]
[null,null,"□","電気主任技術者（１種）",null,null,null,null,null,null,null,null,null,null,null,null,"□","電気主任技術者（２種）"]
[null,null,"□","建築設備士"]
[null,null,"□","ボイラータービン主任技術者（１種）",null,null,null,null,null,null,null,null,null,null,null,null,"□","ボイラータービン主任技術者（２種）"]
[null,null,"□","ボイラー技士（特級）",null,null,null,null,null,null,null,null,null,null,null,null,"□","高圧ガス製造保安責任者（甲種機械）"]
[null,null,"□","高圧ガス製造保安責任者（甲種化学）"]
[null,null,"その他の資格\n（入力）"]
[null,"専門分野",null,null,null,"熱／電気：",null,null,"熱",null,null,null,null,"電気",null,null,null,null,null,"工場／ビル：",null,null,"工場",null,null,null,null,"ビル　",null,null,null,"←⑤専門分野：空欄のリストボックスで選択\n　　◎：得意、　○：できる、　未記入：不得意"]
[]
[null,null,null,null,null,null,null,null,null,null,null,null,null,null,null,null,"氏　名",null,null,{"$f":"IF($C$7<>\"\",$C$7,\"\")","v":""}]
[null,"得意とする業種","工場（選択）：",null,null,null,null,null,null,null,null,null,null,null,null,null,null,null,null,null,null,null,null,null,null,null,null,null,null,null,null,"←⑦工場：空欄のリストボックスから選択　例：11- 繊維工業"]
[null,null,"ビル（得意な施設を入力）：",null,null,null,null,null,null,null,null,null,null,null,null,null,null,null,null,null,null,null,null,null,null,null,null,null,null,null,null,"←⑧ビル：直接、記入　　例：一般事務所，商業施設，病院，ホテル"]
[null,"業務経験による省エネ\n診断への取組姿勢",null,null,null,null,null,null,null,null,null,null,null,null,null,null,null,null,null,null,null,null,null,null,null,null,null,null,null,null,null,"例：・工場設備管理部15年勤務の経験があるので、各種生産機械設備を\n　　　製造する中小製造業のボイラや圧縮機の省エネ対策を行いたい。\n　　・事務所ビルの設備管理部門5年勤務の経験があるので、ビル空調設備\n　　　の省エネチューニング、BEMS設置等の省エネ対策を行いたい。"]
[null,"専門員制度を何で知りましたか\n（１つ選択）","○","1.当センターの職員や専門員の紹介",null,null,null,null,null,null,null,null,null,null,null,"（紹介者：",null,null,null,null,null,null,null,null,null,null,null,null,null,"） "]
[null,null,"○","2.省エネ診断を受診した際に知った　"]
[null,null,"○","3.セミナー等"]
[null,null,"○","4.その他",null,null,"（",null,null,null,null,null,null,null,null,null,null,null,null,null,null,null,null,null,null,null,null,null,null,"） "]
[null,"応募の動機"]
[null,"診断の応諾頻度",null,null,null,null,null,null,null,null,null,null,null,null,null,null,null,null,null,null,null,null,null,null,null,null,null,null,null,null,null,"←　例：２ヶ月に１回程度"]
[null,"上記に関連する\n事情",null,null,null,null,null,null,null,null,null,null,null,null,null,null,null,null,null,null,null,null,null,null,null,null,null,null,null,null,null,"←　例：常勤で勤務している為、2か月に１回程度対応可能。毎週月曜日\n　　　　は定例会議の為従事不可。"]
[null,"学歴・博士取得など","西暦",null,null,null,"年",null,"月",null,null,null,null,null,null,null,null,null,null,null,null,null,null,null,null,null,null,null,null,null,null,"例：1990年3月　滋賀県立工業高等専門学校　機械科　卒業"]
[null,null,"西暦",null,null,null,"年",null,"月"]
[null,null,"西暦",null,null,null,"年",null,"月"]
[null,"主な職歴","西暦",null,null,null,"年",null,"月～",null,null,null,"年",null,"月",null,null,null,null,null,null,null,null,null,null,null,null,null,null,null,null,"例：1971/4～1981/3　東南鋼管製鋼(株)入社　製鉄課　勤務"]
[null,null,"西暦",null,null,null,"年",null,"月～",null,null,null,"年",null,"月",null,null,null,null,null,null,null,null,null,null,null,null,null,null,null,null,"　　1981/4～1984/3　東南(株)ＡＢＣ製鉄所出向"]
[null,null,"西暦",null,null,null,"年",null,"月～",null,null,null,"年",null,"月",null,null,null,null,null,null,null,null,null,null,null,null,null,null,null,null,"　　1984/4～　道南製鋼ｴﾝｼﾞﾆｱﾘﾝｸﾞ(株)入社　ｴﾝｼﾞﾆｱﾘﾝｸﾞ部"]
[null,null,"西暦",null,null,null,"年",null,"月～",null,null,null,"年",null,"月"]
[null,"ECCJ勤務や委員、講師、専門員等の登録及び表彰経験","西暦",null,null,null,"年",null,"月～",null,null,null,"年",null,"月",null,null,null,null,null,null,null,null,null,null,null,null,null,null,null,null,"例：1990/2～2010/3　エネルギー使用合理化専門員"]
[null,null,"西暦",null,null,null,"年",null,"月～",null,null,null,"年",null,"月",null,null,null,null,null,null,null,null,null,null,null,null,null,null,null,null,"　　2006/6～2007/1　製鉄合理化委員会委員"]
[null,null,"西暦",null,null,null,"年",null,"月～",null,null,null,"年",null,"月"]
[null,null,"西暦",null,null,null,"年",null,"月～",null,null,null,"年",null,"月"]
[null,"国・独立行政法人・自治体・公益法人の委員や専門技術者登録及び表彰経験","西暦",null,null,null,"年",null,"月～",null,null,null,"年",null,"月",null,null,null,null,null,null,null,null,null,null,null,null,null,null,null,null,"例：2001/1　　　　エネルギー管理功労者"]
[null,null,"西暦",null,null,null,"年",null,"月～",null,null,null,"年",null,"月",null,null,null,null,null,null,null,null,null,null,null,null,null,null,null,null,"　　1995/6～2004/3　中小企業総合事業団　エネルギー使用合理化専門員"]
[null,null,"西暦",null,null,null,"年",null,"月～",null,null,null,"年",null,"月",null,null,null,null,null,null,null,null,null,null,null,null,null,null,null,null,"　　2002/5～2003/3　ＮＥＤＯ省エネルギー専門家"]
[null,null,"西暦",null,null,null,"年",null,"月～",null,null,null,"年",null,"月"]
[null,"省エネ診断経験\n(事業名, 件数等)","西暦",null,null,null,"年",null,"月～",null,null,null,"年",null,"月",null,null,null,null,null,null,null,null,null,null,null,null,null,null,null,null,"例：1995/6～2004/3　中小企業総合事業団　中小企業診断　工場28件"]
[null,null,"西暦",null,null,null,"年",null,"月～",null,null,null,"年",null,"月",null,null,null,null,null,null,null,null,null,null,null,null,null,null,null,null,"　　2002/5～2003/3　NEDO　計測診断　5件"]
[null,null,"西暦",null,null,null,"年",null,"月～",null,null,null,"年",null,"月",null,null,null,null,null,null,null,null,null,null,null,null,null,null,null,null,"　　2000/4～2005/3　自社内の省エネ診断業務に従事　10件"]
[null,"専門誌等の投稿\n(著作, 論文等)","西暦",null,null,null,"年",null,"月～",null,null,null,"年",null,"月",null,null,null,null,null,null,null,null,null,null,null,null,null,null,null,null,"←社内外での省エネ診断のご経験や、省エネ提案の実績、件数等、詳しく記載"]
[null,null,"西暦",null,null,null,"年",null,"月～",null,null,null,"年",null,"月",null,null,null,null,null,null,null,null,null,null,null,null,null,null,null,null,"例：1984/12　熱設備学会誌「ボイラー設備の管理と計測記録」"]
[null,null,"西暦",null,null,null,"年",null,"月～",null,null,null,"年",null,"月"]
[null,"海外勤務・出張","延べ回数：",null,null,null,null,null,"延べ日数：",null,null,null,null,null,"主な国名：",null,null,null,null,null,null,null,null,null,null,null,null,null,null,null,null,"例：3回、30日、　　USA 、中国、韓国"]
[null,"備　考\n要望、連絡事項他"]
[null,"※１ 本経歴書は、省エネルギーセンターが実施する省エネ診断事業等以外の目的では使用いたしません。"]
[null,"※２ 上記内容に変更が生じた場合、特に勤務先や診断の応諾頻度に変更がある場合は速やかにご連絡をお願いいたします。"]

{"sheet":"1a写真張り付け","index":2,"n_rows":9,"n_cols":3,"rows_kept":9,"cut":false,"hidden":false,"merged":[]}
[]
[]
[]
[]
[]
[]
[]
[]
[null,null,"デジカメの写真を張り付けてください"]

{"sheet":"2技術分野(別紙1)","index":3,"n_rows":29,"n_cols":15,"rows_kept":29,"cut":false,"hidden":false,"merged":[[20,14,21,14],[2,7,3,8],[2,9,3,12],[2,14,3,14],[8,14,9,14],[10,14,11,14]]}
[null,"別紙１　　専門員技術分野登録区分"]
[]
[null,"※","該当する技術分野名の左ボックスにチェックを付けて下さい。　",null,null,null,null,"氏　　名",null,{"$f":"IF('1経歴書'!$C$7<>\"\",'1経歴書'!$C$7,\"\")","v":""},null,null,null,null,"←①氏名:『1経歴書』シートから自動コピー"]
[null,"※","（　）には、詳細を記載してください。"]
[null,"※","それ以外の技術分野の場合は「その他」にご自由に記載してください。"]
[]
[null,"空調設備",null,"熱関連設備",null,"燃焼設備等",null,"流体設備",null,"水処理設備",null,"電気設備"]
[null,"□","空調・換気設備","□","蒸気設備","□","ボイラ設備","□","ポンプ","□","給排水設備","□","受変電設備",null,"←②経験のある分野にチェックを付けてください。"]
[null,"□","熱源・熱搬送設備","□","熱交換器","□","工業炉\n（　）","□","ファン・ブロワ","□","給湯設備","□","電動機",null,"←③チェックを付けた項目に（　）が付いている場合は、\n　　内容をなるべく詳細に記載してください。\n　　　　　例：【ゝ】工業炉\n　　　　　　　（金属加工炉）"]
[null,"□",null,"□","廃熱回収設備","□","乾燥装置","□","コンプレッサ","□","廃水処理設備","□","照明設備"]
[null,"□",null,"□","保温設備","□",null,"□",null,"□",null,"□","電気加熱設備\n（　）",null,"←④リストに無い経験をお持ちであれば、該当するカテゴリ\n　　（この例では水処理設備）の列の空欄にチェックと内容\n　　を記載してください。\n　　　　例：【ゝ】水噴霧設備"]
[null,"□",null,"□","冷蔵・冷凍・保冷設備","□",null,"□",null,"□",null,"□","電気化学設備\n（　）"]
[null,"□",null,"□",null,"□",null,"□",null,"□",null,"□","発電・CGS"]
[null,"□",null,"□",null,"□",null,"□",null,"□",null,"□","タービン"]
[null,"□",null,"□",null,"□",null,"□",null,"□",null,"□"]
[]
[null,"要素技術等"]
[null,"□","計測\n（　）","□","昇降機","□","ヒートポンプ","□","EMS\n（　）","□","特高設備","□"]
[null,"□","建築駆体","□","制御システム\n（　）","□","デマコン","□","燃焼設備\n（　）","□","環境\n（　）","□"]
[null,"□","建築設備\n（　）","□","生産設備\n（　）","□","BEMS","□","駐車場等換気","□",null,"□"]
[null,"□","自然エネルギー\n（　）","□","電解設備\n（　）","□","FEMS","□","新技術\n（　）","□",null,"□",null,null,"←⑤技術を要するカテゴリの経験をお持ちであれば、「要素技術等」表\n　　にチェックを付けてください。リストに無ければ空欄にチェックと\n　　内容を記載してください。\n　　　　例：【ゝ】IT技術\n　　　　　　（プログラム設計・開発）"]
[null,"□","クリーンルーム","□","インバータ","□","エネマネ","□","IT技術\n（　）","□",null,"□"]
[]
[null,"その他"]
[null,"□",null,"□",null,"□",null,"　",null,null,null,null,null,null,"⑥どのカテゴリにも当てはまらない経験をお持ちであれば、「その他」表\n　の空欄にチェックと内容を記載してください。\n　　　例：【ゝ】機械製品販売"]
[null,"□",null,"□",null,"□"]
[null,"□",null,"□",null,"□"]
[null,"□",null,"□",null,"□"]
[null,"□",null,"□",null,"□"]

{"sheet":"2a活動実績(別紙2)","index":4,"n_rows":32,"n_cols":16384,"rows_kept":32,"cut":false,"hidden":false,"merged":[[6,2,28,4],[32,2,54,4],[1,3,1,4],[1,16383,2,16383]]}
[null,null,"別紙２　活動実績と抱負"]
[null,null,"氏名",{"$f":"IF('1経歴書'!C7<>\"\",'1経歴書'!C7,\"\")","v":""},null,null,null,null,null,null,null,null,null,null,null,null,null,null,null,null,null,null,null,null,null,null,null,null,null,null,null,null,null,null,null,null,null,null,null,null,null,null,null,null,null,null,null,null,null,null,null,null,null,null,null,null,null,null,null,null,null,null,null,null,null,null,null,null,null,null,null,null,null,null,null,null,null,null,null,null,null,null,null,null,null,null,null,null,null,null,null,null,null,null,null,null,null,null,null,null,null,null,null,null,null,null,null,null,null,null,null,null,null,null,null,null,null,null,null,null,null,null,null,null,null,null,null,null,null,null,null,null,null,null,null,null,null,null,null,null,null,null,null,null,null,null,null,null,null,null,null,null,null,null,null,null,null,null,null,null,null,null,null,null,null,null,null,null,null,null,null,null,null,null,null,null,null,null,null,null,null,null,null,null,null,null,null,null,null,null,null,null,null,null,null,null,null,null,null,null,null,null,null,null,null,null,null,null,null,null,null,null,null,null,null,null,null,null,null,null,null,null,null,null,null,null,null,null,null,null,null,null,null,null,null,null,null,null,null,null,null,null,null,null,null,null,null,null,null,null,null,null,null,null,null,null,null,null,null,null,null,null,null,null,null,null,null,null,null,null,null,null,null,null,null,null,null,null,null,null,null,null,null,null,null,null,null,null,null,null,null,null,null,null,null,null,null,null,null,null,null,null,null,null,null,null,null,null,null,null,null,null,null,null,null,null,null,null,null,null,null,null,null,null,null,null,null,null,null,null,null,null,null,null,null,null,null,null,null,null,null,null,null,null,null,null,null,null,null,null,null,null,null,null,null,null,null,null,null,null,null,null,null,null,null,null,null,null,null,null,null,null,null,null,null,null,null,null,null,null,null,null,null,null,null,null,null,null,null,null,null,null,null,null,null,null,null,null,null,null,null,null,null,null,null,null,null,null,null,null,null,null,null,null,null,null,null,null,null,null,null,null,null,null,null,null,null,null,null,null,null,null,null,null,null,null,null,null,null,null,null,null,null,null,null,null,null,null,null,null,null,null,null,null,null,null,null,null,null,null,null,null,null,null,null,null,null,null,null,null,null,null,null,null,null,null,null,null,null,null,null,null,null,null,null,null,null,null,null,null,null,null,null,null,null,null,null,null,null,null,null,null,null,null,null,null,null,null,null,null,null,null,null,null,null,null,null,null,null,null,null,null,null,null,null,null,null,null,null,null,null,null,null,null,null,null,null,null,null,null,null,null,null,null,null,null,null,null,null,null,null,null,null,null,null,null,null,null,null,null,null,null,null,null,null,null,null,null,null,null,null,null,null,null,null,null,null,null,null,null,null,null,null,null,null,null,null,null,null,null,null,null,null,null,null,null,null,null,null,null,null,null,null,null,null,null,null,null,null,null,null,null,null,null,null,null,null,null,null,null,null,null,null,null,null,null,null,null,null,null,null,null,null,null,null,null,null,null,null,null,null,null,null,null,null,null,null,null,null,null,null,null,null,null,null,null,null,null,null,null,null,null,null,null,null,null,null,null,null,null,null,null,null,null,null,null,null,null,null,null,null,null,null,null,null,null,null,null,null,null,null,null,null,null,null,null,null,null,null,null,null,null,null,null,null,null,null,null,null,null,null,null,null,null,null,null,null,null,null,null,null,null,null,null,null,null,null,null,null,null,null,null,null,null,null,null,null,null,null,null,null,null,null,null,null,null,null,null,null,null,null,null,null,null,null,null,null,null,null,null,null,null,null,null,null,null,null,null,null,null,null,null,null,null,null,null,null,null,null,null,null,null,null,null,null,null,null,null,null,null,null,null,null,null,null,null,null,null,null,null,null,null,null,null,null,null,null,null,null,null,null,null,null,null,null,null,null,null,null,null,null,null,null,null,null,null,null,null,null,null,null,null,null,null,null,null,null,null,null,null,null,null,null,null,null,null,null,null,null,null,null,null,null,null,null,null,null,null,null,null,null,null,null,null,null,null,null,null,null,null,null,null,null,null,null,null,null,null,null,null,null,null,null,null,null,null,null,null,null,null,null,null,null,null,null,null,null,null,null,null,null,null,null,null,null,null,null,null,null,null,null,null,null,null,null,null,null,null,null,null,null,null,null,null,null,null,null,null,null,null,null,null,null,null,null,null,null,null,null,null,null,null,null,null,null,null,null,null,null,null,null,null,null,null,null,null,null,null,null,null,null,null,null,null,null,null,null,null,null,null,null,null,null,null,null,null,null,null,null,null,null,null,null,null,null,null,null,null,null,null,null,null,null,null,null,null,null,null,null,null,null,null,null,null,null,null,null,null,null,null,null,null,null,null,null,null,null,null,null,null,null,null,null,null,null,null,null,null,null,null,null,null,null,null,null,null,null,null,null,null,null,null,null,null,null,null,null,null,null,null,null,null,null,null,null,null,null,null,null,null,null,null,null,null,null,null,null,null,null,null,null,null,null,null,null,null,null,null,null,null,null,null,null,null,null,null,null,null,null,null,null,null,null,null,null,null,null,null,null,null,null,null,null,null,null,null,null,null,null,null,null,null,null,null,null,null,null,null,null,null,null,null,null,null,null,null,null,null,null,null,null,null,null,null,null,null,null,null,null,null,null,null,null,null,null,null,null,null,null,null,null,null,null,null,null,null,null,null,null,null,null,null,null,null,null,null,null,null,null,null,null,null,null,null,null,null,null,null,null,null,null,null,null,null,null,null,null,null,null,null,null,null,null,null,null,null,null,null,null,null,null,null,null,null,null,null,null,null,null,null,null,null,null,null,null,null,null,null,null,null,null,null,null,null,null,null,null,null,null,null,null,null,null,null,null,null,null,null,null,null,null,null,null,null,null,null,null,null,null,null,null,null,null,null,null,null,null,null,null,null,null,null,null,null,null,null,null,null,null,null,null,null,null,null,null,null,null,null,null,null,null,null,null,null,null,null,null,null,null,null,null,null,null,null,null,null,null,null,null,null,null,null,null,null,null,null,null,null,null,null,null,null,null,null,null,null,null,null,null,null,null,null,null,null,null,null,null,null,null,null,null,null,null,null,null,null,null,null,null,null,null,null,null,null,null,null,null,null,null,null,null,null,null,null,null,null,null,null,null,null,null,null,null,null,null,null,null,null,null,null,null,null,null,null,null,null,null,null,null,null,null,null,null,null,null,null,null,null,null,null,null,null,null,null,null,null,null,null,null,null,null,null,null,null,null,null,null,null,null,null,null,null,null,null,null,null,null,null,null,null,null,null,null,null,null,null,null,null,null,null,null,null,null,null,null,null,null,null,null,null,null,null,null,null,null,null,null,null,null,null,null,null,null,null,null,null,null,null,null,null,null,null,null,null,null,null,null,null,null,null,null,null,null,null,null,null,null,null,null,null,null,null,null,null,null,null,null,null,null,null,null,null,null,null,null,null,null,null,null,null,null,null,null,null,null,null,null,null,null,null,null,null,null,null,null,null,null,null,null,null,null,null,null,null,null,null,null,null,null,null,null,null,null,null,null,null,null,null,null,null,null,null,null,null,null,null,null,null,null,null,null,null,null,null,null,null,null,null,null,null,null,null,null,null,null,null,null,null,null,null,null,null,null,null,null,null,null,null,null,null,null,null,null,null,null,null,null,null,null,null,null,null,null,null,null,null,null,null,null,null,null,null,null,null,null,null,null,null,null,null,null,null,null,null,null,null,null,null,null,null,null,null,null,null,null,null,null,null,null,null,null,null,null,null,null,null,null,null,null,null,null,null,null,null,null,null,null,null,null,null,null,null,null,null,null,null,null,null,null,null,null,null,null,null,null,null,null,null,null,null,null,null,null,null,null,null,null,null,null,null,null,null,null,null,null,null,null,null,null,null,null,null,null,null,null,null,null,null,null,null,null,null,null,null,null,null,null,null,null,null,null,null,null,null,null,null,null,null,null,null,null,null,null,null,null,null,null,null,null,null,null,null,null,null,null,null,null,null,null,null,null,null,null,null,null,null,null,null,null,null,null,null,null,null,null,null,null,null,null,null,null,null,null,null,null,null,null,null,null,null,null,null,null,null,null,null,null,null,null,null,null,null,null,null,null,null,null,null,null,null,null,null,null,null,null,null,null,null,null,null,null,null,null,null,null,null,null,null,null,null,null,null,null,null,null,null,null,null,null,null,null,null,null,null,null,null,null,null,null,null,null,null,null,null,null,null,null,null,null,null,null,null,null,null,null,null,null,null,null,null,null,null,null,null,null,null,null,null,null,null,null,null,null,null,null,null,null,null,null,null,null,null,null,null,null,null,null,null,null,null,null,null,null,null,null,null,null,null,null,null,null,null,null,null,null,null,null,null,null,null,null,null,null,null,null,null,null,null,null,null,null,null,null,null,null,null,null,null,null,null,null,null,null,null,null,null,null,null,null,null,null,null,null,null,null,null,null,null,null,null,null,null,null,null,null,null,null,null,null,null,null,null,null,null,null,null,null,null,null,null,null,null,null,null,null,null,null,null,null,null,null,null,null,null,null,null,null,null,null,null,null,null,null,null,null,null,null,null,null,null,null,null,null,null,null,null,null,null,null,null,null,null,null,null,null,null,null,null,null,null,null,null,null,null,null,null,null,null,null,null,null,null,null,null,null,null,null,null,null,null,null,null,null,null,null,null,null,null,null,null,null,null,null,null,null,null,null,null,null,null,null,null,null,null,null,null,null,null,null,null,null,null,null,null,null,null,null,null,null,null,null,null,null,null,null,null,null,null,null,null,null,null,null,null,null,null,null,null,null,null,null,null,null,null,null,null,null,null,null,null,null,null,null,null,null,null,null,null,null,null,null,null,null,null,null,null,null,null,null,null,null,null,null,null,null,null,null,null,null,null,null,null,null,null,null,null,null,null,null,null,null,null,null,null,null,null,null,null,null,null,null,null,null,null,null,null,null,null,null,null,null,null,null,null,null,null,null,null,null,null,null,null,null,null,null,null,null,null,null,null,null,null,null,null,null,null,null,null,null,null,null,null,null,null,null,null,null,null,null,null,null,null,null,null,null,null,null,null,null,null,null,null,null,null,null,null,null,null,null,null,null,null,null,null,null,null,null,null,null,null,null,null,null,null,null,null,null,null,null,null,null,null,null,null,null,null,null,null,null,null,null,null,null,null,null,null,null,null,null,null,null,null,null,null,null,null,null,null,null,null,null,null,null,null,null,null,null,null,null,null,null,null,null,null,null,null,null,null,null,null,null,null,null,null,null,null,null,null,null,null,null,null,null,null,null,null,null,null,null,null,null,null,null,null,null,null,null,null,null,null,null,null,null,null,null,null,null,null,null,null,null,null,null,null,null,null,null,null,null,null,null,null,null,null,null,null,null,null,null,null,null,null,null,null,null,null,null,null,null,null,null,null,null,null,null,null,null,null,null,null,null,null,null,null,null,null,null,null,null,null,null,null,null,null,null,null,null,null,null,null,null,null,null,null,null,null,null,null,null,null,null,null,null,null,null,null,null,null,null,null,null,null,null,null,null,null,null,null,null,null,null,null,null,null,null,null,null,null,null,null,null,null,null,null,null,null,null,null,null,null,null,null,null,null,null,null,null,null,null,null,null,null,null,null,null,null,null,null,null,null,null,null,null,null,null,null,null,null,null,null,null,null,null,null,null,null,null,null,null,null,null,null,null,null,null,null,null,null,null,null,null,null,null,null,null,null,null,null,null,null,null,null,null,null,null,null,null,null,null,null,null,null,null,null,null,null,null,null,null,null,null,null,null,null,null,null,null,null,null,null,null,null,null,null,null,null,null,null,null,null,null,null,null,null,null,null,null,null,null,null,null,null,null,null,null,null,null,null,null,null,null,null,null,null,null,null,null,null,null,null,null,null,null,null,null,null,null,null,null,null,null,null,null,null,null,null,null,null,null,null,null,null,null,null,null,null,null,null,null,null,null,null,null,null,null,null,null,null,null,null,null,null,null,null,null,null,null,null,null,null,null,null,null,null,null,null,null,null,null,null,null,null,null,null,null,null,null,null,null,null,null,null,null,null,null,null,null,null,null,null,null,null,null,null,null,null,null,null,null,null,null,null,null,null,null,null,null,null,null,null,null,null,null,null,null,null,null,null,null,null,null,null,null,null,null,null,null,null,null,null,null,null,null,null,null,null,null,null,null,null,null,null,null,null,null,null,null,null,null,null,null,null,null,null,null,null,null,null,null,null,null,null,null,null,null,null,null,null,null,null,null,null,null,null,null,null,null,null,null,null,null,null,null,null,null,null,null,null,null,null,null,null,null,null,null,null,null,null,null,null,null,null,null,null,null,null,null,null,null,null,null,null,null,null,null,null,null,null,null,null,null,null,null,null,null,null,null,null,null,null,null,null,null,null,null,null,null,null,null,null,null,null,null,null,null,null,null,null,null,null,null,null,null,null,null,null,null,null,null,null,null,null,null,null,null,null,null,null,null,null,null,null,null,null,null,null,null,null,null,null,null,null,null,null,null,null,null,null,null,null,null,null,null,null,null,null,null,null,null,null,null,null,null,null,null,null,null,null,null,null,null,null,null,null,null,null,null,null,null,null,null,null,null,null,null,null,null,null,null,null,null,null,null,null,null,null,null,null,null,null,null,null,null,null,null,null,null,null,null,null,null,null,null,null,null,null,null,null,null,null,null,null,null,null,null,null,null,null,null,null,null,null,null,null,null,null,null,null,null,null,null,null,null,null,null,null,null,null,null,null,null,null,null,null,null,null,null,null,null,null,null,null,null,null,null,null,null,null,null,null,null,null,null,null,null,null,null,null,null,null,null,null,null,null,null,null,null,null,null,null,null,null,null,null,null,null,null,null,null,null,null,null,null,null,null,null,null,null,null,null,null,null,null,null,null,null,null,null,null,null,null,null,null,null,null,null,null,null,null,null,null,null,null,null,null,null,null,null,null,null,null,null,null,null,null,null,null,null,null,null,null,null,null,null,null,null,null,null,null,null,null,null,null,null,null,null,null,null,null,null,null,null,null,null,null,null,null,null,null,null,null,null,null,null,null,null,null,null,null,null,null,null,null,null,null,null,null,null,null,null,null,null,null,null,null,null,null,null,null,null,null,null,null,null,null,null,null,null,null,null,null,null,null,null,null,null,null,null,null,null,null,null,null,null,null,null,null,null,null,null,null,null,null,null,null,null,null,null,null,null,null,null,null,null,null,null,null,null,null,null,null,null,null,null,null,null,null,null,null,null,null,null,null,null,null,null,null,null,null,null,null,null,null,null,null,null,null,null,null,null,null,null,null,null,null,null,null,null,null,null,null,null,null,null,null,null,null,null,null,null,null,null,null,null,null,null,null,null,null,null,null,null,null,null,null,null,null,null,null,null,null,null,null,null,null,null,null,null,null,null,null,null,null,null,null,null,null,null,null,null,null,null,null,null,null,null,null,null,null,null,null,null,null,null,null,null,null,null,null,null,null,null,null,null,null,null,null,null,null,null,null,null,null,null,null,null,null,null,null,null,null,null,null,null,null,null,null,null,null,null,null,null,null,null,null,null,null,null,null,null,null,null,null,null,null,null,null,null,null,null,null,null,null,null,null,null,null,null,null,null,null,null,null,null,null,null,null,null,null,null,null,null,null,null,null,null,null,null,null,null,null,null,null,null,null,null,null,null,null,null,null,null,null,null,null,null,null,null,null,null,null,null,null,null,null,null,null,null,null,null,null,null,null,null,null,null,null,null,null,null,null,null,null,null,null,null,null,null,null,null,null,null,null,null,null,null,null,null,null,null,null,null,null,null,null,null,null,null,null,null,null,null,null,null,null,null,null,null,null,null,null,null,null,null,null,null,null,null,null,null,null,null,null,null,null,null,null,null,null,null,null,null,null,null,null,null,null,null,null,null,null,null,null,null,null,null,null,null,null,null,null,null,null,null,null,null,null,null,null,null,null,null,null,null,null,null,null,null,null,null,null,null,null,null,null,null,null,null,null,null,null,null,null,null,null,null,null,null,null,null,null,null,null,null,null,null,null,null,null,null,null,null,null,null,null,null,null,null,null,null,null,null,null,null,null,null,null,null,null,null,null,null,null,null,null,null,null,null,null,null,null,null,null,null,null,null,null,null,null,null,null,null,null,null,null,null,null,null,null,null,null,null,null,null,null,null,null,null,null,null,null,null,null,null,null,null,null,null,null,null,null,null,null,null,null,null,null,null,null,null,null,null,null,null,null,null,null,null,null,null,null,null,null,null,null,null,null,null,null,null,null,null,null,null,null,null,null,null,null,null,null,null,null,null,null,null,null,null,null,null,null,null,null,null,null,null,null,null,null,null,null,null,null,null,null,null,null,null,null,null,null,null,null,null,null,null,null,null,null,null,null,null,null,null,null,null,null,null,null,null,null,null,null,null,null,null,null,null,null,null,null,null,null,null,null,null,null,null,null,null,null,null,null,null,null,null,null,null,null,null,null,null,null,null,null,null,null,null,null,null,null,null,null,null,null,null,null,null,null,null,null,null,null,null,null,null,null,null,null,null,null,null,null,null,null,null,null,null,null,null,null,null,null,null,null,null,null,null,null,null,null,null,null,null,null,null,null,null,null,null,null,null,null,null,null,null,null,null,null,null,null,null,null,null,null,null,null,null,null,null,null,null,null,null,null,null,null,null,null,null,null,null,null,null,null,null,null,null,null,null,null,null,null,null,null,null,null,null,null,null,null,null,null,null,null,null,null,null,null,null,null,null,null,null,null,null,null,null,null,null,null,null,null,null,null,null,null,null,null,null,null,null,null,null,null,null,null,null,null,null,null,null,null,null,null,null,null,null,null,null,null,null,null,null,null,null,null,null,null,null,null,null,null,null,null,null,null,null,null,null,null,null,null,null,null,null,null,null,null,null,null,null,null,null,null,null,null,null,null,null,null,null,null,null,null,null,null,null,null,null,null,null,null,null,null,null,null,null,null,null,null,null,null,null,null,null,null,null,null,null,null,null,null,null,null,null,null,null,null,null,null,null,null,null,null,null,null,null,null,null,null,null,null,null,null,null,null,null,null,null,null,null,null,null,null,null,null,null,null,null,null,null,null,null,null,null,null,null,null,null,null,null,null,null,null,null,null,null,null,null,null,null,null,null,null,null,null,null,null,null,null,null,null,null,null,null,null,null,null,null,null,null,null,null,null,null,null,null,null,null,null,null,null,null,null,null,null,null,null,null,null,null,null,null,null,null,null,null,null,null,null,null,null,null,null,null,null,null,null,null,null,null,null,null,null,null,null,null,null,null,null,null,null,null,null,null,null,null,null,null,null,null,null,null,null,null,null,null,null,null,null,null,null,null,null,null,null,null,null,null,null,null,null,null,null,null,null,null,null,null,null,null,null,null,null,null,null,null,null,null,null,null,null,null,null,null,null,null,null,null,null,null,null,null,null,null,null,null,null,null,null,null,null,null,null,null,null,null,null,null,null,null,null,null,null,null,null,null,null,null,null,null,null,null,null,null,null,null,null,null,null,null,null,null,null,null,null,null,null,null,null,null,null,null,null,null,null,null,null,null,null,null,null,null,null,null,null,null,null,null,null,null,null,null,null,null,null,null,null,null,null,null,null,null,null,null,null,null,null,null,null,null,null,null,null,null,null,null,null,null,null,null,null,null,null,null,null,null,null,null,null,null,null,null,null,null,null,null,null,null,null,null,null,null,null,null,null,null,null,null,null,null,null,null,null,null,null,null,null,null,null,null,null,null,null,null,null,null,null,null,null,null,null,null,null,null,null,null,null,null,null,null,null,null,null,null,null,null,null,null,null,null,null,null,null,null,null,null,null,null,null,null,null,null,null,null,null,null,null,null,null,null,null,null,null,null,null,null,null,null,null,null,null,null,null,null,null,null,null,null,null,null,null,null,null,null,null,null,null,null,null,null,null,null,null,null,null,null,null,null,null,null,null,null,null,null,null,null,null,null,null,null,null,null,null,null,null,null,null,null,null,null,null,null,null,null,null,null,null,null,null,null,null,null,null,null,null,null,null,null,null,null,null,null,null,null,null,null,null,null,null,null,null,null,null,null,null,null,null,null,null,null,null,null,null,null,null,null,null,null,null,null,null,null,null,null,null,null,null,null,null,null,null,null,null,null,null,null,null,null,null,null,null,null,null,null,null,null,null,null,null,null,null,null,null,null,null,null,null,null,null,null,null,null,null,null,null,null,null,null,null,null,null,null,null,null,null,null,null,null,null,null,null,null,null,null,null,null,null,null,null,null,null,null,null,null,null,null,null,null,null,null,null,null,null,null,null,null,null,null,null,null,null,null,null,null,null,null,null,null,null,null,null,null,null,null,null,null,null,null,null,null,null,null,null,null,null,null,null,null,null,null,null,null,null,null,null,null,null,null,null,null,null,null,null,null,null,null,null,null,null,null,null,null,null,null,null,null,null,null,null,null,null,null,null,null,null,null,null,null,null,null,null,null,null,null,null,null,null,null,null,null,null,null,null,null,null,null,null,null,null,null,null,null,null,null,null,null,null,null,null,null,null,null,null,null,null,null,null,null,null,null,null,null,null,null,null,null,null,null,null,null,null,null,null,null,null,null,null,null,null,null,null,null,null,null,null,null,null,null,null,null,null,null,null,null,null,null,null,null,null,null,null,null,null,null,null,null,null,null,null,null,null,null,null,null,null,null,null,null,null,null,null,null,null,null,null,null,null,null,null,null,null,null,null,null,null,null,null,null,null,null,null,null,null,null,null,null,null,null,null,null,null,null,null,null,null,null,null,null,null,null,null,null,null,null,null,null,null,null,null,null,null,null,null,null,null,null,null,null,null,null,null,null,null,null,null,null,null,null,null,null,null,null,null,null,null,null,null,null,null,null,null,null,null,null,null,null,null,null,null,null,null,null,null,null,null,null,null,null,null,null,null,null,null,null,null,null,null,null,null,null,null,null,null,null,null,null,null,null,null,null,null,null,null,null,null,null,null,null,null,null,null,null,null,null,null,null,null,null,null,null,null,null,null,null,null,null,null,null,null,null,null,null,null,null,null,null,null,null,null,null,null,null,null,null,null,null,null,null,null,null,null,null,null,null,null,null,null,null,null,null,null,null,null,null,null,null,null,null,null,null,null,null,null,null,null,null,null,null,null,null,null,null,null,null,null,null,null,null,null,null,null,null,null,null,null,null,null,null,null,null,null,null,null,null,null,null,null,null,null,null,null,null,null,null,null,null,null,null,null,null,null,null,null,null,null,null,null,null,null,null,null,null,null,null,null,null,null,null,null,null,null,null,null,null,null,null,null,null,null,null,null,null,null,null,null,null,null,null,null,null,null,null,null,null,null,null,null,null,null,null,null,null,null,null,null,null,null,null,null,null,null,null,null,null,null,null,null,null,null,null,null,null,null,null,null,null,null,null,null,null,null,null,null,null,null,null,null,null,null,null,null,null,null,null,null,null,null,null,null,null,null,null,null,null,null,null,null,null,null,null,null,null,null,null,null,null,null,null,null,null,null,null,null,null,null,null,null,null,null,null,null,null,null,null,null,null,null,null,null,null,null,null,null,null,null,null,null,null,null,null,null,null,null,null,null,null,null,null,null,null,null,null,null,null,null,null,null,null,null,null,null,null,null,null,null,null,null,null,null,null,null,null,null,null,null,null,null,null,null,null,null,null,null,null,null,null,null,null,null,null,null,null,null,null,null,null,null,null,null,null,null,null,null,null,null,null,null,null,null,null,null,null,null,null,null,null,null,null,null,null,null,null,null,null,null,null,null,null,null,null,null,null,null,null,null,null,null,null,null,null,null,null,null,null,null,null,null,null,null,null,null,null,null,null,null,null,null,null,null,null,null,null,null,null,null,null,null,null,null,null,null,null,null,null,null,null,null,null,null,null,null,null,null,null,null,null,null,null,null,null,null,null,null,null,null,null,null,null,null,null,null,null,null,null,null,null,null,null,null,null,null,null,null,null,null,null,null,null,null,null,null,null,null,null,null,null,null,null,null,null,null,null,null,null,null,null,null,null,null,null,null,null,null,null,null,null,null,null,null,null,null,null,null,null,null,null,null,null,null,null,null,null,null,null,null,null,null,null,null,null,null,null,null,null,null,null,null,null,null,null,null,null,null,null,null,null,null,null,null,null,null,null,null,null,null,null,null,null,null,null,null,null,null,null,null,null,null,null,null,null,null,null,null,null,null,null,null,null,null,null,null,null,null,null,null,null,null,null,null,null,null,null,null,null,null,null,null,null,null,null,null,null,null,null,null,null,null,null,null,null,null,null,null,null,null,null,null,null,null,null,null,null,null,null,null,null,null,null,null,null,null,null,null,null,null,null,null,null,null,null,null,null,null,null,null,null,null,null,null,null,null,null,null,null,null,null,null,null,null,null,null,null,null,null,null,null,null,null,null,null,null,null,null,null,null,null,null,null,null,null,null,null,null,null,null,null,null,null,null,null,null,null,null,null,null,null,null,null,null,null,null,null,null,null,null,null,null,null,null,null,null,null,null,null,null,null,null,null,null,null,null,null,null,null,null,null,null,null,null,null,null,null,null,null,null,null,null,null,null,null,null,null,null,null,null,null,null,null,null,null,null,null,null,null,null,null,null,null,null,null,null,null,null,null,null,null,null,null,null,null,null,null,null,null,null,null,null,null,null,null,null,null,null,null,null,null,null,null,null,null,null,null,null,null,null,null,null,null,null,null,null,null,null,null,null,null,null,null,null,null,null,null,null,null,null,null,null,null,null,null,null,null,null,null,null,null,null,null,null,null,null,null,null,null,null,null,null,null,null,null,null,null,null,null,null,null,null,null,null,null,null,null,null,null,null,null,null,null,null,null,null,null,null,null,null,null,null,null,null,null,null,null,null,null,null,null,null,null,null,null,null,null,null,null,null,null,null,null,null,null,null,null,null,null,null,null,null,null,null,null,null,null,null,null,null,null,null,null,null,null,null,null,null,null,null,null,null,null,null,null,null,null,null,null,null,null,null,null,null,null,null,null,null,null,null,null,null,null,null,null,null,null,null,null,null,null,null,null,null,null,null,null,null,null,null,null,null,null,null,null,null,null,null,null,null,null,null,null,null,null,null,null,null,null,null,null,null,null,null,null,null,null,null,null,null,null,null,null,null,null,null,null,null,null,null,null,null,null,null,null,null,null,null,null,null,null,null,null,null,null,null,null,null,null,null,null,null,null,null,null,null,null,null,null,null,null,null,null,null,null,null,null,null,null,null,null,null,null,null,null,null,null,null,null,null,null,null,null,null,null,null,null,null,null,null,null,null,null,null,null,null,null,null,null,null,null,null,null,null,null,null,null,null,null,null,null,null,null,null,null,null,null,null,null,null,null,null,null,null,null,null,null,null,null,null,null,null,null,null,null,null,null,null,null,null,null,null,null,null,null,null,null,null,null,null,null,null,null,null,null,null,null,null,null,null,null,null,null,null,null,null,null,null,null,null,null,null,null,null,null,null,null,null,null,null,null,null,null,null,null,null,null,null,null,null,null,null,null,null,null,null,null,null,null,null,null,null,null,null,null,null,null,null,null,null,null,null,null,null,null,null,null,null,null,null,null,null,null,null,null,null,null,null,null,null,null,null,null,null,null,null,null,null,null,null,null,null,null,null,null,null,null,null,null,null,null,null,null,null,null,null,null,null,null,null,null,null,null,null,null,null,null,null,null,null,null,null,null,null,null,null,null,null,null,null,null,null,null,null,null,null,null,null,null,null,null,null,null,null,null,null,null,null,null,null,null,null,null,null,null,null,null,null,null,null,null,null,null,null,null,null,null,null,null,null,null,null,null,null,null,null,null,null,null,null,null,null,null,null,null,null,null,null,null,null,null,null,null,null,null,null,null,null,null,null,null,null,null,null,null,null,null,null,null,null,null,null,null,null,null,null,null,null,null,null,null,null,null,null,null,null,null,null,null,null,null,null,null,null,null,null,null,null,null,null,null,null,null,null,null,null,null,null,null,null,null,null,null,null,null,null,null,null,null,null,null,null,null,null,null,null,null,null,null,null,null,null,null,null,null,null,null,null,null,null,null,null,null,null,null,null,null,null,null,null,null,null,null,null,null,null,null,null,null,null,null,null,null,null,null,null,null,null,null,null,null,null,null,null,null,null,null,null,null,null,null,null,null,null,null,null,null,null,null,null,null,null,null,null,null,null,null,null,null,null,null,null,null,null,null,null,null,null,null,null,null,null,null,null,null,null,null,null,null,null,null,null,null,null,null,null,null,null,null,null,null,null,null,null,null,null,null,null,null,null,null,null,null,null,null,null,null,null,null,null,null,null,null,null,null,null,null,null,null,null,null,null,null,null,null,null,null,null,null,null,null,null,null,null,null,null,null,null,null,null,null,null,null,null,null,null,null,null,null,null,null,null,null,null,null,null,null,null,null,null,null,null,null,null,null,null,null,null,null,null,null,null,null,null,null,null,null,null,null,null,null,null,null,null,null,null,null,null,null,null,null,null,null,null,null,null,null,null,null,null,null,null,null,null,null,null,null,null,null,null,null,null,null,null,null,null,null,null,null,null,null,null,null,null,null,null,null,null,null,null,null,null,null,null,null,null,null,null,null,null,null,null,null,null,null,null,null,null,null,null,null,null,null,null,null,null,null,null,null,null,null,null,null,null,null,null,null,null,null,null,null,null,null,null,null,null,null,null,null,null,null,null,null,null,null,null,null,null,null,null,null,null,null,null,null,null,null,null,null,null,null,null,null,null,null,null,null,null,null,null,null,null,null,null,null,null,null,null,null,null,null,null,null,null,null,null,null,null,null,null,null,null,null,null,null,null,null,null,null,null,null,null,null,null,null,null,null,null,null,null,null,null,null,null,null,null,null,null,null,null,null,null,null,null,null,null,null,null,null,null,null,null,null,null,null,null,null,null,null,null,null,null,null,null,null,null,null,null,null,null,null,null,null,null,null,null,null,null,null,null,null,null,null,null,null,null,null,null,null,null,null,null,null,null,null,null,null,null,null,null,null,null,null,null,null,null,null,null,null,null,null,null,null,null,null,null,null,null,null,null,null,null,null,null,null,null,null,null,null,null,null,null,null,null,null,null,null,null,null,null,null,null,null,null,null,null,null,null,null,null,null,null,null,null,null,null,null,null,null,null,null,null,null,null,null,null,null,null,null,null,null,null,null,null,null,null,null,null,null,null,null,null,null,null,null,null,null,null,null,null,null,null,null,null,null,null,null,null,null,null,null,null,null,null,null,null,null,null,null,null,null,null,null,null,null,null,null,null,null,null,null,null,null,null,null,null,null,null,null,null,null,null,null,null,null,null,null,null,null,null,null,null,null,null,null,null,null,null,null,null,null,null,null,null,null,null,null,null,null,null,null,null,null,null,null,null,null,null,null,null,null,null,null,null,null,null,null,null,null,null,null,null,null,null,null,null,null,null,null,null,null,null,null,null,null,null,null,null,null,null,null,null,null,null,null,null,null,null,null,null,null,null,null,null,null,null,null,null,null,null,null,null,null,null,null,null,null,null,null,null,null,null,null,null,null,null,null,null,null,null,null,null,null,null,null,null,null,null,null,null,null,null,null,null,null,null,null,null,null,null,null,null,null,null,null,null,null,null,null,null,null,null,null,null,null,null,null,null,null,null,null,null,null,null,null,null,null,null,null,null,null,null,null,null,null,null,null,null,null,null,null,null,null,null,null,null,null,null,null,null,null,null,null,null,null,null,null,null,null,null,null,null,null,null,null,null,null,null,null,null,null,null,null,null,null,null,null,null,null,null,null,null,null,null,null,null,null,null,null,null,null,null,null,null,null,null,null,null,null,null,null,null,null,null,null,null,null,null,null,null,null,null,null,null,null,null,null,null,null,null,null,null,null,null,null,null,null,null,null,null,null,null,null,null,null,null,null,null,null,null,null,null,null,null,null,null,null,null,null,null,null,null,null,null,null,null,null,null,null,null,null,null,null,null,null,null,null,null,null,null,null,null,null,null,null,null,null,null,null,null,null,null,null,null,null,null,null,null,null,null,null,null,null,null,null,null,null,null,null,null,null,null,null,null,null,null,null,null,null,null,null,null,null,null,null,null,null,null,null,null,null,null,null,null,null,null,null,null,null,null,null,null,null,null,null,null,null,null,null,null,null,null,null,null,null,null,null,null,null,null,null,null,null,null,null,null,null,null,null,null,null,null,null,null,null,null,null,null,null,null,null,null,null,null,null,null,null,null,null,null,null,null,null,null,null,null,null,null,null,null,null,null,null,null,null,null,null,null,null,null,null,null,null,null,null,null,null,null,null,null,null,null,null,null,null,null,null,null,null,null,null,null,null,null,null,null,null,null,null,null,null,null,null,null,null,null,null,null,null,null,null,null,null,null,null,null,null,null,null,null,null,null,null,null,null,null,null,null,null,null,null,null,null,null,null,null,null,null,null,null,null,null,null,null,null,null,null,null,null,null,null,null,null,null,null,null,null,null,null,null,null,null,null,null,null,null,null,null,null,null,null,null,null,null,null,null,null,null,null,null,null,null,null,null,null,null,null,null,null,null,null,null,null,null,null,null,null,null,null,null,null,null,null,null,null,null,null,null,null,null,null,null,null,null,null,null,null,null,null,null,null,null,null,null,null,null,null,null,null,null,null,null,null,null,null,null,null,null,null,null,null,null,null,null,null,null,null,null,null,null,null,null,null,null,null,null,null,null,null,null,null,null,null,null,null,null,null,null,null,null,null,null,null,null,null,null,null,null,null,null,null,null,null,null,null,null,null,null,null,null,null,null,null,null,null,null,null,null,null,null,null,null,null,null,null,null,null,null,null,null,null,null,null,null,null,null,null,null,null,null,null,null,null,null,null,null,null,null,null,null,null,null,null,null,null,null,null,null,null,null,null,null,null,null,null,null,null,null,null,null,null,null,null,null,null,null,null,null,null,null,null,null,null,null,null,null,null,null,null,null,null,null,null,null,null,null,null,null,null,null,null,null,null,null,null,null,null,null,null,null,null,null,null,null,null,null,null,null,null,null,null,null,null,null,null,null,null,null,null,null,null,null,null,null,null,null,null,null,null,null,null,null,null,null,null,null,null,null,null,null,null,null,null,null,null,null,null,null,null,null,null,null,null,null,null,null,null,null,null,null,null,null,null,null,null,null,null,null,null,null,null,null,null,null,null,null,null,null,null,null,null,null,null,null,null,null,null,null,null,null,null,null,null,null,null,null,null,null,null,null,null,null,null,null,null,null,null,null,null,null,null,null,null,null,null,null,null,null,null,null,null,null,null,null,null,null,null,null,null,null,null,null,null,null,null,null,null,null,null,null,null,null,null,null,null,null,null,null,null,null,null,null,null,null,null,null,null,null,null,null,null,null,null,null,null,null,null,null,null,null,null,null,null,null,null,null,null,null,null,null,null,null,null,null,null,null,null,null,null,null,null,null,null,null,null,null,null,null,null,null,null,null,null,null,null,null,null,null,null,null,null,null,null,null,null,null,null,null,null,null,null,null,null,null,null,null,null,null,null,null,null,null,null,null,null,null,null,null,null,null,null,null,null,null,null,null,null,null,null,null,null,null,null,null,null,null,null,null,null,null,null,null,null,null,null,null,null,null,null,null,null,null,null,null,null,null,null,null,null,null,null,null,null,null,null,null,null,null,null,null,null,null,null,null,null,null,null,null,null,null,null,null,null,null,null,null,null,null,null,null,null,null,null,null,null,null,null,null,null,null,null,null,null,null,null,null,null,null,null,null,null,null,null,null,null,null,null,null,null,null,null,null,null,null,null,null,null,null,null,null,null,null,null,null,null,null,null,null,null,null,null,null,null,null,null,null,null,null,null,null,null,null,null,null,null,null,null,null,null,null,null,null,null,null,null,null,null,null,null,null,null,null,null,null,null,null,null,null,null,null,null,null,null,null,null,null,null,null,null,null,null,null,null,null,null,null,null,null,null,null,null,null,null,null,null,null,null,null,null,null,null,null,null,null,null,null,null,null,null,null,null,null,null,null,null,null,null,null,null,null,null,null,null,null,null,null,null,null,null,null,null,null,null,null,null,null,null,null,null,null,null,null,null,null,null,null,null,null,null,null,null,null,null,null,null,null,null,null,null,null,null,null,null,null,null,null,null,null,null,null,null,null,null,null,null,null,null,null,null,null,null,null,null,null,null,null,null,null,null,null,null,null,null,null,null,null,null,null,null,null,null,null,null,null,null,null,null,null,null,null,null,null,null,null,null,null,null,null,null,null,null,null,null,null,null,null,null,null,null,null,null,null,null,null,null,null,null,null,null,null,null,null,null,null,null,null,null,null,null,null,null,null,null,null,null,null,null,null,null,null,null,null,null,null,null,null,null,null,null,null,null,null,null,null,null,null,null,null,null,null,null,null,null,null,null,null,null,null,null,null,null,null,null,null,null,null,null,null,null,null,null,null,null,null,null,null,null,null,null,null,null,null,null,null,null,null,null,null,null,null,null,null,null,null,null,null,null,null,null,null,null,null,null,null,null,null,null,null,null,null,null,null,null,null,null,null,null,null,null,null,null,null,null,null,null,null,null,null,null,null,null,null,null,null,null,null,null,null,null,null,null,null,null,null,null,null,null,null,null,null,null,null,null,null,null,null,null,null,null,null,null,null,null,null,null,null,null,null,null,null,null,null,null,null,null,null,null,null,null,null,null,null,null,null,null,null,null,null,null,null,null,null,null,null,null,null,null,null,null,null,null,null,null,null,null,null,null,null,null,null,null,null,null,null,null,null,null,null,null,null,null,null,null,null,null,null,null,null,null,null,null,null,null,null,null,null,null,null,null,null,null,null,null,null,null,null,null,null,null,null,null,null,null,null,null,null,null,null,null,null,null,null,null,null,null,null,null,null,null,null,null,null,null,null,null,null,null,null,null,null,null,null,null,null,null,null,null,null,null,null,null,null,null,null,null,null,null,null,null,null,null,null,null,null,null,null,null,null,null,null,null,null,null,null,null,null,null,null,null,null,null,null,null,null,null,null,null,null,null,null,null,null,null,null,null,null,null,null,null,null,null,null,null,null,null,null,null,null,null,null,null,null,null,null,null,null,null,null,null,null,null,null,null,null,null,null,null,null,null,null,null,null,null,null,null,null,null,null,null,null,null,null,null,null,null,null,null,null,null,null,null,null,null,null,null,null,null,null,null,null,null,null,null,null,null,null,null,null,null,null,null,null,null,null,null,null,null,null,null,null,null,null,null,null,null,null,null,null,null,null,null,null,null,null,null,null,null,null,null,null,null,null,null,null,null,null,null,null,null,null,null,null,null,null,null,null,null,null,null,null,null,null,null,null,null,null,null,null,null,null,null,null,null,null,null,null,null,null,null,null,null,null,null,null,null,null,null,null,null,null,null,null,null,null,null,null,null,null,null,null,null,null,null,null,null,null,null,null,null,null,null,null,null,null,null,null,null,null,null,null,null,null,null,null,null,null,null,null,null,null,null,null,null,null,null,null,null,null,null,null,null,null,null,null,null,null,null,null,null,null,null,null,null,null,null,null,null,null,null,null,null,null,null,null,null,null,null,null,null,null,null,null,null,null,null,null,null,null,null,null,null,null,null,null,null,null,null,null,null,null,null,null,null,null,null,null,null,null,null,null,null,null,null,null,null,null,null,null,null,null,null,null,null,null,null,null,null,null,null,null,null,null,null,null,null,null,null,null,null,null,null,null,null,null,null,null,null,null,null,null,null,null,null,null,null,null,null,null,null,null,null,null,null,null,null,null,null,null,null,null,null,null,null,null,null,null,null,null,null,null,null,null,null,null,null,null,null,null,null,null,null,null,null,null,null,null,null,null,null,null,null,null,null,null,null,null,null,null,null,null,null,null,null,null,null,null,null,null,null,null,null,null,null,null,null,null,null,null,null,null,null,null,null,null,null,null,null,null,null,null,null,null,null,null,null,null,null,null,null,null,null,null,null,null,null,null,null,null,null,null,null,null,null,null,null,null,null,null,null,null,null,null,null,null,null,null,null,null,null,null,null,null,null,null,null,null,null,null,null,null,null,null,null,null,null,null,null,null,null,null,null,null,null,null,null,null,null,null,null,null,null,null,null,null,null,null,null,null,null,null,null,null,null,null,null,null,null,null,null,null,null,null,null,null,null,null,null,null,null,null,null,null,null,null,null,null,null,null,null,null,null,null,null,null,null,null,null,null,null,null,null,null,null,null,null,null,null,null,null,null,null,null,null,null,null,null,null,null,null,null,null,null,null,null,null,null,null,null,null,null,null,null,null,null,null,null,null,null,null,null,null,null,null,null,null,null,null,null,null,null,null,null,null,null,null,null,null,null,null,null,null,null,null,null,null,null,null,null,null,null,null,null,null,null,null,null,null,null,null,null,null,null,null,null,null,null,null,null,null,null,null,null,null,null,null,null,null,null,null,null,null,null,null,null,null,null,null,null,null,null,null,null,null,null,null,null,null,null,null,null,null,null,null,null,null,null,null,null,null,null,null,null,null,null,null,null,null,null,null,null,null,null,null,null,null,null,null,null,null,null,null,null,null,null,null,null,null,null,null,null,null,null,null,null,null,null,null,null,null,null,null,null,null,null,null,null,null,null,null,null,null,null,null,null,null,null,null,null,null,null,null,null,null,null,null,null,null,null,null,null,null,null,null,null,null,null,null,null,null,null,null,null,null,null,null,null,null,null,null,null,null,null,null,null,null,null,null,null,null,null,null,null,null,null,null,null,null,null,null,null,null,null,null,null,null,null,null,null,null,null,null,null,null,null,null,null,null,null,null,null,null,null,null,null,null,null,null,null,null,null,null,null,null,null,null,null,null,null,null,null,null,null,null,null,null,null,null,null,null,null,null,null,null,null,null,null,null,null,null,null,null,null,null,null,null,null,null,null,null,null,null,null,null,null,null,null,null,null,null,null,null,null,null,null,null,null,null,null,null,null,null,null,null,null,null,null,null,null,null,null,null,null,null,null,null,null,null,null,null,null,null,null,null,null,null,null,null,null,null,null,null,null,null,null,null,null,null,null,null,null,null,null,null,null,null,null,null,null,null,null,null,null,null,null,null,null,null,null,null,null,null,null,null,null,null,null,null,null,null,null,null,null,null,null,null,null,null,null,null,null,null,null,null,null,null,null,null,null,null,null,null,null,null,null,null,null,null,null,null,null,null,null,null,null,null,null,null,null,null,null,null,null,null,null,null,null,null,null,null,null,null,null,null,null,null,null,null,null,null,null,null,null,null,null,null,null,null,null,null,null,null,null,null,null,null,null,null,null,null,null,null,null,null,null,null,null,null,null,null,null,null,null,null,null,null,null,null,null,null,null,null,null,null,null,null,null,null,null,null,null,null,null,null,null,null,null,null,null,null,null,null,null,null,null,null,null,null,null,null,null,null,null,null,null,null,null,null,null,null,null,null,null,null,null,null,null,null,null,null,null,null,null,null,null,null,null,null,null,null,null,null,null,null,null,null,null,null,null,null,null,null,null,null,null,null,null,null,null,null,null,null,null,null,null,null,null,null,null,null,null,null,null,null,null,null,null,null,null,null,null,null,null,null,null,null,null,null,null,null,null,null,null,null,null,null,null,null,null,null,null,null,null,null,null,null,null,null,null,null,null,null,null,null,null,null,null,null,null,null,null,null,null,null,null,null,null,null,null,null,null,null,null,null,null,null,null,null,null,null,null,null,null,null,null,null,null,null,null,null,null,null,null,null,null,null,null,null,null,null,null,null,null,null,null,null,null,null,null,null,null,null,null,null,null,null,null,null,null,null,null,null,null,null,null,null,null,null,null,null,null,null,null,null,null,null,null,null,null,null,null,null,null,null,null,null,null,null,null,null,null,null,null,null,null,null,null,null,null,null,null,null,null,null,null,null,null,null,null,null,null,null,null,null,null,null,null,null,null,null,null,null,null,null,null,null,null,null,null,null,null,null,null,null,null,null,null,null,null,null,null,null,null,null,null,null,null,null,null,null,null,null,null,null,null,null,null,null,null,null,null,null,null,null,null,null,null,null,null,null,null,null,null,null,null,null,null,null,null,null,null,null,null,null,null,null,null,null,null,null,null,null,null,null,null,null,null,null,null,null,null,null,null,null,null,null,null,null,null,null,null,null,null,null,null,null,null,null,null,null,null,null,null,null,null,null,null,null,null,null,null,null,null,null,null,null,null,null,null,null,null,null,null,null,null,null,null,null,null,null,null,null,null,null,null,null,null,null,null,null,null,null,null,null,null,null,null,null,null,null,null,null,null,null,null,null,null,null,null,null,null,null,null,null,null,null,null,null,null,null,null,null,null,null,null,null,null,null,null,null,null,null,null,null,null,null,null,null,null,null,null,null,null,null,null,null,null,null,null,null,null,null,null,null,null,null,null,null,null,null,null,null,null,null,null,null,null,null,null,null,null,null,null,null,null,null,null,null,null,null,null,null,null,null,null,null,null,null,null,null,null,null,null,null,null,null,null,null,null,null,null,null,null,null,null,null,null,null,null,null,null,null,null,null,null,null,null,null,null,null,null,null,null,null,null,null,null,null,null,null,null,null,null,null,null,null,null,null,null,null,null,null,null,null,null,null,null,null,null,null,null,null,null,null,null,null,null,null,null,null,null,null,null,null,null,null,null,null,null,null,null,null,null,null,null,null,null,null,null,null,null,null,null,null,null,null,null,null,null,null,null,null,null,null,null,null,null,null,null,null,null,null,null,null,null,null,null,null,null,null,null,null,null,null,null,null,null,null,null,null,null,null,null,null,null,null,null,null,null,null,null,null,null,null,null,null,null,null,null,null,null,null,null,null,null,null,null,null,null,null,null,null,null,null,null,null,null,null,null,null,null,null,null,null,null,null,null,null,null,null,null,null,null,null,null,null,null,null,null,null,null,null,null,null,null,null,null,null,null,null,null,null,null,null,null,null,null,null,null,null,null,null,null,null,null,null,null,null,null,null,null,null,null,null,null,null,null,null,null,null,null,null,null,null,null,null,null,null,null,null,null,null,null,null,null,null,null,null,null,null,null,null,null,null,null,null,null,null,null,null,null,null,null,null,null,null,null,null,null,null,null,null,null,null,null,null,null,null,null,null,null,null,null,null,null,null,null,null,null,null,null,null,null,null,null,null,null,null,null,null,null,null,null,null,null,null,null,null,null,null,null,null,null,null,null,null,null,null,null,null,null,null,null,null,null,null,null,null,null,null,null,null,null,null,null,null,null,null,null,null,null,null,null,null,null,null,null,null,null,null,null,null,null,null,null,null,null,null,null,null,null,null,null,null,null,null,null,null,null,null,null,null,null,null,null,null,null,null,null,null,null,null,null,null,null,null,null,null,null,null,null,null,null,null,null,null,null,null,null,null,null,null,null,null,null,null,null,null,null,null,null,null,null,null,null,null,null,null,null,null,null,null,null,null,null,null,null,null,null,null,null,null,null,null,null,null,null,null,null,null,null,null,null,null,null,null,null,null,null,null,null,null,null,null,null,null,null,null,null,null,null,null,null,null,null,null,null,null,null,null,null,null,null,null,null,null,null,null,null,null,null,null,null,null,null,null,null,null,null,null,null,null,null,null,null,null,null,null,null,null,null,null,null,null,null,null,null,null,null,null,null,null,null,null,null,null,null,null,null,null,null,null,null,null,null,null,null,null,null,null,null,null,null,null,null,null,null,null,null,null,null,null,null,null,null,null,null,null,null,null,null,null,null,null,null,null,null,null,null,null,null,null,null,null,null,null,null,null,null,null,null,null,null,null,null,null,null,null,null,null,null,null,null,null,null,null,null,null,null,null,null,null,null,null,null,null,null,null,null,null,null,null,null,null,null,null,null,null,null,null,null,null,null,null,null,null,null,null,null,null,null,null,null,null,null,null,null,null,null,null,null,null,null,null,null,null,null,null,null,null,null,null,null,null,null,null,null,null,null,null,null,null,null,null,null,null,null,null,null,null,null,null,null,null,null,null,null,null,null,null,null,null,null,null,null,null,null,null,null,null,null,null,null,null,null,null,null,null,null,null,null,null,null,null,null,null,null,null,null,null,null,null,null,null,null,null,null,null,null,null,null,null,null,null,null,null,null,null,null,null,null,null,null,null,null,null,null,null,null,null,null,null,null,null,null,null,null,null,null,null,null,null,null,null,null,null,null,null,null,null,null,null,null,null,null,null,null,null,null,null,null,null,null,null,null,null,null,null,null,null,null,null,null,null,null,null,null,null,null,null,null,null,null,null,null,null,null,null,null,null,null,null,null,null,null,null,null,null,null,null,null,null,null,null,null,null,null,null,null,null,null,null,null,null,null,null,null,null,null,null,null,null,null,null,null,null,null,null,null,null,null,null,null,null,null,null,null,null,null,null,null,null,null,null,null,null,null,null,null,null,null,null,null,null,null,null,null,null,null,null,null,null,null,null,null,null,null,null,null,null,null,null,null,null,null,null,null,null,null,null,null,null,null,null,null,null,null,null,null,null,null,null,null,null,null,null,null,null,null,null,null,null,null,null,null,null,null,null,null,null,null,null,null,null,null,null,null,null,null,null,null,null,null,null,null,null,null,null,null,null,null,null,null,null,null,null,null,null,null,null,null,null,null,null,null,null,null,null,null,null,null,null,null,null,null,null,null,null,null,null,null,null,null,null,null,null,null,null,null,null,null,null,null,null,null,null,null,null,null,null,null,null,null,null,null,null,null,null,null,null,null,null,null,null,null,null,null,null,null,null,null,null,null,null,null,null,null,null,null,null,null,null,null,null,null,null,null,null,null,null,null,null,null,null,null,null,null,null,null,null,null,null,null,null,null,null,null,null,null,null,null,null,null,null,null,null,null,null,null,null,null,null,null,null,null,null,null,null,null,null,null,null,null,null,null,null,null,null,null,null,null,null,null,null,null,null,null,null,null,null,null,null,null,null,null,null,null,null,null,null,null,null,null,null,null,null,null,null,null,null,null,null,null,null,null,null,null,null,null,null,null,null,null,null,null,null,null,null,null,null,null,null,null,null,null,null,null,null,null,null,null,null,null,null,null,null,null,null,null,null,null,null,null,null,null,null,null,null,null,null,null,null,null,null,null,null,null,null,null,null,null,null,null,null,null,null,null,null,null,null,null,null,null,null,null,null,null,null,null,null,null,null,null,null,null,null,null,null,null,null,null,null,null,null,null,null,null,null,null,null,null,null,null,null,null,null,null,null,null,null,null,null,null,null,null,null,null,null,null,null,null,null,null,null,null,null,null,null,null,null,null,null,null,null,null,null,null,null,null,null,null,null,null,null,null,null,null,null,null,null,null,null,null,null,null,null,null,null,null,null,null,null,null,null,null,null,null,null,null,null,null,null,null,null,null,null,null,null,null,null,null,null,null,null,null,null,null,null,null,null,null,null,null,null,null,null,null,null,null,null,null,null,null,null,null,null,null,null,null,null,null,null,null,null,null,null,null,null,null,null,null,null,null,null,null,null,null,null,null,null,null,null,null,null,null,null,null,null,null,null,null,null,null,null,null,null,null,null,null,null,null,null,null,null,null,null,null,null,null,null,null,null,null,null,null,null,null,null,null,null,null,null,null,null,null,null,null,null,null,null,null,null,null,null,null,null,null,null,null,null,null,null,null,null,null,null,null,null,null,null,null,null,null,null,null,null,null,null,null,null,null,null,null,null,null,null,null,null,null,null,null,null,null,null,null,null,null,null,null,null,null,null,null,null,null,null,null,null,null,null,null,null,null,null,null,null,null,null,null,null,null,null,null,null,null,null,null,null,null,null,null,null,null,null,null,null,null,null,null,null,null,null,null,null,null,null,null,null,null,null,null,null,null,null,null,null,null,null,null,null,null,null,null,null,null,null,null,null,null,null,null,null,null,null,null,null,null,null,null,null,null,null,null,null,null,null,null,null,null,null,null,null,null,null,null,null,null,null,null,null,null,null,null,null,null,null,null,null,null,null,null,null,null,null,null,null,null,null,null,null,null,null,null,null,null,null,null,null,null,null,null,null,null,null,null,null,null,null,null,null,null,null,null,null,null,null,null,null,null,null,null,null,null,null,null,null,null,null,null,null,null,null,null,null,null,null,null,null,null,null,null,null,null,null,null,null,null,null,null,null,null,null,null,null,null,null,null,null,null,null,null,null,null,null,null,null,null,null,null,null,null,null,null,null,null,null,null,null,null,null,null,null,null,null,null,null,null,null,null,null,null,null,null,null,null,null,null,null,null,null,null,null,null,null,null,null,null,null,null,null,null,null,null,null,null,null,null,null,null,null,null,null,null,null,null,null,null,null,null,null,null,null,null,null,null,null,null,null,null,null,null,null,null,null,null,null,null,null,null,null,null,null,null,null,null,null,null,null,null,null,null,null,null,null,null,null,null,null,null,null,null,null,null,null,null,null,null,null,null,null,null,null,null,null,null,null,null,null,null,null,null,null,null,null,null,null,null,null,null,null,null,null,null,null,null,null,null,null,null,null,null,null,null,null,null,null,null,null,null,null,null,null,null,null,null,null,null,null,null,null,null,null,null,null,null,null,null,null,null,null,null,null,null,null,null,null,null,null,null,null,null,null,null,null,null,null,null,null,null,null,null,null,null,null,null,null,null,null,null,null,null,null,null,null,null,null,null,null,null,null,null,null,null,null,null,null,null,null,null,null,null,null,null,null,null,null,null,null,null,null,null,null,null,null,null,null,null,null,null,null,null,null,null,null,null,null,null,null,null,null,null,null,null,null,null,null,null,null,null,null,null,null,null,null,null,null,null,null,null,null,null,null,null,null,null,null,null,null,null,null,null,null,null,null,null,null,null,null,null,null,null,null,null,null,null,null,null,null,null,null,null,null,null,null,null,null,null,null,null,null,null,null,null,null,null,null,null,null,null,null,null,null,null,null,null,null,null,null,null,null,null,null,null,null,null,null,null,null,null,null,null,null,null,null,null,null,null,null,null,null,null,null,null,null,null,null,null,null,null,null,null,null,null,null,null,null,null,null,null,null,null,null,null,null,null,null,null,null,null,null,null,null,null,null,null,null,null,null,null,null,null,null,null,null,null,null,null,null,null,null,null,null,null,null,null,null,null,null,null,null,null,null,null,null,null,null,null,null,null,null,null,null,null,null,null,null,null,null,null,null,null,null,null,null,null,null,null,null,null,null,null,null,null,null,null,null,null,null,null,null,null,null,null,null,null,null,null,null,null,null,null,null,null,null,null,null,null,null,null,null,null,null,null,null,null,null,null,null,null,null,null,null,null,null,null,null,null,null,null,null,null,null,null,null,null,null,null,null,null,null,null,null,null,null,null,null,null,null,null,null,null,null,null,null,null,null,null,null,null,null,null,null,null,null,null,null,null,null,null,null,null,null,null,null,null,null,null,null,null,null,null,null,null,null,null,null,null,null,null,null,null,null,null,null,null,null,null,null,null,null,null,null,null,null,null,null,null,null,null,null,null,null,null,null,null,null,null,null,null,null,null,null,null,null,null,null,null,null,null,null,null,null,null,null,null,null,null,null,null,null,null,null,null,null,null,null,null,null,null,null,null,null,null,null,null,null,null,null,null,null,null,null,null,null,null,null,null,null,null,null,null,null,null,null,null,null,null,null,null,null,null,null,null,null,null,null,null,null,null,null,null,null,null,null,null,null,null,null,null,null,null,null,null,null,null,null,null,null,null,null,null,null,null,null,null,null,null,null,null,null,null,null,null,null,null,null,null,null,null,null,null,null,null,null,null,null,null,null,null,null,null,null,null,null,null,null,null,null,null,null,null,null,null,null,null,null,null,null,null,null,null,null,null,null,null,null,null,null,null,null,null,null,null,null,null,null,null,null,null,null,null,null,null,null,null,null,null,null,null,null,null,null,null,null,null,null,null,null,null,null,null,null,null,null,null,null,null,null,null,null,null,null,null,null,null,null,null,null,null,null,null,null,null,null,null,null,null,null,null,null,null,null,null,null,null,null,null,null,null,null,null,null,null,null,null,null,null,null,null,null,null,null,null,null,null,null,null,null,null,null,null,null,null,null,null,null,null,null,null,null,null,null,null,null,null,null,null,null,null,null,null,null,null,null,null,null,null,null,null,null,null,null,null,null,null,null,null,null,null,null,null,null,null,null,null,null,null,null,null,null,null,null,null,null,null,null,null,null,null,null,null,null,null,null,null,null,null,null,null,null,null,null,null,null,null,null,null,null,null,null,null,null,null,null,null,null,null,null,null,null,null,null,null,null,null,null,null,null,null,null,null,null,null,null,null,null,null,null,null,null,null,null,null,null,null,null,null,null,null,null,null,null,null,null,null,null,null,null,null,null,null,null,null,null,null,null,null,null,null,null,null,null,null,null,null,null,null,null,null,null,null,null,null,null,null,null,null,null,null,null,null,null,null,null,null,null,null,null,null,null,null,null,null,null,null,null,null,null,null,null,null,null,null,null,null,null,null,null,null,null,null,null,null,null,null,null,null,null,null,null,null,null,null,null,null,null,null,null,null,null,null,null,null,null,null,null,null,null,null,null,null,null,null,null,null,null,null,null,null,null,null,null,null,null,null,null,null,null,null,null,null,null,null,null,null,null,null,null,null,null,null,null,null,null,null,null,null,null,null,null,null,null,null,null,null,null,null,null,null,null,null,null,null,null,null,null,null,null,null,null,null,null,null,null,null,null,null,null,null,null,null,null,null,null,null,null,null,null,null,null,null,null,null,null,null,null,null,null,null,null,null,null,null,null,null,null,null,null,null,null,null,null,null,null,null,null,null,null,null,null,null,null,null,null,null,null,null,null,null,null,null,null,null,null,null,null,null,null,null,null,null,null,null,null,null,null,null,null,null,null,null,null,null,null,null,null,null,null,null,null,null,null,null,null,null,null,null,null,null,null,null,null,null,null,null,null,null,null,null,null,null,null,null,null,null,null,null,null,null,null,null,null,null,null,null,null,null,null,null,null,null,null,null,null,null,null,null,null,null,null,null,null,null,null,null,null,null,null,null,null,null,null,null,null,null,null,null,null,null,null,null,null,null,null,null,null,null,null,null,null,null,null,null,null,null,null,null,null,null,null,null,null,null,null,null,null,null,null,null,null,null,null,null,null,null,null,null,null,null,null,null,null,null,null,null,null,null,null,null,null,null,null,null,null,null,null,null,null,null,null,null,null,null,null,null,null,null,null,null,null,null,null,null,null,null,null,null,null,null,null,null,null,null,null,null,null,null,null,null,null,null,null,null,null,null,null,null,null,null,null,null,null,null,null,null,null,null,null,null,null,null,null,null,null,null,null,null,null,null,null,null,null,null,null,null,null,null,null,null,null,null,null,null,null,null,null,null,null,null,null,null,null,null,null,null,null,null,null,null,null,null,null,null,null,null,null,null,null,null,null,null,null,null,null,null,null,null,null,null,null,null,null,null,null,null,null,null,null,null,null,null,null,null,null,null,null,null,null,null,null,null,null,null,null,null,null,null,null,null,null,null,null,null,null,null,null,null,null,null,null,null,null,null,null,null,null,null,null,null,null,null,null,null,null,null,null,null,null,null,null,null,null,null,null,null,null,null,null,null,null,null,null,null,null,null,null,null,null,null,null,null,null,null,null,null,null,null,null,null,null,null,null,null,null,null,null,null,null,null,null,null,null,null,null,null,null,null,null,null,null,null,null,null,null,null,null,null,null,null,null,null,null,null,null,null,null,null,null,null,null,null,null,null,null,null,null,null,null,null,null,null,null,null,null,null,null,null,null,null,null,null,null,null,null,null,null,null,null,null,null,null,null,null,null,null,null,null,null,null,null,null,null,null,null,null,null,null,null,null,null,null,null,null,null,null,null,null,null,null,null,null,null,null,null,null,null,null,null,null,null,null,null,null,null,null,null,null,null,null,null,null,null,null,null,null,null,null,null,null,null,null,null,null,null,null,null,null,null,null,null,null,null,null,null,null,null,null,null,null,null,null,null,null,null,null,null,null,null,null,null,null,null,null,null,null,null,null,null,null,null,null,null,null,null,null,null,null,null,null,null,null,null,null,null,null,null,null,null,null,null,null,null,null,null,null,null,null,null,null,null,null,null,null,null,null,null,null,null,null,null,null,null,null,null,null,null,null,null,null,null,null,null,null,null,null,null,null,null,null,null,null,null,null,null,null,null,null,null,null,null,null,null,null,null,null,null,null,null,null,null,null,null,null,null,null,null,null,null,null,null,null,null,null,null,null,null,null,null,null,null,null,null,null,null,null,null,null,null,null,null,null,null,null,null,null,null,null,null,null,null,null,null,null,null,null,null,null,null,null,null,null,null,null,null,null,null,null,null,null,null,null,null,null,null,null,null,null,null,null,null,null,null,null,null,null,null,null,null,null,null,null,null,null,null,null,null,null,null,null,null,null,null,null,null,null,null,null,null,null,null,null,null,null,null,null,null,null,null,null,null,null,null,null,null,null,null,null,null,null,null,null,null,null,null,null,null,null,null,null,null,null,null,null,null,null,null,null,null,null,null,null,null,null,null,null,null,null,null,null,null,null,null,null,null,null,null,null,null,null,null,null,null,null,null,null,null,null,null,null,null,null,null,null,null,null,null,null,null,null,null,null,null,null,null,null,null,null,null,null,null,null,null,null,null,null,null,null,null,null,null,null,null,null,null,null,null,null,null,null,null,null,null,null,null,null,null,null,null,null,null,null,null,null,null,null,null,null,null,null,null,null,null,null,null,null,null,null,null,null,null,null,null,null,null,null,null,null,null,null,null,null,null,null,null,null,null,null,null,null,null,null,null,null,null,null,null,null,null,null,null,null,null,null,null,null,null,null,null,null,null,null,null,null,null,null,null,null,null,null,null,null,null,null,null,null,null,null,null,null,null,null,null,null,null,null,null,null,null,null,null,null,null,null,null,null,null,null,null,null,null,null,null,null,null,null,null,null,null,null,null,null,null,null,null,null,null,null,null,null,null,null,null,null,null,null,null,null,null,null,null,null,null,null,null,null,null,null,null,null,null,null,null,null,null,null,null,null,null,null,null,null,null,null,null,null,null,null,null,null,null,null,null,null,null,null,null,null,null,null,null,null,null,null,null,null,null,null,null,null,null,null,null,null,null,null,null,null,null,null,null,null,null,null,null,null,null,null,null,null,null,null,null,null,null,null,null,null,null,null,null,null,null,null,null,null,null,null,null,null,null,null,null,null,null,null,null,null,null,null,null,null,null,null,null,null,null,null,null,null,null,null,null,null,null,null,null,null,null,null,null,null,null,null,null,null,null,null,null,null,null,null,null,null,null,null,null,null,null,null,null,null,null,null,null,null,null,null,null,null,null,null,null,null,null,null,null,null,null,null,null,null,null,null,null,null,null,null,null,null,null,null,null,null,null,null,null,null,null,null,null,null,null,null,null,null,null,null,null,null,null,null,null,null,null,null,null,null,null,null,null,null,null,null,null,null,null,null,null,null,null,null,null,null,null,null,null,null,null,null,null,null,null,null,null,null,null,null,null,null,null,null,null,null,null,null,null,null,null,null,null,null,null,null,null,null,null,null,null,null,null,null,null,null,null,null,null,null,null,null,null,null,null,null,null,null,null,null,null,null,null,null,null,null,null,null,null,null,null,null,null,null,null,null,null,null,null,null,null,null,null,null,null,null,null,null,null,null,null,null,null,null,null,null,null,null,null,null,null,null,null,null,null,null,null,null,null,null,null,null,null,null,null,null,null,null,null,null,null,null,null,null,null,null,null,null,null,null,null,null,null,null,null,null,null,null,null,null,null,null,null,null,null,null,null,null,null,null,null,null,null,null,null,null,null,null,null,null,null,null,null,null,null,null,null,null,null,null,null,null,null,null,null,null,null,null,null,null,null,null,null,null,null,null,null,null,null,null,null,null,null,null,null,null,null,null,null,null,null,null,null,null,null,null,null,null,null,null,null,null,null,null,null,null,null,null,null,null,null,null,null,null,null,null,null,null,null,null,null,null,null,null,null,null,null,null,null,null,null,null,null,null,null,null,null,null,null,null,null,null,null,null,null,null,null,null,null,null,null,null,null,null,null,null,null,null,null,null,null,null,null,null,null,null,null,null,null,null,null,null,null,null,null,null,null,null,null,null,null,null,null,null,null,null,null,null,null,null,null,null,null,null,null,null,null,null,null,null,null,null,null,null,null,null,null,null,null,null,null,null,null,null,null,null,null,null,null,null,null,null,null,null,null,null,null,null,null,null,null,null,null,null,null,null,null,null,null,null,null,null,null,null,null,null,null,null,null,null,null,null,null,null,null,null,null,null,null,null,null,null,null,null,null,null,null,null,null,null,null,null,null,null,null,null,null,null,null,null,null,null,null,null,null,null,null,null,null,null,null,null,null,null,null,null,null,null,null,null,null,null,null,null,null,null,null,null,null,null,null,null,null,null,null,null,null,null,null,null,null,null,null,null,null,null,null,null,null,null,null,null,null,null,null,null,null,null,null,null,null,null,null,null,null,null,null,null,null,null,null,null,null,null,null,null,null,null,null,null,null,null,null,null,null,null,null,null,null,null,null,null,null,null,null,null,null,null,null,null,null,null,null,null,null,null,null,null,null,null,null,null,null,null,null,null,null,null,null,null,null,null,null,null,null,null,null,null,null,null,null,null,null,null,null,null,null,null,null,null,null,null,null,null,null,null,null,null,null,null,null,null,null,null,null,null,null,null,null,null,null,null,null,null,null,null,null,null,null,null,null,null,null,null,null,null,null,null,null,null,null,null,null,null,null,null,null,null,null,null,null,null,null,null,null,null,null,null,null,null,null,null,null,null,null,null,null,null,null,null,null,null,null,null,null,null,null,null,null,null,null,null,null,null,null,null,null,null,null,null,null,null,null,null,null,null,null,null,null,null,null,null,null,null,null,null,null,null,null,null,null,null,null,null,null,null,null,null,null,null,null,null,null,null,null,null,null,null,null,null,null,null,null,null,null,null,null,null,null,null,null,null,null,null,null,null,null,null,null,null,null,null,null,null,null,null,null,null,null,null,null,null,null,null,null,null,null,null,null,null,null,null,null,null,null,null,null,null,null,null,null,null,null,null,null,null,null,null,null,null,null,null,null,null,null,null,null,null,null,null,null,null,null,null,null,null,null,null,null,null,null,null,null,null,null,null,null,null,null,null,null,null,null,null,null,null,null,null,null,null,null,null,null,null,null,null,null,null,null,null,null,null,null,null,null,null,null,null,null,null,null,null,null,null,null,null,null,null,null,null,null,null,null,null,null,null,null,null,null,null,null,null,null,null,null,null,null,null,null,null,null,null,null,null,null,null,null,null,null,null,null,null,null,null,null,null,null,null,null,null,null,null,null,null,null,null,null,null,null,null,null,null,null,null,null,null,null,null,null,null,null,null,null,null,null,null,null,null,null,null,null,null,null,null,null,null,null,null,null,null,null,null,null,null,null,null,null,null,null,null,null,null,null,null,null,null,null,null,null,null,null,null,null,null,null,null,null,null,null,null,null,null,null,null,null,null,null,null,null,null,null,null,null,null,null,null,null,null,null,null,null,null,null,null,null,null,null,null,null,null,null,null,null,null,null,null,null,null,null,null,null,null,null,null,null,null,null,null,null,null,null,null,null,null,null,null,null,null,null,null,null,null,null,null,null,null,null,null,null,null,null,null,null,null,null,null,null,null,null,null,null,null,null,null,null,null,null,null,null,null,null,null,null,null,null,null,null,null,null,null,null,null,null,null,null,null,null,null,null,null,null,null,null,null,null,null,null,null,null,null,null,null,null,null,null,null,null,null,null,null,null,null,null,null,null,null,null,null,null,null,null,null,null,null,null,null,null,null,null,null,null,null,null,null,null,null,null,null,null,null,null,null,null,null,null,null,null,null,null,null,null,null,null,null,null,null,null,null,null,null,null,null,null,null,null,null,null,null,null,null,null,null,null,null,null,null,null,null,null,null,null,null,null,null,null,null,null,null,null,null,null,null,null,null,null,null,null,null,null,null,null,null,null,null,null,null,null,null,null,null,null,null,null,null,null,null,null,null,null,null,null,null,null,null,null,null,null,null,null,null,null,null,null,null,null,null,null,null,null,null,null,null,null,null,null,null,null,null,null,null,null,null,null,null,null,null,null,null,null,null,null,null,null,null,null,null,null,null,null,null,null,null,null,null,null,null,null,null,null,null,null,null,null,null,null,null,null,null,null,null,null,null,null,null,null,null,null,null,null,null,null,null,null,null,null,null,null,null,null,null,null,null,null,null,null,null,null,null,null,null,null,null,null,null,null,null,null,null,null,null,null,null,null,null,null,null,null,null,null,null,null,null,null,null,null,null,null,null,null,null,null,null,null,null,null,null,null,null,null,null,null,null,null,null,null,null,null,null,null,null,null,null,null,null,null,null,null,null,null,null,null,null,null,null,null,null,null,null,null,null,null,null,null,null,null,null,null,null,null,null,null,null,null,null,null,null,null,null,null,null,null,null,null,null,null,null,null,null,null,null,null,null,null,null,null,null,null,null,null,null,null,null,null,null,null,null,null,null,null,null,null,null,null,null,null,null,null,null,null,null,null,null,null,null,null,null,null,null,null,null,null,null,null,null,null,null,null,null,null,null,null,null,null,null,null,null,null,null,null,null,null,null,null,null,null,null,null,null,null,null,null,null,null,null,null,null,null,null,null,null,null,null,null,null,null,null,null,null,null,null,null,null,null,null,null,null,null,null,null,null,null,null,null,null,null,null,null,null,null,null,null,null,null,null,null,null,null,null,null,null,null,null,null,null,null,null,null,null,null,null,null,null,null,null,null,null,null,null,null,null,null,null,null,null,null,null,null,null,null,null,null,null,null,null,null,null,null,null,null,null,null,null,null,null,null,null,null,null,null,null,null,null,null,null,null,null,null,null,null,null,null,null,null,null,null,null,null,null,null,null,null,null,null,null,null,null,null,null,null,null,null,null,null,null,null,null,null,null,null,null,null,null,null,null,null,null,null,null,null,null,null,null,null,null,null,null,null,null,null,null,null,null,null,null,null,null,null,null,null,null,null,null,null,null,null,null,null,null,null,null,null,null,null,null,null,null,null,null,null,null,null,null,null,null,null,null,null,null,null,null,null,null,null,null,null,null,null,null,null,null,null,null,null,null,null,null,null,null,null,null,null,null,null,null,null,null,null,null,null,null,null,null,null,null,null,null,null,null,null,null,null,null,null,null,null,null,null,null,null,null,null,null,null,null,null,null,null,null,null,null,null,null,null,null,null,null,null,null,null,null,null,null,null,null,null,null,null,null,null,null,null,null,null,null,null,null,null,null,null,null,null,null,null,null,null,null,null,null,null,null,null,null,null,null,null,null,null,null,null,null,null,null,null,null,null,null,null,null,null,null,null,null,null,null,null,null,null,null,null,null,null,null,null,null,null,null,null,null,null,null,null,null,null,null,null,null,null,null,null,null,null,null,null,null,null,null,null,null,null,null,null,null,null,null,null,null,null,null,null,null,null,null,null,null,null,null,null,null,null,null,null,null,null,null,null,null,null,null,null,null,null,null,null,null,null,null,null,null,null,null,null,null,null,null,null,null,null,null,null,null,null,null,null,null,null,null,null,null,null,null,null,null,null,null,null,null,null,null,null,null,null,null,null,null,null,null,null,null,null,null,null,null,null,null,null,null,null,null,null,null,null,null,null,null,null,null,null,null,null,null,null,null,null,null,null,null,null,null,null,null,null,null,null,null,null,null,null,null,null,null,null,null,null,null,null,null,null,null,null,null,null,null,null,null,null,null,null,null,null,null,null,null,null,null,null,null,null,null,null,null,null,null,null,null,null,null,null,null,null,null,null,null,null,null,null,null,null,null,null,null,null,null,null,null,null,null,null,null,null,null,null,null,null,null,null,null,null,null,null,null,null,null,null,null,null,null,null,null,null,null,null,null,null,null,null,null,null,null,null,null,null,null,null,null,null,null,null,null,null,null,null,null,null,null,null,null,null,null,null,null,null,null,null,null,null,null,null,null,null,null,null,null,null,null,null,null,null,null,null,null,null,null,null,null,null,null,null,null,null,null,null,null,null,null,null,null,null,null,null,null,null,null,null,null,null,null,null,null,null,null,null,null,null,null,null,null,null,null,null,null,null,null,null,null,null,null,null,null,null,null,null,null,null,null,null,null,null,null,null,null,null,null,null,null,null,null,null,null,null,null,null,null,null,null,null,null,null,null,null,null,null,null,null,null,null,null,null,null,null,null,null,null,null,null,null,null,null,null,null,null,null,null,null,null,null,null,null,null,null,null,null,null,null,null,null,null,null,null,null,null,null,null,null,null,null,null,null,null,null,null,null,null,null,null,null,null,null,null,null,null,null,null,null,null,null,null,null,null,null,null,null,null,null,null,null,null,null,null,null,null,null,null,null,null,null,null,null,null,null,null,null,null,null,null,null,null,null,null,null,null,null,null,null,null,null,null,null,null,null,null,null,null,null,null,null,null,null,null,null,null,null,null,null,null,null,null,null,null,null,null,null,null,null,null,null,null,null,null,null,null,null,null,null,null,null,null,null,null,null,null,null,null,null,null,null,null,null,null,null,null,null,null,null,null,null,null,null,null,null,null,null,null,null,null,null,null,null,null,null,null,null,null,null,null,null,null,null,null,null,null,null,null,null,null,null,null,null,null,null,null,null,null,null,null,null,null,null,null,null,null,null,null,null,null,null,null,null,null,null,null,null,null,null,null,null,null,null,null,null,null,null,null,null,null,null,null,null,null,null,null,null,null,null,null,null,null,null,null,null,null,null,null,null,null,null,null,null,null,null,null,null,null,null,null,null,null,null,null,null,null,null,null,null,null,null,null,null,null,null,null,null,null,null,null,null,null,null,null,null,null,null,null,null,null,null,null,null,null,null,null,null,null,null,null,null,null,null,null,null,null,null,null,null,null,null,null,null,null,null,null,null,null,null,null,null,null,null,null,null,null,null,null,null,null,null,null,null,null,null,null,null,null,null,null,null,null,null,null,null,null,null,null,null,null,null,null,null,null,null,null,null,null,null,null,null,null,null,null,null,null,null,null,null,null,null,null,null,null,null,null,null,null,null,null,null,null,null,null,null,null,null,null,null,null,null,null,null,null,null,null,null,null,null,null,null,null,null,null,null,null,null,null,null,null,null,null,null,null,null,null,null,null,null,null,null,null,null,null,null,null,null,null,null,null,null,null,null,null,null,null,"←①氏名:『1経歴書』シートから自動コピー"]
[]
[null,null,"１．今までの活動実績"]
[null,null,"（これまでの主な経歴と省エネ推進との関わりについて簡単に記載ください。"]
[null,null,"　また、省エネ診断の業務経験についても、事業名や診断対象、主な成果など可能な範囲で説明下さい）"]
[]
[]
[]
[]
[]
[]
[]
[]
[]
[]
[]
[]
[]
[]
[]
[]
[]
[]
[]
[]
[]
[]
[]
[]
[null,null,"２．今後の抱負"]
[null,null,"（中小企業等を対象とした省エネ診断で、今後どの様に取り組みたいかなど抱負を説明下さい）"]

{"sheet":"3口座振込","index":5,"n_rows":78,"n_cols":42,"rows_kept":78,"cut":false,"hidden":true,"merged":[[58,22,58,23],[58,25,58,26],[54,2,54,38],[70,34,72,37],[70,30,72,33],[74,10,74,16],[74,26,75,28],[75,33,75,35],[74,29,74,38],[72,10,72,13],[47,10,47,25],[48,10,48,25],[50,10,50,25],[50,34,50,37],[50,29,50,31],[52,29,52,38],[20,10,20,25],[20,29,20,33],[1,30,1,31],[1,33,1,34],[18,10,18,25],[18,29,18,33],[4,28,4,37],[10,20,10,25],[10,32,10,37],[14,20,14,25],[12,7,12,37],[10,7,10,11],[5,28,5,37],[1,36,1,37],[22,35,22,36],[43,32,43,37],[28,7,28,11],[28,20,28,25],[39,10,39,25],[41,10,41,25],[43,10,43,25],[37,7,37,37],[33,6,33,39],[22,10,22,25],[30,7,30,37],[35,7,35,11],[35,20,35,25],[35,32,35,37],[22,29,22,33]]}
[null,"口座振込依頼書"]
[null,"●弊センターによる所得税計算のために、記入が必須！",null,null,null,null,null,null,null,null,null,null,null,null,null,null,null,null,null,null,null,null,null,null,null,null,null,null,{"$f":"IF('1経歴書'!$S$2<>\"\",'1経歴書'!$S$2,\"\")","v":"令和"},null,null,null,"年",null,null,"月",null,null,"日",null,null,"←提出日を記入"]
[null,null,"一般財団法人 省エネルギーセンター 御中"]
[]
[null,null,"新規登録　／　変更有り　／　変更無し　の選択",null,null,null,null,null,null,null,null,null,null,null,null,null,null,null,null,null,null,null,null,null,null,null," (ふりがな) ",null,{"$f":"IF('1経歴書'!$C$6<>\"\",'1経歴書'!$C$6,\"\")","v":""},null,null,null,null,null,null,null,null,null,null,null,null,"←『1経歴書』シートから自動コピー。"]
[null,null,null,null,"●","新規登録",null,null,null,"○","変更有り",null,null,null,"○","変更無し",null,null,null,null,null,null,null,null,null,null,"氏　　　名",null,{"$f":"IF('1経歴書'!$C$7<>\"\",'1経歴書'!$C$7,\"\")","v":""},null,null,null,null,null,null,null,null,null,"印",null,null,"←①『新規登録』『変更有り』『変更無し』から一つ選択"]
[null,null,null,"（注）変更無しでも記入、変更有りの場合は左端にゝ点を入れ、上記の”変更有り”を選択のこと。"]
[]
[null,null,"□","現住所 ・・・ 『経歴書』シートの入力データがコピーされる"]
[]
[null,null,null,null,"□","〒",null,{"$f":"IF('1経歴書'!$D$11<>\"\",'1経歴書'!$D$11,\"\")","v":""},null,null,null,null,null,null,null,null,null,"□","Tel",null,{"$f":"IF('1経歴書'!$G$13<>\"\",'1経歴書'!$G$13,\"\")","v":""},null,null,null,null,null,null,null,null,"□","Fax",null,{"$f":"IF('1経歴書'!$O$13<>\"\",'1経歴書'!$O$13,\"\")","v":""},null,null,null,null,null,null,null,null,"←青色セル：『1経歴書』シートから自動コピー。変更可能"]
[]
[null,null,null,null,"□","住所",null,{"$f":"IF(('1経歴書'!$J$11& '1経歴書'!$C$12)<>\"\",('1経歴書'!$J$11& '1経歴書'!$C$12),\"\")","v":""},null,null,null,null,null,null,null,null,null,null,null,null,null,null,null,null,null,null,null,null,null,null,null,null,null,null,null,null,null,null,null,null,null,"←青色セル：『1経歴書』シートから自動コピー。変更可能"]
[]
[null,null,null,null,null,null,null,null,null,null,null,null,null,null,null,null,null,"□","携帯Tel",null,{"$f":"IF('1経歴書'!$W$13<>\"\",'1経歴書'!$W$13,\"\")","v":""},null,null,null,null,null,null,null,null,null,null,null,null,null,null,null,null,null,null,null,null,"←青色セル：『1経歴書』シートから自動コピー。変更可能"]
[]
[null,null,"□","最寄の公共交通機関  ・・・ 『経歴書』シートの入力データがコピーされる"]
[]
[null,null,null,null,"□","①鉄道名",null,null,null,null,{"$f":"IF('1経歴書'!G15<>\"\",'1経歴書'!$G$15,\"\")","v":""},null,null,null,null,null,null,null,null,null,null,null,null,null,null,null,null,null,null,{"$f":"IF('1経歴書'!$U$15<>\"\",'1経歴書'!$U$15,\"\")","v":""},null,null,null,null,"駅",null,null,null,null,null,null,"←青色セル：『1経歴書』シートから自動コピー。変更可能"]
[]
[null,null,null,null,"□","②バス会社名",null,null,null,null,{"$f":"IF('1経歴書'!$G$16<>\"\",'1経歴書'!$G$16,\"\")","v":""},null,null,null,null,null,null,null,null,null,null,null,null,null,null,null,null,null,null,{"$f":"IF('1経歴書'!$U$16<>\"\",'1経歴書'!$U$16,\"\")","v":""},null,null,null,null,"バス停",null,null,null,null,null,null,"←青色セル：『1経歴書』シートから自動コピー。変更可能"]
[]
[null,null,null,null,null,null,null,null,null,null,{"$f":"IF('1経歴書'!$N$16<>\"\",'1経歴書'!$N$16,\"\")","v":""},null,null,null,null,null,null,null,null,null,null,null,null,null,null,null,"線（行）",null,null,{"$f":"IF('1経歴書'!$N$17<>\"\",'1経歴書'!$N$17,\"\")","v":""},null,null,null,null,"km",{"$f":"IF('1経歴書'!$U$17<>\"\",'1経歴書'!$U$17,\"\")","v":""},null,"円 *",null,null,null,"←青色セル：『1経歴書』シートから自動コピー。変更可能"]
[]
[]
[null,null,null,"●住民票の住所が現住所と異なる場合に記入"]
[null,null,"□","住民票のある住所"]
[]
[null,null,null,"　　　　　　　　　　　　　　　　　　　　　　　　　　　　　　　　　　　　　　　　","□","〒",null,null,null,null,null,null,null,null,null,null,null,"□","Tel"]
[]
[null,null,null,null,"□","住所"]
[]
[]
[null,null,"□","法人住所 ",null,null,"… 振込口座が『法人』の場合に『経歴書』シートをコピー。振込先の法人名や住所等が勤務先と異なる場合、上書き入力すること。"]
[]
[null,null,null,null,"□","〒",null,{"$f":"IF('1経歴書'!H23<>\"\",'1経歴書'!H23,\"\")","v":""},null,null,null,null,null,null,null,null,null,"□","Tel",null,{"$f":"IF('1経歴書'!K26<>\"\",'1経歴書'!K26,\"\")","v":""},null,null,null,null,null,null,null,null,"□","Fax",null,{"$f":"IF('1経歴書'!W26<>\"\",'1経歴書'!W26,\"\")","v":""},null,null,null,null,null,null,null,null,"←青色セル：『1経歴書』シートから自動コピー。変更可能"]
[]
[null,null,null,null,"□","住所",null,{"$f":"IF(('1経歴書'!G24 & '1経歴書'!G25)<>\"\",('1経歴書'!G24 & '1経歴書'!G25),\"\")","v":""},null,null,null,null,null,null,null,null,null,null,null,null,null,null,null,null,null,null,null,null,null,null,null,null,null,null,null,null,null,null,null,null,null,"←青色セル：『1経歴書』シートから自動コピー。変更可能"]
[]
[null,null,"□","法 人 名",null,null,null,null,null,null,{"$f":"IF('1経歴書'!G22<>\"\",'1経歴書'!G22,\"\")","v":""},null,null,null,null,null,null,null,null,null,null,null,null,null,null,null,null,null,null,null,null,null,null,null,null,null,null,null,null,null,null,"←青色セル：『1経歴書』シートから自動コピー。変更可能"]
[]
[null,null,"□","法人番号（13桁）"]
[]
[null,null,"□","所属部署",null,null,null,null,null,null,{"$f":"IF('1経歴書'!K28<>\"\",'1経歴書'!K28,\"\")","v":""},null,null,null,null,null,null,null,null,null,null,null,null,null,null,null,null,null,null,"□","役職",null,{"$f":"IF('1経歴書'!W28<>\"\",'1経歴書'!W28,\"\")","v":""},null,null,null,null,null,null,null,null,"←青色セル：『1経歴書』シートから自動コピー。変更可能"]
[]
[]
[null,null,"□","振込口座"]
[null,null,null,null,null,null,null,null,null,"(ﾌﾘｶﾞﾅ)"]
[null,null,null,null,null,null,null,null,null,"口座名義",null,null,null,null,null,null,null,null,null,null,null,null,null,null,null,null,null,null,null,"○","個人",null,null,null,"○","法人",null,null,null,null,null,"←②振込口座：『個人』『法人』のどちらかを選択"]
[]
[null,null,null,null,null,null,null,null,null,"振込銀行名",null,null,null,null,null,null,null,null,null,null,null,null,null,null,null,null,null,null,null,null,null,null,"本店",null,null,null,null,null,"支店",null,null,"←③本店／支店のどちらかに入力"]
[]
[null,null,null,null,null,null,null,null,null,null,"○","普通",null,null,null,"○","当座",null,null,null,null,null,null,null,null,"口座番号",null,null,null,null,null,null,null,null,null,null,null,null,null,null,null,"←④預金／貯金種別の選択：『普通』『当座』のどちらかを選択"]
[null,null,null,"　　　　　　　　　　　　　　　　　　　　　　　　　　　　　　　　　　　　　"]
[null,null,"インボイス制度"]
[null,null,"課税/免税の選択（1つ選択）",null,null,null,null,null,null,null,null,"適格請求書発行事業者への登録",null,null,null,null,null,null,null,null,null,null,null,null,null,null,null,null,null,null,null,null,null,null,null,null,null,null,null,null,null,"←インボイス　⑤課税/免税の選択：『課税事業者』『免税事業者』のどちらかを選択"]
[null,null,"○","課税事業者",null,null,null,null,null,null,"○","登録済",null,null,null,"登録番号",null,null,null,null,null,"T",null,"-",null,null,null,null,"-",null,null,null,null,"-",null,null,null,null,null,null,null,"←登録済の場合：　登録番号を入力（桁数注意）"]
[]
[null,null,"○","免税事業者",null,null,null,null,null,null,null,null,null,null,null,"登録(予定)年月",null,null,null,null,{"$f":"IF('1経歴書'!$S$2<>\"\",'1経歴書'!$S$2,\"\")","v":"令和"},null,null,null,"年",null,null,"月",null,null,null,null,null,null,null,null,null,null,null,null,null,"←登録または登録予定：　年月を入力"]
[]
[null,null,null,null,null,null,null,null,null,null,null,null,null,null,null,null,null,null,null,null,null,null,null,null,null,null,null,null,null,null,null,null,null,null,null,null,null,null,"以上"]
[]
[null,null,null,"＊省エネルギーセンター記入欄＊"]
[]
[null,null,null,"外部個人 ・ 法人",null,null,null,null,null,null,"○","外部個人",null,null,null,"○","法人"]
[]
[null,null,null,"新規／変更の選択",null,null,null,null,null,null,"○","新規",null,null,null,"○","変更"]
[]
[null,null,null,"担当部署及び氏名",null,null,null,null,null,null,"　診断指導部　部長　　　　丸山　正"]
[]
[null,null,null,null,null,null,null,null,null,null,null,null,null,null,null,null,null,null,null,null,null,null,null,null,null,null,null,null,null,null,"管轄本支部"]
[]
[null,null,null,"旅費等級",null,null,null,null,null,null,"２級",null,null,null,"（専門員の等級とは異なります）"]
[]
[null,null,null,"支払受者番号",null,null,null,null,null,null,null,null,null,null,null,null,null,null,"（経理部で記入）",null,null,null,null,null,null,null,"経理部",null,null,"診断指導部"]
[null,null,null,null,null,null,null,null,null,null,null,null,null,null,null,null,null,null,null,null,null,null,null,null,null,null,null,null,null,"部長",null,null,null,"マネージャ",null,null,"担当者\n"]
[null,null,null,"継続取引有無",null,null,null,null,null,null,"○","有り",null,null,null,"○","無し"]
[null,null,null,null,"☆注意：初回旅費発生日の記入が無い場合は提出日の日付になります。"]

{"sheet":"4委嘱承諾書","index":6,"n_rows":26,"n_cols":14,"rows_kept":26,"cut":false,"hidden":true,"merged":[[18,5,18,11],[22,5,22,11],[25,5,25,8],[4,1,4,12],[9,1,9,12],[10,1,10,12],[11,1,11,12],[12,1,12,12],[16,3,16,4],[20,5,20,11]]}
[]
[null,"一般財団法人　省エネルギーセンター"]
[null," 　診断指導部長"]
[]
[null,"エネルギー使用合理化専門員の委嘱承諾書"]
[]
[]
[]
[]
[null,"　22EC診指 第6号（令和5年 2月10日付）で依頼のありました「エネルギー使用合理化"]
[null,"専門員の委嘱」につきまして、「診断専門家謝金並びに技術調査員謝金に係る業務規程」"]
[null,"（令和5年2月1日改正）、「エネルギー使用合理化専門員の委嘱、業務依頼の運用、業務"]
[null,"（令和4年4月1日版）を確認し、同意の上、承諾いたします。"]
[]
[]
[]
[null,null,null,"令和",null,null,"年",null,"月",null,"日",null,null,"←提出日を記入"]
[]
[null,null,null,"勤務先名　　　　　　　　",null,{"$f":"IF('1経歴書'!G22=\"\",\"\",'1経歴書'!G22)","v":""},null,null,null,null,null,null,null,"←専門員の勤務先：『1経歴書』シートから自動コピー"]
[null,null,null,"　　　　　　　　　　　　　　"]
[null,null,null,"所属部課",null,{"$f":"IF('1経歴書'!K28<>\"\",'1経歴書'!K28,\"\")","v":""},null,null,null,null,null,null,null,"←専門員の所属部課：『1経歴書』シートから自動コピー"]
[null,null,null,"　　　　　　　　　　　　　　"]
[null,null,null,"役職名",null,{"$f":"IF('1経歴書'!W28=\"\",\"\",'1経歴書'!W28)","v":""},null,null,null,null,null,null,null,"←専門員の役職：『1経歴書』シートから自動コピー"]
[]
[]
[null,null,null,"氏　名 ",null,{"$f":"IF('1経歴書'!C7<>\"\",'1経歴書'!C7,\"\")","v":""},null,null,null,"印",null,null,null,"←専門員の氏名：『1経歴書』シートから自動コピー"]

{"sheet":"5所属長承諾書","index":7,"n_rows":36,"n_cols":19,"rows_kept":36,"cut":false,"hidden":true,"merged":[[35,4,35,9],[17,4,17,11],[21,1,21,17],[2,1,2,17],[11,4,11,14],[15,4,15,14],[17,12,17,13],[13,4,13,14],[22,1,22,17],[24,1,24,17],[27,4,27,11],[33,4,33,11],[31,4,31,11],[29,4,29,11]]}
[]
[]
[null,"承　諾　書（所属長）"]
[]
[null,"   　　　                               　　"]
[null,null,null,null,null,null,null,null,null,null,null,"令和",null,"年",null,"月",null,"日","←提出日を記入"]
[null,"一般財団法人　省エネルギーセンター"]
[null," 　診断指導部　　　丸山　正　　部長"]
[]
[]
[]
[null,null,"　会社・工場名",null,{"$f":"IF('1経歴書'!G22<>\"\",'1経歴書'!G22,\"\")","v":""},null,null,null,null,null,null,null,null,null,null,null,null,null,"←所属長の勤務先：『1経歴書』シートから自動コピー。変更可能"]
[null,null,"　　　　　　　　　　　"]
[null,null,"　部署",null,{"$f":"IF('1経歴書'!G29<>\"\",'1経歴書'!G29,\"\")","v":""},null,null,null,null,null,null,null,null,null,null,null,null,null,"←所属長の役職：『1経歴書』シートから自動コピー。変更可能"]
[null,null,"　　　　　　　　　　　"]
[null,null,"　役　 職　 名",null,{"$f":"IF('1経歴書'!G30<>\"\",'1経歴書'!G30,\"\")","v":""},null,null,null,null,null,null,null,null,null,null,null,null,null,"←所属長の役職：『1経歴書』シートから自動コピー。変更可能"]
[null,null,"　　　　　　　　　　　"]
[null,null,"　氏　　　　名　",null,{"$f":"IF('1経歴書'!W30<>\"\",'1経歴書'!W30,\"\")","v":""},null,null,null,null,null,null,null," 印",null,null,null,null,null,"←所属長の氏名：『1経歴書』シートから自動コピー。変更可能"]
[]
[]
[]
[null,"  22EC診指 第6号（令和5年 2月10日付）で依頼のありました下記の社員に対するエネルギー使用"]
[null,"合理化専門員の委嘱を承諾いたします。"]
[]
[null,"記"]
[]
[]
[null,null,"１．名　　　称 ",null,"エネルギー使用合理化専門員"]
[null,null,null,"　　　　　　　　　　　"]
[null,null,"２．所属部課",null,{"$f":"IF('1経歴書'!K28<>\"\",'1経歴書'!K28,\"\")","v":""},null,null,null,null,null,null,null,null,null,null,null,null,null,"←専門員の所属部課：『1経歴書』シートから自動コピー。"]
[null,null,null,"　　　　　　　　　　　"]
[null,null,"３．役　職　名",null,{"$f":"IF('1経歴書'!W28=\"\",\"\",'1経歴書'!W28)","v":""},null,null,null,null,null,null,null,null,null,null,null,null,null,"←専門員の役職：『1経歴書』シートから自動コピー。"]
[null,null,null,"　　　　　　　　　　　"]
[null,null,"４．社　員　名",null,{"$f":"IF('1経歴書'!C7<>\"\",'1経歴書'!C7,\"\")","v":""},null,null,null,null,null,null,null,null,null,null,null,null,null,"←専門員の氏名：『1経歴書』シートから自動コピー。"]
[null,null,null,"　　　　　　　　　　　"]
[null,null,"５．委嘱期間",null,"登録完了日",null,null,null,null,null," ～","令和",8,"年",3,"月",31,"日"]

{"sheet":"入力後のチェック","index":8,"n_rows":57,"n_cols":12,"rows_kept":57,"cut":false,"hidden":false,"merged":[[7,0,7,1],[8,0,8,1],[2,0,2,4]]}
["■使用上の注意",null,null,null,null,null,null,null,null,null,null,"○audit"]
["１．省エネセンターに本ファイルを提出する場合、シートの削除をしないこと。"]
["　　例：　口座振込依頼書を印刷・捺印後、提出を行う際、印刷後に”3口座振込”シートを削除する方がいます。\n　　　　　削除しないで、提出してください。\n　　　　　理由：弊センターにて、本EXCELファイルを自動読込プログラムを実行します。その際、実行エラー\n　　　　　が発生するため。"]
["２．所属長の承諾が困難な場合、事務担当窓口に相談願います。"]
[]
["■必要項目の入力完了のチェック　　・・・提出前に実施"]
[]
["総合判定1",null,{"$f":"IF(COUNTIFS(C12:C45,\"NG\")=0,\"OK\",\"NG\")","v":"NG"},null,"　←OK になること。"]
["総合判定2（勤務先あり）",null,null,{"$f":"IF(COUNTIFS(D25:D29,\"NG\")=0,\"OK\",\"NG\")","v":"NG"},"　←データ入力がある場合、OK になる"]
[]
[null,"１．経歴書シート"]
[null,null,{"$f":"IF(AND('1経歴書'!U2<>\"\",'1経歴書'!X2<>\"\"),IF(AND('1経歴書'!X2<>\"\",'1経歴書'!AA2<>\"\"),\"OK\",\"NG\"),\"NG\")","v":"NG"},null,"作成年号、年月日"]
[null,null,{"$f":"IF(OR('1経歴書'!C3=\"●\",'1経歴書'!K3=\"●\"),\"OK\",\"NG\")","v":"OK"},null,"新規・更新の選択"]
[null,null,{"$f":"IF('1経歴書'!C6<>\"\",\"OK\",\"NG\")","v":"NG"},null,"ふりがな"]
[null,null,{"$f":"IF('1経歴書'!C7<>\"\",\"OK\",\"NG\")","v":"NG"},null,"指名"]
[null,null,{"$f":"IF(AND('1経歴書'!C8<>\"\",'1経歴書'!E8<>\"\"),IF(AND('1経歴書'!H8<>\"\",'1経歴書'!K8<>\"\"),\"OK\",\"NG\"),\"NG\")","v":"NG"},null,"年号、生年月日"]
[null,null,{"$f":"IF('1経歴書'!L9<>\"\",\"OK\",\"NG\")","v":"OK"},null,"年度（年齢計算用）"]
[]
[null,null,{"$f":"IF('1経歴書'!D11<>\"\",\"OK\",\"NG\")","v":"NG"},null,"自宅　郵便番号"]
[null,null,{"$f":"IF(OR('1経歴書'!J11<>\"\",'1経歴書'!C12<>\"\"),\"OK\",\"NG\")","v":"NG"},null,"自宅　住所"]
[null,null,{"$f":"IF(OR('1経歴書'!G13<>\"\",'1経歴書'!W13<>\"\"),\"OK\",\"NG\")","v":"NG"},null,"自宅　TEL・個人携帯番号（少なくとも1件記入）"]
[null,null,{"$f":"IF('1経歴書'!G14<>\"\",\"OK\",\"NG\")","v":"NG"},null,"自宅　E-mailアドレス"]
[null,null,{"$f":"IF(AND('1経歴書'!G15<>\"\",'1経歴書'!N15<>\"\"),IF('1経歴書'!U15<>\"\",\"OK\",\"NG\"),\"NG\")","v":"NG"},null,"最寄駅（鉄道会社、路線名、駅名）"]
[]
[null,null,null,{"$f":"IF(AND('1経歴書'!G21<>\"\",'1経歴書'!G22<>\"\"),\"OK\",\"NG\")","v":"NG"},"　勤務先　ふりがな（平仮名で入力）、名称"]
[null,null,null,{"$f":"IF('1経歴書'!H23<>\"\",\"OK\",\"NG\")","v":"NG"},"　勤務先　郵便番号"]
[null,null,null,{"$f":"IF(OR('1経歴書'!N23<>\"\",'1経歴書'!G24<>\"\"),\"OK\",IF('1経歴書'!G25<>\"\",\"NG\",\"NG\"))","v":"NG"},"　勤務先　住所"]
[null,null,null,{"$f":"IF('1経歴書'!K26<>\"\",\"OK\",\"NG\")","v":"NG"},"　勤務先　TEL番号"]
[null,null,null,{"$f":"IF('1経歴書'!K27<>\"\",\"OK\",\"NG\")","v":"NG"},"　勤務先　E-mailアドレス"]
[]
[null,null,{"$f":"IF(OR('1経歴書'!C33=\"●\",'1経歴書'!C34=\"●\"),\"OK\",IF(OR('1経歴書'!J33=\"●\",'1経歴書'!J34=\"●\"),\"OK\",\"NG\"))","v":"NG"},null,"連絡先　電話（１つ選択）"]
[null,null,{"$f":"IF(OR('1経歴書'!Q33=\"レ\",'1経歴書'!Q34=\"ゝ\"),\"OK\",\"NG\")","v":"NG"},null,"連絡先　メール（２つ選択可）"]
[null,null,{"$f":"IF(OR('1経歴書'!X33=\"●\",'1経歴書'!X34=\"●\"),\"OK\",\"NG\")","v":"NG"},null,"連絡先　資料送付先（１つ選択）"]
[null,null,{"$f":"IF(OR('1経歴書'!J35=\"●\",'1経歴書'!N35=\"●\"),\"OK\",\"NG\")","v":"OK"},null,"業務依頼書・引受書に勤務先併記"]
[]
[null,null,{"$f":"IF(OR('1経歴書'!G48<>\"\",'1経歴書'!L48<>\"\"),\"OK\",\"NG\")","v":"NG"},null,"専門分野　熱、電気"]
[null,null,{"$f":"IF(OR('1経歴書'!U48<>\"\",'1経歴書'!Z48<>\"\"),\"OK\",\"NG\")","v":"NG"},null,"専門分野　工場／ビル"]
[null,null,{"$f":"IF(OR('1経歴書'!G51<>\"\",'1経歴書'!O51<>\"\"),\"OK\",IF(OR('1経歴書'!W51<>\"\",'1経歴書'!J52<>\"\"),\"OK\",\"NG\"))","v":"NG"},null,"得意とする業種"]
[]
[null,"３．口座振込シート"]
[null,null,{"$f":"IF(OR('3口座振込'!E6=\"●\",'3口座振込'!J6=\"●\"),\"OK\",IF('3口座振込'!O6=\"●\",\"OK\",\"NG\"))","v":"OK"},null,"登録種類の選択"]
[null,null,{"$f":"IF(AND('3口座振込'!K48<>\"\",'3口座振込'!K49<>\"\"),\"OK\",\"NG\")","v":"NG"},null,"フリガナ（片仮名で入力）、口座名義"]
[null,null,{"$f":"IF(OR('3口座振込'!AD49=\"●\",'3口座振込'!AI49=\"●\"),\"OK\",\"NG\")","v":"NG"},null,"個人、法人の選択"]
[null,null,{"$f":"IF(OR('3口座振込'!K53=\"●\",'3口座振込'!P53=\"●\"),\"OK\",\"NG\")","v":"NG"},null,"預金/貯金の種別"]
[null,null,null,{"$f":"IF('3口座振込'!AD53<>\"\",\"OK\",\"NG\")","v":"NG"},"口座番号"]
[null,null,{"$f":"IF(OR('3口座振込'!C57=\"●\",'3口座振込'!C59=\"●\"),\"OK\",\"NG\")","v":"NG"},null,"インボイス：　課税/免税の選択"]
[]
["　　　　　　　　●以降は、自動判定がありません。"]
[]
[null,"4．委嘱承諾書シート"]
[null,null,null,"　印刷後に捺印し、郵送　または　カラーｐｄｆのメール添付　で提出しましたか？"]
[]
[null,"5．所属長承諾書シート"]
[null,null,null,"　所属長の承諾が必要ですか？"]
[null,null,null,"　上記がYesの場合、印刷後に捺印し、郵送　または　カラーｐｄｆのメール添付　で提出しましたか？"]
[]
[null,null,null,null,"以上"]

{"sheet":"6確約書家族同意書(70歳以上)","index":9,"n_rows":44,"n_cols":14,"rows_kept":44,"cut":false,"hidden":true,"merged":[[42,5,43,11],[21,6,21,8],[4,1,4,12],[5,1,5,12],[7,1,7,12],[8,1,8,12],[19,5,19,8],[29,3,29,12],[31,3,31,12],[23,5,24,11],[27,1,27,12],[36,5,36,10],[38,5,38,8],[40,6,40,8]]}
[]
[null,"一般財団法人　省エネルギーセンター"]
[null," 診断指導部長　殿"]
[]
[null,"確約書"]
[null,"（エネルギー使用合理化専門員）"]
[]
[null,"　私は貴センターのエネルギー使用合理化専門員として委嘱されるにあたり、家族の同意書を"]
[null,"添えて次の3項目を確約します。"]
[]
[]
[]
[null,null,"１．現在、私は健康であること。"]
[null,null,"２．健康が優れないときは派遣業務依頼を断ること。"]
[null,null,"３．自分で精神的、肉体的に無理な派遣業務だと判断したときは、その旨を"]
[null,null,"　　貴センターの職員に伝えて辞退すること。"]
[]
[null,null,null,null,null,"令和",null,"年",null,"月",null,"日"]
[]
[null,null,null,null,"名　前：",{"$f":"IF('1経歴書'!C7<>\"\",'1経歴書'!C7,\"\")","v":""},null,null,null,null,"印　　",null,null,"←専門員の氏名：　『1経歴書』シートから自動コピー"]
[]
[null,null,null,null,"住　所：　　　　　　　　　　　　　　　　　　　","〒",{"$f":"IF('1経歴書'!D11<>\"\",'1経歴書'!D11,\"\")","v":""},null,null,null,null,null,null,"←郵便番号：　『1経歴書』シートから自動コピー"]
[]
[null,"　 　　　　　　　　　　　　　　　　　　　　　",null,null,null,{"$f":"IF('1経歴書'!J11 & '1経歴書'!C12<>\"\",'1経歴書'!J11 & '1経歴書'!C12,\"\")","v":""},null,null,null,null,null,null,null,"←住所：　『1経歴書』シートから自動コピー"]
[]
[]
[]
[null,"同意書"]
[]
[null,"私は、",{"$f":"IF(F20<>\"\",F20,\"\")","v":""},"が貴センターのエネルギー使用合理化専門員として委嘱されるに",null,null,null,null,null,null,null,null,null,"←専門員の氏名：　『1経歴書』シートから自動コピー"]
[]
[null,"際し、",{"$f":"IF(F20<>\"\",F20,\"\")","v":""},"の健康状態が良好であることを確認のうえ、委嘱されることに同意",null,null,null,null,null,null,null,null,null,"←専門員の氏名：　『1経歴書』シートから自動コピー"]
[null,"します。"]
[]
[null,null,null,null,null,"令和",null,"年",null,"月",null,"日"]
[]
[null,null,null,null,"続　柄：　　　　　　  　　　　　　　　　　        ",null,null,null,null,null,null,null,null,"←家族、該当者なしの場合は　近親者や友人など"]
[]
[null,null,null,null,"名　前：",null,null,null,null,null,"印　　"]
[]
[null,null,null,null,"住　所：　　　　　　　　　　　　　　　　　　　","〒",null,null,null,null,null,null,null,"←例：　100-1234"]
[]
[null,"　 　　　　　　　　　　　　　　　　　　　　　"]
[null,"　 　　　　　　　　　　　　　　　　　　　　　"]

{"sheet":"【記入例】添付資料","index":10,"n_rows":40,"n_cols":4,"rows_kept":40,"cut":false,"hidden":true,"merged":[[6,2,35,4],[39,2,68,4]]}
[null,null,null,"記入例"]
[null,null,null,"添付資料：様式２"]
[]
[null,null,"・今までの省エネ推進に関する活動実績"]
[null,null,"（これまでの主な経歴と省エネ推進との関わりについて簡単に記載ください。"]
[null,null,"　また、省エネ診断の業務経験についても、事業名や診断対象、主な成果など可能な範囲で説明下さい）"]
[null,null,"あ２３４５６７８９０１２３４５６７８９０１２３４５６７８９０１２３４５６７８９０１２３４５６７８９０あ２３４５６７８９０１２３４５６７８９０１２３４５６７８９０１２３４５６７８９０１２３４５６７８９０あ２３４５６７８９０１２３４５６７８９０１２３４５６７８９０１２３４５６７８９０１２３４５６７８９０あ２３４５６７８９０１２３４５６７８９０１２３４５６７８９０１２３４５６７８９０１２３４５６７８９０あ２３４５６７８９０１２３４５６７８９０１２３４５６７８９０１２３４５６７８９０１２３４５６７８９０あ２３４５６７８９０１２３４５６７８９０１２３４５６７８９０１２３４５６７８９０１２３４５６７８９０あ２３４５６７８９０１２３４５６７８９０１２３４５６７８９０１２３４５６７８９０１２３４５６７８９０あ２３４５６７８９０１２３４５６７８９０１２３４５６７８９０１２３４５６７８９０１２３４５６７８９０あ２３４５６７８９０１２３４５６７８９０１２３４５６７８９０１２３４５６７８９０１２３４５６７８９０あ２３４５６７８９０１２３４５６７８９０１２３４５６７８９０１２３４５６７８９０１２３４５６７８９０あ２３４５６７８９０１２３４５６７８９０１２３４５６７８９０１２３４５６７８９０１２３４５６７８９０あ２３４５６７８９０１２３４５６７８９０１２３４５６７８９０１２３４５６７８９０１２３４５６７８９０\nあ２３４５６７８９０１２３４５６７８９０１２３４５６７８９０１２３４５６７８９０１２３４５６７８９０あ２３４５６７８９０１２３４５６７８９０１２３４５６７８９０１２３４５６７８９０１２３４５６７８９０あ２３４５６７８９０１２３４５６７８９０１２３４５６７８９０１２３４５６７８９０１２３４５６７８９０あ２３４５６７８９０１２３４５６７８９０１２３４５６７８９０１２３４５６７８９０１２３４５６７８９０あ２３４５６７８９０１２３４５６７８９０１２３４５６７８９０１２３４５６７８９０１２３４５６７８９０あ２３４５６７８９０１２３４５６７８９０１２３４５６７８９０１２３４５６７８９０１２３４５６７８９０\n\n"]
[]
[]
[]
[]
[]
[]
[]
[]
[]
[]
[]
[]
[]
[]
[]
[]
[]
[]
[]
[]
[]
[]
[]
[]
[]
[]
[]
[]
[]
[]
[null,null,"・今後の省エネ診断に関しての抱負"]
[null,null,"（中小企業等を対象とした省エネ診断で、今後どの様に取り組みたいかなど抱負を説明下さい）"]
[null,null,{"$f":"C7","v":"あ２３４５６７８９０１２３４５６７８９０１２３４５６７８９０１２３４５６７８９０１２３４５６７８９０あ２３４５６７８９０１２３４５６７８９０１２３４５６７８９０１２３４５６７８９０１２３４５６７８９０あ２３４５６７８９０１２３４５６７８９０１２３４５６７８９０１２３４５６７８９０１２３４５６７８９０あ２３４５６７８９０１２３４５６７８９０１２３４５６７８９０１２３４５６７８９０１２３４５６７８９０あ２３４５６７８９０１２３４５６７８９０１２３４５６７８９０１２３４５６７８９０１２３４５６７８９０あ２３４５６７８９０１２３４５６７８９０１２３４５６７８９０１２３４５６７８９０１２３４５６７８９０あ２３４５６７８９０１２３４５６７８９０１２３４５６７８９０１２３４５６７８９０１２３４５６７８９０あ２３４５６７８９０１２３４５６７８９０１２３４５６７８９０１２３４５６７８９０１２３４５６７８９０あ２３４５６７８９０１２３４５６７８９０１２３４５６７８９０１２３４５６７８９０１２３４５６７８９０あ２３４５６７８９０１２３４５６７８９０１２３４５６７８９０１２３４５６７８９０１２３４５６７８９０あ２３４５６７８９０１２３４５６７８９０１２３４５６７８９０１２３４５６７８９０１２３４５６７８９０あ２３４５６７８９０１２３４５６７８９０１２３４５６７８９０１２３４５６７８９０１２３４５６７８９０\nあ２３４５６７８９０１２３４５６７８９０１２３４５６７８９０１２３４５６７８９０１２３４５６７８９０あ２３４５６７８９０１２３４５６７８９０１２３４５６７８９０１２３４５６７８９０１２３４５６７８９０あ２３４５６７８９０１２３４５６７８９０１２３４５６７８９０１２３４５６７８９０１２３４５６７８９０あ２３４５６７８９０１２３４５６７８９０１２３４５６７８９０１２３４５６７８９０１２３４５６７８９０あ２３４５６７８９０１２３４５６７８９０１２３４５６７８９０１２３４５６７８９０１２３４５６７８９０あ２３４５６７８９０１２３４５６７８９０１２３４５６７８９０１２３４５６７８９０１２３４５６７８９０\n\n"}]

{"sheet":"集計用","index":11,"n_rows":462,"n_cols":3,"rows_kept":462,"cut":false,"hidden":true,"merged":[]}
["「エネルギー使用合理化専門員　経歴書」集計用シート"]
[]
["項目","値","備考"]
["◆　『経歴書』集計部"]
["「経歴書」－書類名称","経歴書"]
["「経歴書」－書類バージョン",1.01]
["「経歴書」－バージョン改訂日","2019-07-05"]
["「経歴書」－経歴書作成日－和暦",{"$f":"IF('1経歴書'!$S$2<>\"\",'1経歴書'!$S$2,\"\")","v":"令和"}]
["「経歴書」－経歴書作成日－年",{"$f":"IF('1経歴書'!$U$2<>\"\",'1経歴書'!$U$2,\"\")","v":""}]
["「経歴書」－経歴書作成日－月",{"$f":"IF('1経歴書'!$X$2<>\"\",'1経歴書'!$X$2,\"\")","v":""}]
["「経歴書」－経歴書作成日－日",{"$f":"IF('1経歴書'!$AA$2<>\"\",'1経歴書'!$AA$2,\"\")","v":""}]
["「経歴書」－新規・更新の選択",{"$f":"IF('1経歴書'!$C$3=\"●\",1,IF('1経歴書'!$K$3=\"●\",2,0))","v":1},"選択項目　1:新規登録、2:更新登録"]
["「経歴書」－登録番号",{"$f":"IF('1経歴書'!$C$4<>\"\",'1経歴書'!$C$4,\"\")","v":"　　↑１つ選択"},"【センター記入項目】"]
["「経歴書」－初任",{"$f":"IF('1経歴書'!$K$4<>\"\",'1経歴書'!$K$4,\"\")","v":""},"【センター記入項目】"]
["「経歴書」－氏名（ふりがな）",{"$f":"IF('1経歴書'!$C$6<>\"\",'1経歴書'!$C$6,\"\")","v":""}]
["「経歴書」－氏名（漢字）",{"$f":"IF('1経歴書'!$C$7<>\"\",'1経歴書'!$C$7,\"\")","v":""}]
["「経歴書」－生年月日－和暦",{"$f":"IF('1経歴書'!$C$8<>\"\",'1経歴書'!$C$8,\"\")","v":"昭和"},"明治／大正／昭和／平成／令和"]
["「経歴書」－生年月日－和暦年",{"$f":"IF('1経歴書'!$E$8<>\"\",'1経歴書'!$E$8,\"\")","v":""}]
["「経歴書」－生年月日－西暦年",{"$f":"IF('1経歴書'!$E$9<>\"\",'1経歴書'!$E$9,\"\")","v":""}]
["「経歴書」－生年月日－月",{"$f":"IF('1経歴書'!$H$8<>\"\",'1経歴書'!$H$8,\"\")","v":""}]
["「経歴書」－生年月日－日",{"$f":"IF('1経歴書'!$K$8<>\"\",'1経歴書'!$K$8,\"\")","v":""}]
["「経歴書」－年齢",{"$f":"IF('1経歴書'!$P$8<>\"\",'1経歴書'!$P$8,\"\")","v":""},"満○○歳"]
["「経歴書」－自宅－郵便番号",{"$f":"IF('1経歴書'!$D$11<>\"\",'1経歴書'!$D$11,\"\")","v":""}]
["「経歴書」－自宅－住所１",{"$f":"IF('1経歴書'!$J$11<>\"\",'1経歴書'!$J$11,\"\")","v":""}]
["「経歴書」－自宅－住所２",{"$f":"IF('1経歴書'!$C$12<>\"\",'1経歴書'!$C$12,\"\")","v":""}]
["「経歴書」－自宅－TEL",{"$f":"IF('1経歴書'!$G$13<>\"\",'1経歴書'!$G$13,\"\")","v":""}]
["「経歴書」－自宅－FAX",{"$f":"IF('1経歴書'!$O$13<>\"\",'1経歴書'!$O$13,\"\")","v":""}]
["「経歴書」－自宅－携帯",{"$f":"IF('1経歴書'!$W$13<>\"\",'1経歴書'!$W$13,\"\")","v":""}]
["「経歴書」－自宅－E-mail",{"$f":"IF('1経歴書'!$G$14<>\"\",'1経歴書'!$G$14,\"\")","v":""}]
["「経歴書」－公共交通機関－鉄道名",{"$f":"IF('1経歴書'!$G$15<>\"\",'1経歴書'!$G$15,\"\")","v":""},"例：JR／東京メトロ／名鉄"]
["「経歴書」－公共交通機関－鉄道路線名",{"$f":"IF('1経歴書'!$N$15<>\"\",'1経歴書'!$N$15,\"\")","v":""},"○○線"]
["「経歴書」－公共交通機関－最寄駅名",{"$f":"IF('1経歴書'!$U$15<>\"\",'1経歴書'!$U$15,\"\")","v":""},"○○駅"]
["「経歴書」－公共交通機関－バス会社名",{"$f":"IF('1経歴書'!$G$16<>\"\",'1経歴書'!$G$16,\"\")","v":""}]
["「経歴書」－公共交通機関－バス路線名",{"$f":"IF('1経歴書'!$N$16<>\"\",'1経歴書'!$N$16,\"\")","v":""}]
["「経歴書」－公共交通機関－バス停名",{"$f":"IF('1経歴書'!$U$16<>\"\",'1経歴書'!$U$16,\"\")","v":""}]
["「経歴書」－公共交通機関－バス乗車距離",{"$f":"IF('1経歴書'!$N$17<>\"\",'1経歴書'!$N$17,\"\")","v":""},"○○km"]
["「経歴書」－公共交通機関－バス料金",{"$f":"IF('1経歴書'!$U$17<>\"\",'1経歴書'!$U$17,\"\")","v":""},"○○円"]
["「経歴書」－勤務先－名称（ふりがな）",{"$f":"IF('1経歴書'!$G$21<>\"\",'1経歴書'!$G$21,\"\")","v":""}]
["「経歴書」－勤務先－名称（漢字）",{"$f":"IF('1経歴書'!$G$22<>\"\",'1経歴書'!$G$22,\"\")","v":""}]
["「経歴書」－勤務先－業種",{"$f":"IF('1経歴書'!$U$21<>\"\",'1経歴書'!$U$21,\"\")","v":""}]
["「経歴書」－勤務先－所在地郵便番号",{"$f":"IF('1経歴書'!$H$23<>\"\",'1経歴書'!$H$23,\"\")","v":""}]
["「経歴書」－勤務先－所在地１",{"$f":"IF('1経歴書'!$N$23<>\"\",'1経歴書'!$N$23,\"\")","v":""}]
["「経歴書」－勤務先－所在地２",{"$f":"IF('1経歴書'!$G$24<>\"\",'1経歴書'!$G$24,\"\")","v":""}]
["「経歴書」－勤務先－所在地３",{"$f":"IF('1経歴書'!$G$25<>\"\",'1経歴書'!$G$25,\"\")","v":""}]
["「経歴書」－勤務先－TEL",{"$f":"IF('1経歴書'!$K$26<>\"\",'1経歴書'!$K$26,\"\")","v":""}]
["「経歴書」－勤務先－FAX",{"$f":"IF('1経歴書'!$W$26<>\"\",'1経歴書'!$W$26,\"\")","v":""}]
["「経歴書」－勤務先－E-mail",{"$f":"IF('1経歴書'!$K$27<>\"\",'1経歴書'!$K$27,\"\")","v":""}]
["「経歴書」－勤務先－会社携帯",{"$f":"IF('1経歴書'!$W$27<>\"\",'1経歴書'!$W$27,\"\")","v":""}]
["「経歴書」－勤務先－所属部署",{"$f":"IF('1経歴書'!$K$28<>\"\",'1経歴書'!$K$28,\"\")","v":""}]
["「経歴書」－勤務先－役職",{"$f":"IF('1経歴書'!$W$28<>\"\",'1経歴書'!$W$28,\"\")","v":""}]
["「経歴書」－上司承諾－要否",{"$f":"IF('1経歴書'!#REF!=\"●\",1,IF('1経歴書'!#REF!=\"●\",2,0))","v":{"$error":"#REF!"}},"選択項目　1:要、2:否"]
["「経歴書」－上司承諾－上司所属部署",{"$f":"IF('1経歴書'!$K$29<>\"\",'1経歴書'!$K$29,\"\")","v":""}]
["「経歴書」－上司承諾－役職",{"$f":"IF('1経歴書'!$K$30<>\"\",'1経歴書'!$K$30,\"\")","v":""}]
["「経歴書」－上司承諾－氏名",{"$f":"IF('1経歴書'!$W$30<>\"\",'1経歴書'!$W$30,\"\")","v":""}]
["「経歴書」－上司承諾－TEL",{"$f":"IF('1経歴書'!$K$31<>\"\",'1経歴書'!$K$31,\"\")","v":""}]
["「経歴書」－連絡先－電話",{"$f":"IF('1経歴書'!$C$33=\"●\",1,IF('1経歴書'!$C$34=\"●\",2,IF('1経歴書'!$J$33=\"●\",3,IF('1経歴書'!$J$34=\"●\",4,0))))","v":0},"選択項目　1:自宅、2:勤務先、3:個人携帯、4:会社携帯"]
["「経歴書」－連絡先－メール－自宅",{"$f":"IF('1経歴書'!$Q$33=\"ゝ\",TRUE,FALSE)","v":false},"チェック項目　FALSE ：□、TRUE：ゝ"]
["「経歴書」－連絡先－メール－勤務先",{"$f":"IF('1経歴書'!$Q$34=\"ゝ\",TRUE,FALSE)","v":false},"チェック項目　FALSE ：□、TRUE：ゝ"]
["「経歴書」－連絡先－資料送付先",{"$f":"IF('1経歴書'!$X$33=\"●\",1,IF('1経歴書'!$X$34=\"●\",2,0))","v":0},"選択項目　1:自宅、2:勤務先"]
["「経歴書」－資格等－エネルギー管理士資格所持",{"$f":"IF('1経歴書'!$D$37=\"ゝ\",TRUE,FALSE)","v":false},"チェック項目　FALSE ：□、TRUE：ゝ"]
["「経歴書」－資格等－エネルギー管理士取得年度",{"$f":"IF('1経歴書'!#REF!<>\"\",'1経歴書'!#REF!,\"\")","v":{"$error":"#REF!"}}]
["「経歴書」－資格等－エネルギー管理士受験科目－熱",{"$f":"IF('1経歴書'!#REF!=\"ゝ\",TRUE,FALSE)","v":{"$error":"#REF!"}},"チェック項目　FALSE ：□、TRUE：ゝ"]
["「経歴書」－資格等－エネルギー管理士受験科目－電気",{"$f":"IF('1経歴書'!#REF!=\"ゝ\",TRUE,FALSE)","v":{"$error":"#REF!"}},"チェック項目　FALSE ：□、TRUE：ゝ"]
["「経歴書」－資格等－エネルギー管理講習　新規講習修了",{"$f":"IF('1経歴書'!$C$36=\"ゝ\",TRUE,FALSE)","v":false},"チェック項目　FALSE ：□、TRUE：ゝ"]
["「経歴書」－資格等－エネルギー診断プロフェッショナル認定",{"$f":"IF('1経歴書'!$C$38=\"ゝ\",TRUE,FALSE)","v":false},"チェック項目　FALSE ：□、TRUE：ゝ"]
["「経歴書」－資格等－技術士（機械）",{"$f":"IF('1経歴書'!$C$39=\"ゝ\",TRUE,FALSE)","v":false},"チェック項目　FALSE ：□、TRUE：ゝ"]
["「経歴書」－資格等－技術士（電気電子）",{"$f":"IF('1経歴書'!$Q$39=\"ゝ\",TRUE,FALSE)","v":false},"チェック項目　FALSE ：□、TRUE：ゝ"]
["「経歴書」－資格等－技術士（化学）",{"$f":"IF('1経歴書'!$C$40=\"ゝ\",TRUE,FALSE)","v":false},"チェック項目　FALSE ：□、TRUE：ゝ"]
["「経歴書」－資格等－技術士（衛生工学）",{"$f":"IF('1経歴書'!$Q$40=\"ゝ\",TRUE,FALSE)","v":false},"チェック項目　FALSE ：□、TRUE：ゝ"]
["「経歴書」－資格等－技術士（環境）",{"$f":"IF('1経歴書'!$C$41=\"ゝ\",TRUE,FALSE)","v":false},"チェック項目　FALSE ：□、TRUE：ゝ"]
["「経歴書」－資格等－一級建築士",{"$f":"IF('1経歴書'!$Q$41=\"ゝ\",TRUE,FALSE)","v":false},"チェック項目　FALSE ：□、TRUE：ゝ"]
["「経歴書」－資格等－電気主任技術者（１種）",{"$f":"IF('1経歴書'!$C$42=\"ゝ\",TRUE,FALSE)","v":false},"チェック項目　FALSE ：□、TRUE：ゝ"]
["「経歴書」－資格等－電気主任技術者（２種）",{"$f":"IF('1経歴書'!$Q$42=\"ゝ\",TRUE,FALSE)","v":false},"チェック項目　FALSE ：□、TRUE：ゝ"]
["「経歴書」－資格等－電気主任技術者（３種）",{"$f":"IF('1経歴書'!$C$43=\"ゝ\",TRUE,FALSE)","v":false},"チェック項目　FALSE ：□、TRUE：ゝ"]
["「経歴書」－資格等－建築設備士",{"$f":"IF('1経歴書'!$Q$43=\"ゝ\",TRUE,FALSE)","v":false},"チェック項目　FALSE ：□、TRUE：ゝ"]
["「経歴書」－資格等－ボイラータービン主任技術者（１種）",{"$f":"IF('1経歴書'!$C$44=\"ゝ\",TRUE,FALSE)","v":false},"チェック項目　FALSE ：□、TRUE：ゝ"]
["「経歴書」－資格等－ボイラータービン主任技術者（２種）",{"$f":"IF('1経歴書'!$Q$44=\"ゝ\",TRUE,FALSE)","v":false},"チェック項目　FALSE ：□、TRUE：ゝ"]
["「経歴書」－資格等－ボイラー技士（特級）",{"$f":"IF('1経歴書'!$C$45=\"ゝ\",TRUE,FALSE)","v":false},"チェック項目　FALSE ：□、TRUE：ゝ"]
["「経歴書」－資格等－高圧ガス製造保安責任者（甲種機械）",{"$f":"IF('1経歴書'!$Q$45=\"ゝ\",TRUE,FALSE)","v":false},"チェック項目　FALSE ：□、TRUE：ゝ"]
["「経歴書」－資格等－高圧ガス製造保安責任者（甲種化学）",{"$f":"IF('1経歴書'!$C$46=\"ゝ\",TRUE,FALSE)","v":false},"チェック項目　FALSE ：□、TRUE：ゝ"]
["「経歴書」－資格等－その他の資格",{"$f":"IF('1経歴書'!$G$47<>\"\",'1経歴書'!$G$47,\"\")","v":""}]
["「経歴書」－専門分野－熱",{"$f":"IF('1経歴書'!$G$48<>\"\",'1経歴書'!$G$48,\"\")","v":""},"◎：得意である、○：できる、空欄：不得意である"]
["「経歴書」－専門分野－電気",{"$f":"IF('1経歴書'!$L$48<>\"\",'1経歴書'!$L$48,\"\")","v":""},"◎：得意である、○：できる、空欄：不得意である"]
["「経歴書」－専門分野－工場",{"$f":"IF('1経歴書'!$U$48<>\"\",'1経歴書'!$U$48,\"\")","v":""},"◎：得意である、○：できる、空欄：不得意である"]
["「経歴書」－専門分野－ビル",{"$f":"IF('1経歴書'!$Z$48<>\"\",'1経歴書'!$Z$48,\"\")","v":""},"◎：得意である、○：できる、空欄：不得意である"]
["「経歴書」－得意とする業種－工場１",{"$f":"IF('1経歴書'!$G$51<>\"\",'1経歴書'!$G$51,\"\")","v":""},"別表2 から選択。"]
["「経歴書」－得意とする業種－工場２",{"$f":"IF('1経歴書'!$O$51<>\"\",'1経歴書'!$O$51,\"\")","v":""},"別表2 から選択。"]
["「経歴書」－得意とする業種－工場３",{"$f":"IF('1経歴書'!$W$51<>\"\",'1経歴書'!$W$51,\"\")","v":""},"別表2 から選択。"]
["「経歴書」－得意とする業種－ビル",{"$f":"IF('1経歴書'!$J$52<>\"\",'1経歴書'!$J$52,\"\")","v":""}]
["「経歴書」－省エネ診断への取組姿勢",{"$f":"IF('1経歴書'!$C$53<>\"\",'1経歴書'!$C$53,\"\")","v":""}]
["「経歴書」－専門員制度を何で知りましたか",{"$f":"IF('1経歴書'!$C$54=\"●\",1,IF('1経歴書'!$C$55=\"●\",2,IF('1経歴書'!$C$56=\"●\",3,IF('1経歴書'!$C$57=\"●\",4,0))))","v":0},"選択項目　1:専門員の紹介、2:診断受診、3:セミナー等、4:その他"]
["「経歴書」－紹介者名",{"$f":"IF('1経歴書'!$Q$54<>\"\",'1経歴書'!$Q$54,\"\")","v":""}]
["「経歴書」－その他記入欄",{"$f":"IF('1経歴書'!$H$57<>\"\",'1経歴書'!$H$57,\"\")","v":""}]
["「経歴書」－応募の動機",{"$f":"IF('1経歴書'!$C$58<>\"\",'1経歴書'!$C$58,\"\")","v":""}]
["「経歴書」－診断の応諾頻度",{"$f":"IF('1経歴書'!$C$59<>\"\",'1経歴書'!$C$59,\"\")","v":""}]
["「経歴書」－上記に関連する事情",{"$f":"IF('1経歴書'!$C$60<>\"\",'1経歴書'!$C$60,\"\")","v":""}]
["「経歴書」－学歴・博士取得など１－年",{"$f":"IF('1経歴書'!$E$61<>\"\",'1経歴書'!$E$61,\"\")","v":""}]
["「経歴書」－学歴・博士取得など１－月",{"$f":"IF('1経歴書'!$H$61<>\"\",'1経歴書'!$H$61,\"\")","v":""}]
["「経歴書」－学歴・博士取得など１－資格",{"$f":"IF('1経歴書'!$J$61<>\"\",'1経歴書'!$J$61,\"\")","v":""}]
["「経歴書」－学歴・博士取得など２－年",{"$f":"IF('1経歴書'!$E$62<>\"\",'1経歴書'!$E$62,\"\")","v":""}]
["「経歴書」－学歴・博士取得など２－月",{"$f":"IF('1経歴書'!$H$62<>\"\",'1経歴書'!$H$62,\"\")","v":""}]
["「経歴書」－学歴・博士取得など２－資格",{"$f":"IF('1経歴書'!$J$62<>\"\",'1経歴書'!$J$62,\"\")","v":""}]
["「経歴書」－学歴・博士取得など３－年",{"$f":"IF('1経歴書'!$E$63<>\"\",'1経歴書'!$E$63,\"\")","v":""}]
["「経歴書」－学歴・博士取得など３－月",{"$f":"IF('1経歴書'!$H$63<>\"\",'1経歴書'!$H$63,\"\")","v":""}]
["「経歴書」－学歴・博士取得など３－資格",{"$f":"IF('1経歴書'!$J$63<>\"\",'1経歴書'!$J$63,\"\")","v":""}]
["「経歴書」－主な職歴１－開始年",{"$f":"IF('1経歴書'!$E$64<>\"\",'1経歴書'!$E$64,\"\")","v":""}]
["「経歴書」－主な職歴１－開始月",{"$f":"IF('1経歴書'!$H$64<>\"\",'1経歴書'!$H$64,\"\")","v":""}]
["「経歴書」－主な職歴１－終了年",{"$f":"IF('1経歴書'!$K$64<>\"\",'1経歴書'!$K$64,\"\")","v":""}]
["「経歴書」－主な職歴１－終了月",{"$f":"IF('1経歴書'!$N$64<>\"\",'1経歴書'!$N$64,\"\")","v":""}]
["「経歴書」－主な職歴１－職歴",{"$f":"IF('1経歴書'!$P$64<>\"\",'1経歴書'!$P$64,\"\")","v":""}]
["「経歴書」－主な職歴２－開始年",{"$f":"IF('1経歴書'!$E$65<>\"\",'1経歴書'!$E$65,\"\")","v":""}]
["「経歴書」－主な職歴２－開始月",{"$f":"IF('1経歴書'!$H$65<>\"\",'1経歴書'!$H$65,\"\")","v":""}]
["「経歴書」－主な職歴２－終了年",{"$f":"IF('1経歴書'!$K$65<>\"\",'1経歴書'!$K$65,\"\")","v":""}]
["「経歴書」－主な職歴２－終了月",{"$f":"IF('1経歴書'!$N$65<>\"\",'1経歴書'!$N$65,\"\")","v":""}]
["「経歴書」－主な職歴２－職歴",{"$f":"IF('1経歴書'!$P$65<>\"\",'1経歴書'!$P$65,\"\")","v":""}]
["「経歴書」－主な職歴３－開始年",{"$f":"IF('1経歴書'!$E$66<>\"\",'1経歴書'!$E$66,\"\")","v":""}]
["「経歴書」－主な職歴３－開始月",{"$f":"IF('1経歴書'!$H$66<>\"\",'1経歴書'!$H$66,\"\")","v":""}]
["「経歴書」－主な職歴３－終了年",{"$f":"IF('1経歴書'!$K$66<>\"\",'1経歴書'!$K$66,\"\")","v":""}]
["「経歴書」－主な職歴３－終了月",{"$f":"IF('1経歴書'!$N$66<>\"\",'1経歴書'!$N$66,\"\")","v":""}]
["「経歴書」－主な職歴３－職歴",{"$f":"IF('1経歴書'!$P$66<>\"\",'1経歴書'!$P$66,\"\")","v":""}]
["「経歴書」－主な職歴４－開始年",{"$f":"IF('1経歴書'!$E$67<>\"\",'1経歴書'!$E$67,\"\")","v":""}]
["「経歴書」－主な職歴４－開始月",{"$f":"IF('1経歴書'!$H$67<>\"\",'1経歴書'!$H$67,\"\")","v":""}]
["「経歴書」－主な職歴４－終了年",{"$f":"IF('1経歴書'!$K$67<>\"\",'1経歴書'!$K$67,\"\")","v":""}]
["「経歴書」－主な職歴４－終了月",{"$f":"IF('1経歴書'!$N$67<>\"\",'1経歴書'!$N$67,\"\")","v":""}]
["「経歴書」－主な職歴４－職歴",{"$f":"IF('1経歴書'!$P$67<>\"\",'1経歴書'!$P$67,\"\")","v":""}]
["「経歴書」－ECCJ勤務…登録及び表彰経験１－開始年",{"$f":"IF('1経歴書'!$E$68<>\"\",'1経歴書'!$E$68,\"\")","v":""}]
["「経歴書」－ECCJ勤務…登録及び表彰経験１－開始月",{"$f":"IF('1経歴書'!$H$68<>\"\",'1経歴書'!$H$68,\"\")","v":""}]
["「経歴書」－ECCJ勤務…登録及び表彰経験１－終了年",{"$f":"IF('1経歴書'!$K$68<>\"\",'1経歴書'!$K$68,\"\")","v":""}]
["「経歴書」－ECCJ勤務…登録及び表彰経験１－終了月",{"$f":"IF('1経歴書'!$N$68<>\"\",'1経歴書'!$N$68,\"\")","v":""}]
["「経歴書」－ECCJ勤務…登録及び表彰経験１－職歴",{"$f":"IF('1経歴書'!$P$68<>\"\",'1経歴書'!$P$68,\"\")","v":""}]
["「経歴書」－ECCJ勤務…登録及び表彰経験２－開始年",{"$f":"IF('1経歴書'!$E$69<>\"\",'1経歴書'!$E$69,\"\")","v":""}]
["「経歴書」－ECCJ勤務…登録及び表彰経験２－開始月",{"$f":"IF('1経歴書'!$H$69<>\"\",'1経歴書'!$H$69,\"\")","v":""}]
["「経歴書」－ECCJ勤務…登録及び表彰経験２－終了年",{"$f":"IF('1経歴書'!$K$69<>\"\",'1経歴書'!$K$69,\"\")","v":""}]
["「経歴書」－ECCJ勤務…登録及び表彰経験２－終了月",{"$f":"IF('1経歴書'!$N$69<>\"\",'1経歴書'!$N$69,\"\")","v":""}]
["「経歴書」－ECCJ勤務…登録及び表彰経験２－職歴",{"$f":"IF('1経歴書'!$P$69<>\"\",'1経歴書'!$P$69,\"\")","v":""}]
["「経歴書」－ECCJ勤務…登録及び表彰経験３－開始年",{"$f":"IF('1経歴書'!$E$70<>\"\",'1経歴書'!$E$70,\"\")","v":""}]
["「経歴書」－ECCJ勤務…登録及び表彰経験３－開始月",{"$f":"IF('1経歴書'!$H$70<>\"\",'1経歴書'!$H$70,\"\")","v":""}]
["「経歴書」－ECCJ勤務…登録及び表彰経験３－終了年",{"$f":"IF('1経歴書'!$K$70<>\"\",'1経歴書'!$K$70,\"\")","v":""}]
["「経歴書」－ECCJ勤務…登録及び表彰経験３－終了月",{"$f":"IF('1経歴書'!$N$70<>\"\",'1経歴書'!$N$70,\"\")","v":""}]
["「経歴書」－ECCJ勤務…登録及び表彰経験３－職歴",{"$f":"IF('1経歴書'!$P$70<>\"\",'1経歴書'!$P$70,\"\")","v":""}]
["「経歴書」－ECCJ勤務…登録及び表彰経験４－開始年",{"$f":"IF('1経歴書'!$E$71<>\"\",'1経歴書'!$E$71,\"\")","v":""}]
["「経歴書」－ECCJ勤務…登録及び表彰経験４－開始月",{"$f":"IF('1経歴書'!$H$71<>\"\",'1経歴書'!$H$71,\"\")","v":""}]
["「経歴書」－ECCJ勤務…登録及び表彰経験４－終了年",{"$f":"IF('1経歴書'!$K$71<>\"\",'1経歴書'!$K$71,\"\")","v":""}]
["「経歴書」－ECCJ勤務…登録及び表彰経験４－終了月",{"$f":"IF('1経歴書'!$N$71<>\"\",'1経歴書'!$N$71,\"\")","v":""}]
["「経歴書」－ECCJ勤務…登録及び表彰経験４－職歴",{"$f":"IF('1経歴書'!$P$71<>\"\",'1経歴書'!$P$71,\"\")","v":""}]
["「経歴書」－公的機関の登録及び表彰経験１－開始年",{"$f":"IF('1経歴書'!$E$72<>\"\",'1経歴書'!$E$72,\"\")","v":""}]
["「経歴書」－公的機関の登録及び表彰経験１－開始月",{"$f":"IF('1経歴書'!$H$72<>\"\",'1経歴書'!$H$72,\"\")","v":""}]
["「経歴書」－公的機関の登録及び表彰経験１－終了年",{"$f":"IF('1経歴書'!$K$72<>\"\",'1経歴書'!$K$72,\"\")","v":""}]
["「経歴書」－公的機関の登録及び表彰経験１－終了月",{"$f":"IF('1経歴書'!$N$72<>\"\",'1経歴書'!$N$72,\"\")","v":""}]
["「経歴書」－公的機関の登録及び表彰経験１－職歴",{"$f":"IF('1経歴書'!$P$72<>\"\",'1経歴書'!$P$72,\"\")","v":""}]
["「経歴書」－公的機関の登録及び表彰経験２－開始年",{"$f":"IF('1経歴書'!$E$73<>\"\",'1経歴書'!$E$73,\"\")","v":""}]
["「経歴書」－公的機関の登録及び表彰経験２－開始月",{"$f":"IF('1経歴書'!$H$73<>\"\",'1経歴書'!$H$73,\"\")","v":""}]
["「経歴書」－公的機関の登録及び表彰経験２－終了年",{"$f":"IF('1経歴書'!$K$73<>\"\",'1経歴書'!$K$73,\"\")","v":""}]
["「経歴書」－公的機関の登録及び表彰経験２－終了月",{"$f":"IF('1経歴書'!$N$73<>\"\",'1経歴書'!$N$73,\"\")","v":""}]
["「経歴書」－公的機関の登録及び表彰経験２－職歴",{"$f":"IF('1経歴書'!$P$73<>\"\",'1経歴書'!$P$73,\"\")","v":""}]
["「経歴書」－公的機関の登録及び表彰経験３－開始年",{"$f":"IF('1経歴書'!$E$74<>\"\",'1経歴書'!$E$74,\"\")","v":""}]
["「経歴書」－公的機関の登録及び表彰経験３－開始月",{"$f":"IF('1経歴書'!$H$74<>\"\",'1経歴書'!$H$74,\"\")","v":""}]
["「経歴書」－公的機関の登録及び表彰経験３－終了年",{"$f":"IF('1経歴書'!$K$74<>\"\",'1経歴書'!$K$74,\"\")","v":""}]
["「経歴書」－公的機関の登録及び表彰経験３－終了月",{"$f":"IF('1経歴書'!$N$74<>\"\",'1経歴書'!$N$74,\"\")","v":""}]
["「経歴書」－公的機関の登録及び表彰経験３－職歴",{"$f":"IF('1経歴書'!$P$74<>\"\",'1経歴書'!$P$74,\"\")","v":""}]
["「経歴書」－公的機関の登録及び表彰経験４－開始年",{"$f":"IF('1経歴書'!$E$75<>\"\",'1経歴書'!$E$75,\"\")","v":""}]
["「経歴書」－公的機関の登録及び表彰経験４－開始月",{"$f":"IF('1経歴書'!$H$75<>\"\",'1経歴書'!$H$75,\"\")","v":""}]
["「経歴書」－公的機関の登録及び表彰経験４－終了年",{"$f":"IF('1経歴書'!$K$75<>\"\",'1経歴書'!$K$75,\"\")","v":""}]
["「経歴書」－公的機関の登録及び表彰経験４－終了月",{"$f":"IF('1経歴書'!$N$75<>\"\",'1経歴書'!$N$75,\"\")","v":""}]
["「経歴書」－公的機関の登録及び表彰経験４－職歴",{"$f":"IF('1経歴書'!$P$75<>\"\",'1経歴書'!$P$75,\"\")","v":""}]
["「経歴書」－省エネ業務経験１－開始年",{"$f":"IF('1経歴書'!$E$76<>\"\",'1経歴書'!$E$76,\"\")","v":""}]
["「経歴書」－省エネ業務経験１－開始月",{"$f":"IF('1経歴書'!$H$76<>\"\",'1経歴書'!$H$76,\"\")","v":""}]
["「経歴書」－省エネ業務経験１－終了年",{"$f":"IF('1経歴書'!$K$76<>\"\",'1経歴書'!$K$76,\"\")","v":""}]
["「経歴書」－省エネ業務経験１－終了月",{"$f":"IF('1経歴書'!$N$76<>\"\",'1経歴書'!$N$76,\"\")","v":""}]
["「経歴書」－省エネ業務経験１－職歴",{"$f":"IF('1経歴書'!$P$76<>\"\",'1経歴書'!$P$76,\"\")","v":""}]
["「経歴書」－省エネ業務経験２－開始年",{"$f":"IF('1経歴書'!$E$77<>\"\",'1経歴書'!$E$77,\"\")","v":""}]
["「経歴書」－省エネ業務経験２－開始月",{"$f":"IF('1経歴書'!$H$77<>\"\",'1経歴書'!$H$77,\"\")","v":""}]
["「経歴書」－省エネ業務経験２－終了年",{"$f":"IF('1経歴書'!$K$77<>\"\",'1経歴書'!$K$77,\"\")","v":""}]
["「経歴書」－省エネ業務経験２－終了月",{"$f":"IF('1経歴書'!$N$77<>\"\",'1経歴書'!$N$77,\"\")","v":""}]
["「経歴書」－省エネ業務経験２－職歴",{"$f":"IF('1経歴書'!$P$77<>\"\",'1経歴書'!$P$77,\"\")","v":""}]
["「経歴書」－省エネ業務経験３－開始年",{"$f":"IF('1経歴書'!$E$78<>\"\",'1経歴書'!$E$78,\"\")","v":""}]
["「経歴書」－省エネ業務経験３－開始月",{"$f":"IF('1経歴書'!$H$78<>\"\",'1経歴書'!$H$78,\"\")","v":""}]
["「経歴書」－省エネ業務経験３－終了年",{"$f":"IF('1経歴書'!$K$78<>\"\",'1経歴書'!$K$78,\"\")","v":""}]
["「経歴書」－省エネ業務経験３－終了月",{"$f":"IF('1経歴書'!$N$78<>\"\",'1経歴書'!$N$78,\"\")","v":""}]
["「経歴書」－省エネ業務経験３－職歴",{"$f":"IF('1経歴書'!$P$78<>\"\",'1経歴書'!$P$78,\"\")","v":""}]
["「経歴書」－専門誌等の投稿１－開始年",{"$f":"IF('1経歴書'!$E$79<>\"\",'1経歴書'!$E$79,\"\")","v":""}]
["「経歴書」－専門誌等の投稿１－開始月",{"$f":"IF('1経歴書'!$H$79<>\"\",'1経歴書'!$H$79,\"\")","v":""}]
["「経歴書」－専門誌等の投稿１－終了年",{"$f":"IF('1経歴書'!$K$79<>\"\",'1経歴書'!$K$79,\"\")","v":""}]
["「経歴書」－専門誌等の投稿１－終了月",{"$f":"IF('1経歴書'!$N$79<>\"\",'1経歴書'!$N$79,\"\")","v":""}]
["「経歴書」－専門誌等の投稿１－職歴",{"$f":"IF('1経歴書'!$P$79<>\"\",'1経歴書'!$P$79,\"\")","v":""}]
["「経歴書」－専門誌等の投稿２－開始年",{"$f":"IF('1経歴書'!$E$80<>\"\",'1経歴書'!$E$80,\"\")","v":""}]
["「経歴書」－専門誌等の投稿２－開始月",{"$f":"IF('1経歴書'!$H$80<>\"\",'1経歴書'!$H$80,\"\")","v":""}]
["「経歴書」－専門誌等の投稿２－終了年",{"$f":"IF('1経歴書'!$K$80<>\"\",'1経歴書'!$K$80,\"\")","v":""}]
["「経歴書」－専門誌等の投稿２－終了月",{"$f":"IF('1経歴書'!$N$80<>\"\",'1経歴書'!$N$80,\"\")","v":""}]
["「経歴書」－専門誌等の投稿２－職歴",{"$f":"IF('1経歴書'!$P$80<>\"\",'1経歴書'!$P$80,\"\")","v":""}]
["「経歴書」－専門誌等の投稿３－開始年",{"$f":"IF('1経歴書'!$E$81<>\"\",'1経歴書'!$E$81,\"\")","v":""}]
["「経歴書」－専門誌等の投稿３－開始月",{"$f":"IF('1経歴書'!$H$81<>\"\",'1経歴書'!$H$81,\"\")","v":""}]
["「経歴書」－専門誌等の投稿３－終了年",{"$f":"IF('1経歴書'!$K$81<>\"\",'1経歴書'!$K$81,\"\")","v":""}]
["「経歴書」－専門誌等の投稿３－終了月",{"$f":"IF('1経歴書'!$N$81<>\"\",'1経歴書'!$N$81,\"\")","v":""}]
["「経歴書」－専門誌等の投稿３－職歴",{"$f":"IF('1経歴書'!$P$81<>\"\",'1経歴書'!$P$81,\"\")","v":""}]
["「経歴書」－海外勤務・出張－延べ回数",{"$f":"IF('1経歴書'!$G$82<>\"\",'1経歴書'!$G$82,\"\")","v":""}]
["「経歴書」－海外勤務・出張－延べ日数",{"$f":"IF('1経歴書'!$M$82<>\"\",'1経歴書'!$M$82,\"\")","v":""}]
["「経歴書」－海外勤務・出張－主な国名",{"$f":"IF('1経歴書'!$S$82<>\"\",'1経歴書'!$S$82,\"\")","v":""}]
["「経歴書」－備　考（要望、連絡事項他）",{"$f":"IF('1経歴書'!$C$83<>\"\",'1経歴書'!$C$83,\"\")","v":""}]
["◆　『経歴書別紙　専門員技術分野』集計部"]
["「技術分野」－氏名",{"$f":"IF('2技術分野(別紙1)'!$J$3<>\"\",'2技術分野(別紙1)'!$J$3,\"\")","v":""}]
["「技術分野」－空調設備１－チェック",{"$f":"IF('2技術分野(別紙1)'!$B$8=\"ゝ\",TRUE,FALSE)","v":false},"チェック項目　FALSE ：□、TRUE：ゝ"]
["「技術分野」－空調設備１－項目名",{"$f":"IF('2技術分野(別紙1)'!$C$8<>\"\",'2技術分野(別紙1)'!$C$8,\"\")","v":"空調・換気設備"},"空調・換気設備"]
["「技術分野」－空調設備２－チェック",{"$f":"IF('2技術分野(別紙1)'!$B$9=\"ゝ\",TRUE,FALSE)","v":false},"チェック項目　FALSE ：□、TRUE：ゝ"]
["「技術分野」－空調設備２－項目名",{"$f":"IF('2技術分野(別紙1)'!$C$9<>\"\",'2技術分野(別紙1)'!$C$9,\"\")","v":"熱源・熱搬送設備"},"熱源・熱搬送設備"]
["「技術分野」－空調設備３－チェック",{"$f":"IF('2技術分野(別紙1)'!$B$10=\"ゝ\",TRUE,FALSE)","v":false},"チェック項目　FALSE ：□、TRUE：ゝ"]
["「技術分野」－空調設備３－項目名",{"$f":"IF('2技術分野(別紙1)'!$C$10<>\"\",'2技術分野(別紙1)'!$C$10,\"\")","v":""},"自由記入項目"]
["「技術分野」－空調設備４－チェック",{"$f":"IF('2技術分野(別紙1)'!$B$11=\"ゝ\",TRUE,FALSE)","v":false},"チェック項目　FALSE ：□、TRUE：ゝ"]
["「技術分野」－空調設備４－項目名",{"$f":"IF('2技術分野(別紙1)'!$C$11<>\"\",'2技術分野(別紙1)'!$C$11,\"\")","v":""},"自由記入項目"]
["「技術分野」－空調設備５－チェック",{"$f":"IF('2技術分野(別紙1)'!$B$12=\"ゝ\",TRUE,FALSE)","v":false},"チェック項目　FALSE ：□、TRUE：ゝ"]
["「技術分野」－空調設備５－項目名",{"$f":"IF('2技術分野(別紙1)'!$C$12<>\"\",'2技術分野(別紙1)'!$C$12,\"\")","v":""},"自由記入項目"]
["「技術分野」－空調設備６－チェック",{"$f":"IF('2技術分野(別紙1)'!$B$13=\"ゝ\",TRUE,FALSE)","v":false},"チェック項目　FALSE ：□、TRUE：ゝ"]
["「技術分野」－空調設備６－項目名",{"$f":"IF('2技術分野(別紙1)'!$C$13<>\"\",'2技術分野(別紙1)'!$C$13,\"\")","v":""},"自由記入項目"]
["「技術分野」－空調設備７－チェック",{"$f":"IF('2技術分野(別紙1)'!$B$14=\"ゝ\",TRUE,FALSE)","v":false},"チェック項目　FALSE ：□、TRUE：ゝ"]
["「技術分野」－空調設備７－項目名",{"$f":"IF('2技術分野(別紙1)'!$C$14<>\"\",'2技術分野(別紙1)'!$C$14,\"\")","v":""},"自由記入項目"]
["「技術分野」－空調設備８－チェック",{"$f":"IF('2技術分野(別紙1)'!$B$15=\"ゝ\",TRUE,FALSE)","v":false},"チェック項目　FALSE ：□、TRUE：ゝ"]
["「技術分野」－空調設備８－項目名",{"$f":"IF('2技術分野(別紙1)'!$C$15<>\"\",'2技術分野(別紙1)'!$C$15,\"\")","v":""},"自由記入項目"]
["「技術分野」－熱関連設備１－チェック",{"$f":"IF('2技術分野(別紙1)'!$D$8=\"ゝ\",TRUE,FALSE)","v":false},"チェック項目　FALSE ：□、TRUE：ゝ"]
["「技術分野」－熱関連設備１－項目名",{"$f":"IF('2技術分野(別紙1)'!$E$8<>\"\",'2技術分野(別紙1)'!$E$8,\"\")","v":"蒸気設備"},"蒸気設備"]
["「技術分野」－熱関連設備２－チェック",{"$f":"IF('2技術分野(別紙1)'!$D$9=\"ゝ\",TRUE,FALSE)","v":false},"チェック項目　FALSE ：□、TRUE：ゝ"]
["「技術分野」－熱関連設備２－項目名",{"$f":"IF('2技術分野(別紙1)'!$E$9<>\"\",'2技術分野(別紙1)'!$E$9,\"\")","v":"熱交換器"},"熱交換器"]
["「技術分野」－熱関連設備３－チェック",{"$f":"IF('2技術分野(別紙1)'!$D$10=\"ゝ\",TRUE,FALSE)","v":false},"チェック項目　FALSE ：□、TRUE：ゝ"]
["「技術分野」－熱関連設備３－項目名",{"$f":"IF('2技術分野(別紙1)'!$E$10<>\"\",'2技術分野(別紙1)'!$E$10,\"\")","v":"廃熱回収設備"},"廃熱回収設備"]
["「技術分野」－熱関連設備４－チェック",{"$f":"IF('2技術分野(別紙1)'!$D$11=\"ゝ\",TRUE,FALSE)","v":false},"チェック項目　FALSE ：□、TRUE：ゝ"]
["「技術分野」－熱関連設備４－項目名",{"$f":"IF('2技術分野(別紙1)'!$E$11<>\"\",'2技術分野(別紙1)'!$E$11,\"\")","v":"保温設備"},"保温設備"]
["「技術分野」－熱関連設備５－チェック",{"$f":"IF('2技術分野(別紙1)'!$D$12=\"ゝ\",TRUE,FALSE)","v":false},"チェック項目　FALSE ：□、TRUE：ゝ"]
["「技術分野」－熱関連設備５－項目名",{"$f":"IF('2技術分野(別紙1)'!$E$12<>\"\",'2技術分野(別紙1)'!$E$12,\"\")","v":"冷蔵・冷凍・保冷設備"},"冷蔵・冷凍・保冷設備"]
["「技術分野」－熱関連設備６－チェック",{"$f":"IF('2技術分野(別紙1)'!$D$13=\"ゝ\",TRUE,FALSE)","v":false},"チェック項目　FALSE ：□、TRUE：ゝ"]
["「技術分野」－熱関連設備６－項目名",{"$f":"IF('2技術分野(別紙1)'!$E$13<>\"\",'2技術分野(別紙1)'!$E$13,\"\")","v":""},"自由記入項目"]
["「技術分野」－熱関連設備７－チェック",{"$f":"IF('2技術分野(別紙1)'!$D$14=\"ゝ\",TRUE,FALSE)","v":false},"チェック項目　FALSE ：□、TRUE：ゝ"]
["「技術分野」－熱関連設備７－項目名",{"$f":"IF('2技術分野(別紙1)'!$E$14<>\"\",'2技術分野(別紙1)'!$E$14,\"\")","v":""},"自由記入項目"]
["「技術分野」－熱関連設備８－チェック",{"$f":"IF('2技術分野(別紙1)'!$D$15=\"ゝ\",TRUE,FALSE)","v":false},"チェック項目　FALSE ：□、TRUE：ゝ"]
["「技術分野」－熱関連設備８－項目名",{"$f":"IF('2技術分野(別紙1)'!$E$15<>\"\",'2技術分野(別紙1)'!$E$15,\"\")","v":""},"自由記入項目"]
["「技術分野」－燃焼設備等１－チェック",{"$f":"IF('2技術分野(別紙1)'!$F$8=\"ゝ\",TRUE,FALSE)","v":false},"チェック項目　FALSE ：□、TRUE：ゝ"]
["「技術分野」－燃焼設備等１－項目名",{"$f":"IF('2技術分野(別紙1)'!$G$8<>\"\",'2技術分野(別紙1)'!$G$8,\"\")","v":"ボイラ設備"},"ボイラ設備"]
["「技術分野」－燃焼設備等２－チェック",{"$f":"IF('2技術分野(別紙1)'!$F$9=\"ゝ\",TRUE,FALSE)","v":false},"チェック項目　FALSE ：□、TRUE：ゝ"]
["「技術分野」－燃焼設備等２－項目名",{"$f":"IF('2技術分野(別紙1)'!$G$9<>\"\",'2技術分野(別紙1)'!$G$9,\"\")","v":"工業炉\n（　）"},"工業炉"]
["「技術分野」－燃焼設備等３－チェック",{"$f":"IF('2技術分野(別紙1)'!$F$10=\"ゝ\",TRUE,FALSE)","v":false},"チェック項目　FALSE ：□、TRUE：ゝ"]
["「技術分野」－燃焼設備等３－項目名",{"$f":"IF('2技術分野(別紙1)'!$G$10<>\"\",'2技術分野(別紙1)'!$G$10,\"\")","v":"乾燥装置"},"乾燥装置"]
["「技術分野」－燃焼設備等４－チェック",{"$f":"IF('2技術分野(別紙1)'!$F$11=\"ゝ\",TRUE,FALSE)","v":false},"チェック項目　FALSE ：□、TRUE：ゝ"]
["「技術分野」－燃焼設備等４－項目名",{"$f":"IF('2技術分野(別紙1)'!$G$11<>\"\",'2技術分野(別紙1)'!$G$11,\"\")","v":""},"自由記入項目"]
["「技術分野」－燃焼設備等５－チェック",{"$f":"IF('2技術分野(別紙1)'!$F$12=\"ゝ\",TRUE,FALSE)","v":false},"チェック項目　FALSE ：□、TRUE：ゝ"]
["「技術分野」－燃焼設備等５－項目名",{"$f":"IF('2技術分野(別紙1)'!$G$12<>\"\",'2技術分野(別紙1)'!$G$12,\"\")","v":""},"自由記入項目"]
["「技術分野」－燃焼設備等６－チェック",{"$f":"IF('2技術分野(別紙1)'!$F$13=\"ゝ\",TRUE,FALSE)","v":false},"チェック項目　FALSE ：□、TRUE：ゝ"]
["「技術分野」－燃焼設備等６－項目名",{"$f":"IF('2技術分野(別紙1)'!$G$13<>\"\",'2技術分野(別紙1)'!$G$13,\"\")","v":""},"自由記入項目"]
["「技術分野」－燃焼設備等７－チェック",{"$f":"IF('2技術分野(別紙1)'!$F$14=\"ゝ\",TRUE,FALSE)","v":false},"チェック項目　FALSE ：□、TRUE：ゝ"]
["「技術分野」－燃焼設備等７－項目名",{"$f":"IF('2技術分野(別紙1)'!$G$14<>\"\",'2技術分野(別紙1)'!$G$14,\"\")","v":""},"自由記入項目"]
["「技術分野」－燃焼設備等８－チェック",{"$f":"IF('2技術分野(別紙1)'!$F$15=\"ゝ\",TRUE,FALSE)","v":false},"チェック項目　FALSE ：□、TRUE：ゝ"]
["「技術分野」－燃焼設備等８－項目名",{"$f":"IF('2技術分野(別紙1)'!$G$15<>\"\",'2技術分野(別紙1)'!$G$15,\"\")","v":""},"自由記入項目"]
["「技術分野」－流体設備１－チェック",{"$f":"IF('2技術分野(別紙1)'!$H$8=\"ゝ\",TRUE,FALSE)","v":false},"チェック項目　FALSE ：□、TRUE：ゝ"]
["「技術分野」－流体設備１－項目名",{"$f":"IF('2技術分野(別紙1)'!$I$8<>\"\",'2技術分野(別紙1)'!$I$8,\"\")","v":"ポンプ"},"ポンプ"]
["「技術分野」－流体設備２－チェック",{"$f":"IF('2技術分野(別紙1)'!$H$9>\"\",TRUE,FALSE)","v":true},"チェック項目　FALSE ：□、TRUE：ゝ"]
["「技術分野」－流体設備２－項目名",{"$f":"IF('2技術分野(別紙1)'!$I$9<>\"\",'2技術分野(別紙1)'!$I$9,\"\")","v":"ファン・ブロワ"},"ファン・ブロワ"]
["「技術分野」－流体設備３－チェック",{"$f":"IF('2技術分野(別紙1)'!$H$10=\"ゝ\",TRUE,FALSE)","v":false},"チェック項目　FALSE ：□、TRUE：ゝ"]
["「技術分野」－流体設備３－項目名",{"$f":"IF('2技術分野(別紙1)'!$I$10<>\"\",'2技術分野(別紙1)'!$I$10,\"\")","v":"コンプレッサ"},"コンプレッサ"]
["「技術分野」－流体設備４－チェック",{"$f":"IF('2技術分野(別紙1)'!$H$11=\"ゝ\",TRUE,FALSE)","v":false},"チェック項目　FALSE ：□、TRUE：ゝ"]
["「技術分野」－流体設備４－項目名",{"$f":"IF('2技術分野(別紙1)'!$I$11<>\"\",'2技術分野(別紙1)'!$I$11,\"\")","v":""},"自由記入項目"]
["「技術分野」－流体設備５－チェック",{"$f":"IF('2技術分野(別紙1)'!$H$12=\"ゝ\",TRUE,FALSE)","v":false},"チェック項目　FALSE ：□、TRUE：ゝ"]
["「技術分野」－流体設備５－項目名",{"$f":"IF('2技術分野(別紙1)'!$I$12<>\"\",'2技術分野(別紙1)'!$I$12,\"\")","v":""},"自由記入項目"]
["「技術分野」－流体設備６－チェック",{"$f":"IF('2技術分野(別紙1)'!$H$13=\"ゝ\",TRUE,FALSE)","v":false},"チェック項目　FALSE ：□、TRUE：ゝ"]
["「技術分野」－流体設備６－項目名",{"$f":"IF('2技術分野(別紙1)'!$I$13<>\"\",'2技術分野(別紙1)'!$I$13,\"\")","v":""},"自由記入項目"]
["「技術分野」－流体設備７－チェック",{"$f":"IF('2技術分野(別紙1)'!$H$14=\"ゝ\",TRUE,FALSE)","v":false},"チェック項目　FALSE ：□、TRUE：ゝ"]
["「技術分野」－流体設備７－項目名",{"$f":"IF('2技術分野(別紙1)'!$I$14<>\"\",'2技術分野(別紙1)'!$I$14,\"\")","v":""},"自由記入項目"]
["「技術分野」－流体設備８－チェック",{"$f":"IF('2技術分野(別紙1)'!$H$15=\"ゝ\",TRUE,FALSE)","v":false},"チェック項目　FALSE ：□、TRUE：ゝ"]
["「技術分野」－流体設備８－項目名",{"$f":"IF('2技術分野(別紙1)'!$I$15<>\"\",'2技術分野(別紙1)'!$I$15,\"\")","v":""},"自由記入項目"]
["「技術分野」－水処理設備１－チェック",{"$f":"IF('2技術分野(別紙1)'!$J$8=\"ゝ\",TRUE,FALSE)","v":false},"チェック項目　FALSE ：□、TRUE：ゝ"]
["「技術分野」－水処理設備１－項目名",{"$f":"IF('2技術分野(別紙1)'!$K$8<>\"\",'2技術分野(別紙1)'!$K$8,\"\")","v":"給排水設備"},"給排水設備"]
["「技術分野」－水処理設備２－チェック",{"$f":"IF('2技術分野(別紙1)'!$J$9=\"ゝ\",TRUE,FALSE)","v":false},"チェック項目　FALSE ：□、TRUE：ゝ"]
["「技術分野」－水処理設備２－項目名",{"$f":"IF('2技術分野(別紙1)'!$K$9<>\"\",'2技術分野(別紙1)'!$K$9,\"\")","v":"給湯設備"},"給湯設備"]
["「技術分野」－水処理設備３－チェック",{"$f":"IF('2技術分野(別紙1)'!$J$10=\"ゝ\",TRUE,FALSE)","v":false},"チェック項目　FALSE ：□、TRUE：ゝ"]
["「技術分野」－水処理設備３－項目名",{"$f":"IF('2技術分野(別紙1)'!$K$10<>\"\",'2技術分野(別紙1)'!$K$10,\"\")","v":"廃水処理設備"},"廃水処理設備"]
["「技術分野」－水処理設備４－チェック",{"$f":"IF('2技術分野(別紙1)'!$J$11=\"ゝ\",TRUE,FALSE)","v":false},"チェック項目　FALSE ：□、TRUE：ゝ"]
["「技術分野」－水処理設備４－項目名",{"$f":"IF('2技術分野(別紙1)'!$K$11<>\"\",'2技術分野(別紙1)'!$K$11,\"\")","v":""},"自由記入項目"]
["「技術分野」－水処理設備５－チェック",{"$f":"IF('2技術分野(別紙1)'!$J$12=\"ゝ\",TRUE,FALSE)","v":false},"チェック項目　FALSE ：□、TRUE：ゝ"]
["「技術分野」－水処理設備５－項目名",{"$f":"IF('2技術分野(別紙1)'!$K$12<>\"\",'2技術分野(別紙1)'!$K$12,\"\")","v":""},"自由記入項目"]
["「技術分野」－水処理設備６－チェック",{"$f":"IF('2技術分野(別紙1)'!$J$13=\"ゝ\",TRUE,FALSE)","v":false},"チェック項目　FALSE ：□、TRUE：ゝ"]
["「技術分野」－水処理設備６－項目名",{"$f":"IF('2技術分野(別紙1)'!$K$13<>\"\",'2技術分野(別紙1)'!$K$13,\"\")","v":""},"自由記入項目"]
["「技術分野」－水処理設備７－チェック",{"$f":"IF('2技術分野(別紙1)'!$J$14=\"ゝ\",TRUE,FALSE)","v":false},"チェック項目　FALSE ：□、TRUE：ゝ"]
["「技術分野」－水処理設備７－項目名",{"$f":"IF('2技術分野(別紙1)'!$K$14<>\"\",'2技術分野(別紙1)'!$K$14,\"\")","v":""},"自由記入項目"]
["「技術分野」－水処理設備８－チェック",{"$f":"IF('2技術分野(別紙1)'!$J$15=\"ゝ\",TRUE,FALSE)","v":false},"チェック項目　FALSE ：□、TRUE：ゝ"]
["「技術分野」－水処理設備８－項目名",{"$f":"IF('2技術分野(別紙1)'!$K$15<>\"\",'2技術分野(別紙1)'!$K$15,\"\")","v":""},"自由記入項目"]
["「技術分野」－電気設備１－チェック",{"$f":"IF('2技術分野(別紙1)'!$L$8=\"ゝ\",TRUE,FALSE)","v":false},"チェック項目　FALSE ：□、TRUE：ゝ"]
["「技術分野」－電気設備１－項目名",{"$f":"IF('2技術分野(別紙1)'!$M$8<>\"\",'2技術分野(別紙1)'!$M$8,\"\")","v":"受変電設備"},"受変電設備"]
["「技術分野」－電気設備２－チェック",{"$f":"IF('2技術分野(別紙1)'!$L$9=\"ゝ\",TRUE,FALSE)","v":false},"チェック項目　FALSE ：□、TRUE：ゝ"]
["「技術分野」－電気設備２－項目名",{"$f":"IF('2技術分野(別紙1)'!$M$9<>\"\",'2技術分野(別紙1)'!$M$9,\"\")","v":"電動機"},"電動機"]
["「技術分野」－電気設備３－チェック",{"$f":"IF('2技術分野(別紙1)'!$L$10=\"ゝ\",TRUE,FALSE)","v":false},"チェック項目　FALSE ：□、TRUE：ゝ"]
["「技術分野」－電気設備３－項目名",{"$f":"IF('2技術分野(別紙1)'!$M$10<>\"\",'2技術分野(別紙1)'!$M$10,\"\")","v":"照明設備"},"照明設備"]
["「技術分野」－電気設備４－チェック",{"$f":"IF('2技術分野(別紙1)'!$L$11=\"ゝ\",TRUE,FALSE)","v":false},"チェック項目　FALSE ：□、TRUE：ゝ"]
["「技術分野」－電気設備４－項目名",{"$f":"IF('2技術分野(別紙1)'!$M$11<>\"\",'2技術分野(別紙1)'!$M$11,\"\")","v":"電気加熱設備\n（　）"},"電気加熱設備"]
["「技術分野」－電気設備５－チェック",{"$f":"IF('2技術分野(別紙1)'!$L$12=\"ゝ\",TRUE,FALSE)","v":false},"チェック項目　FALSE ：□、TRUE：ゝ"]
["「技術分野」－電気設備５－項目名",{"$f":"IF('2技術分野(別紙1)'!$M$12<>\"\",'2技術分野(別紙1)'!$M$12,\"\")","v":"電気化学設備\n（　）"},"電気化学設備"]
["「技術分野」－電気設備６－チェック",{"$f":"IF('2技術分野(別紙1)'!$L$13=\"ゝ\",TRUE,FALSE)","v":false},"チェック項目　FALSE ：□、TRUE：ゝ"]
["「技術分野」－電気設備６－項目名",{"$f":"IF('2技術分野(別紙1)'!$M$13<>\"\",'2技術分野(別紙1)'!$M$13,\"\")","v":"発電・CGS"},"発電・CGS"]
["「技術分野」－電気設備７－チェック",{"$f":"IF('2技術分野(別紙1)'!$L$14=\"ゝ\",TRUE,FALSE)","v":false},"チェック項目　FALSE ：□、TRUE：ゝ"]
["「技術分野」－電気設備７－項目名",{"$f":"IF('2技術分野(別紙1)'!$M$14<>\"\",'2技術分野(別紙1)'!$M$14,\"\")","v":"タービン"},"タービン"]
["「技術分野」－電気設備８－チェック",{"$f":"IF('2技術分野(別紙1)'!$L$15=\"ゝ\",TRUE,FALSE)","v":false},"チェック項目　FALSE ：□、TRUE：ゝ"]
["「技術分野」－電気設備８－項目名",{"$f":"IF('2技術分野(別紙1)'!$M$15<>\"\",'2技術分野(別紙1)'!$M$15,\"\")","v":""},"自由記入項目"]
["「技術分野」－要素技術等(1, 1)－チェック",{"$f":"IF('2技術分野(別紙1)'!$B$18=\"ゝ\",TRUE,FALSE)","v":false},"チェック項目　FALSE ：□、TRUE：ゝ"]
["「技術分野」－要素技術等(1, 1)－項目名",{"$f":"IF('2技術分野(別紙1)'!$C$18<>\"\",'2技術分野(別紙1)'!$C$18,\"\")","v":"計測\n（　）"},"計測"]
["「技術分野」－要素技術等(1, 2)－チェック",{"$f":"IF('2技術分野(別紙1)'!$B$19=\"ゝ\",TRUE,FALSE)","v":false},"チェック項目　FALSE ：□、TRUE：ゝ"]
["「技術分野」－要素技術等(1, 2)－項目名",{"$f":"IF('2技術分野(別紙1)'!$C$19<>\"\",'2技術分野(別紙1)'!$C$19,\"\")","v":"建築駆体"},"建築駆体"]
["「技術分野」－要素技術等(1, 3)－チェック",{"$f":"IF('2技術分野(別紙1)'!$B$20=\"ゝ\",TRUE,FALSE)","v":false},"チェック項目　FALSE ：□、TRUE：ゝ"]
["「技術分野」－要素技術等(1, 3)－項目名",{"$f":"IF('2技術分野(別紙1)'!$C$20<>\"\",'2技術分野(別紙1)'!$C$20,\"\")","v":"建築設備\n（　）"},"建築設備"]
["「技術分野」－要素技術等(1, 4)－チェック",{"$f":"IF('2技術分野(別紙1)'!$B$21=\"ゝ\",TRUE,FALSE)","v":false},"チェック項目　FALSE ：□、TRUE：ゝ"]
["「技術分野」－要素技術等(1, 4)－項目名",{"$f":"IF('2技術分野(別紙1)'!$C$21<>\"\",'2技術分野(別紙1)'!$C$21,\"\")","v":"自然エネルギー\n（　）"},"自然エネルギー"]
["「技術分野」－要素技術等(1, 5)－チェック",{"$f":"IF('2技術分野(別紙1)'!$B$22=\"ゝ\",TRUE,FALSE)","v":false},"チェック項目　FALSE ：□、TRUE：ゝ"]
["「技術分野」－要素技術等(1, 5)－項目名",{"$f":"IF('2技術分野(別紙1)'!$C$22<>\"\",'2技術分野(別紙1)'!$C$22,\"\")","v":"クリーンルーム"},"クリーンルーム"]
["「技術分野」－要素技術等(2, 1)－チェック",{"$f":"IF('2技術分野(別紙1)'!$D$18=\"ゝ\",TRUE,FALSE)","v":false},"チェック項目　FALSE ：□、TRUE：ゝ"]
["「技術分野」－要素技術等(2, 1)－項目名",{"$f":"IF('2技術分野(別紙1)'!$E$18<>\"\",'2技術分野(別紙1)'!$E$18,\"\")","v":"昇降機"},"昇降機"]
["「技術分野」－要素技術等(2, 2)－チェック",{"$f":"IF('2技術分野(別紙1)'!$D$19=\"ゝ\",TRUE,FALSE)","v":false},"チェック項目　FALSE ：□、TRUE：ゝ"]
["「技術分野」－要素技術等(2, 2)－項目名",{"$f":"IF('2技術分野(別紙1)'!$E$19<>\"\",'2技術分野(別紙1)'!$E$19,\"\")","v":"制御システム\n（　）"},"制御システム"]
["「技術分野」－要素技術等(2, 3)－チェック",{"$f":"IF('2技術分野(別紙1)'!$D$20=\"ゝ\",TRUE,FALSE)","v":false},"チェック項目　FALSE ：□、TRUE：ゝ"]
["「技術分野」－要素技術等(2, 3)－項目名",{"$f":"IF('2技術分野(別紙1)'!$E$20<>\"\",'2技術分野(別紙1)'!$E$20,\"\")","v":"生産設備\n（　）"},"生産設備"]
["「技術分野」－要素技術等(2, 4)－チェック",{"$f":"IF('2技術分野(別紙1)'!$D$21=\"ゝ\",TRUE,FALSE)","v":false},"チェック項目　FALSE ：□、TRUE：ゝ"]
["「技術分野」－要素技術等(2, 4)－項目名",{"$f":"IF('2技術分野(別紙1)'!$E$21<>\"\",'2技術分野(別紙1)'!$E$21,\"\")","v":"電解設備\n（　）"},"電解設備"]
["「技術分野」－要素技術等(2, 5)－チェック",{"$f":"IF('2技術分野(別紙1)'!$D$22=\"ゝ\",TRUE,FALSE)","v":false},"チェック項目　FALSE ：□、TRUE：ゝ"]
["「技術分野」－要素技術等(2, 5)－項目名",{"$f":"IF('2技術分野(別紙1)'!$E$22<>\"\",'2技術分野(別紙1)'!$E$22,\"\")","v":"インバータ"},"インバータ"]
["「技術分野」－要素技術等(3, 1)－チェック",{"$f":"IF('2技術分野(別紙1)'!$F$18=\"ゝ\",TRUE,FALSE)","v":false},"チェック項目　FALSE ：□、TRUE：ゝ"]
["「技術分野」－要素技術等(3, 1)－項目名",{"$f":"IF('2技術分野(別紙1)'!$G$18<>\"\",'2技術分野(別紙1)'!$G$18,\"\")","v":"ヒートポンプ"},"ヒートポンプ"]
["「技術分野」－要素技術等(3, 2)－チェック",{"$f":"IF('2技術分野(別紙1)'!$F$19=\"ゝ\",TRUE,FALSE)","v":false},"チェック項目　FALSE ：□、TRUE：ゝ"]
["「技術分野」－要素技術等(3, 2)－項目名",{"$f":"IF('2技術分野(別紙1)'!$G$19<>\"\",'2技術分野(別紙1)'!$G$19,\"\")","v":"デマコン"},"デマコン"]
["「技術分野」－要素技術等(3, 3)－チェック",{"$f":"IF('2技術分野(別紙1)'!$F$20=\"ゝ\",TRUE,FALSE)","v":false},"チェック項目　FALSE ：□、TRUE：ゝ"]
["「技術分野」－要素技術等(3, 3)－項目名",{"$f":"IF('2技術分野(別紙1)'!$G$20<>\"\",'2技術分野(別紙1)'!$G$20,\"\")","v":"BEMS"},"BEMS"]
["「技術分野」－要素技術等(3, 4)－チェック",{"$f":"IF('2技術分野(別紙1)'!$F$21=\"ゝ\",TRUE,FALSE)","v":false},"チェック項目　FALSE ：□、TRUE：ゝ"]
["「技術分野」－要素技術等(3, 4)－項目名",{"$f":"IF('2技術分野(別紙1)'!$G$21<>\"\",'2技術分野(別紙1)'!$G$21,\"\")","v":"FEMS"},"FEMS"]
["「技術分野」－要素技術等(3, 5)－チェック",{"$f":"IF('2技術分野(別紙1)'!$F$22=\"ゝ\",TRUE,FALSE)","v":false},"チェック項目　FALSE ：□、TRUE：ゝ"]
["「技術分野」－要素技術等(3, 5)－項目名",{"$f":"IF('2技術分野(別紙1)'!$G$22<>\"\",'2技術分野(別紙1)'!$G$22,\"\")","v":"エネマネ"},"エネマネ"]
["「技術分野」－要素技術等(4, 1)－チェック",{"$f":"IF('2技術分野(別紙1)'!$H$18=\"ゝ\",TRUE,FALSE)","v":false},"チェック項目　FALSE ：□、TRUE：ゝ"]
["「技術分野」－要素技術等(4, 1)－項目名",{"$f":"IF('2技術分野(別紙1)'!$I$18<>\"\",'2技術分野(別紙1)'!$I$18,\"\")","v":"EMS\n（　）"},"EMS"]
["「技術分野」－要素技術等(4, 2)－チェック",{"$f":"IF('2技術分野(別紙1)'!$H$19=\"ゝ\",TRUE,FALSE)","v":false},"チェック項目　FALSE ：□、TRUE：ゝ"]
["「技術分野」－要素技術等(4, 2)－項目名",{"$f":"IF('2技術分野(別紙1)'!$I$19<>\"\",'2技術分野(別紙1)'!$I$19,\"\")","v":"燃焼設備\n（　）"},"燃焼設備"]
["「技術分野」－要素技術等(4, 3)－チェック",{"$f":"IF('2技術分野(別紙1)'!$H$20=\"ゝ\",TRUE,FALSE)","v":false},"チェック項目　FALSE ：□、TRUE：ゝ"]
["「技術分野」－要素技術等(4, 3)－項目名",{"$f":"IF('2技術分野(別紙1)'!$I$20<>\"\",'2技術分野(別紙1)'!$I$20,\"\")","v":"駐車場等換気"},"駐車場等換気"]
["「技術分野」－要素技術等(4, 4)－チェック",{"$f":"IF('2技術分野(別紙1)'!$H$21=\"ゝ\",TRUE,FALSE)","v":false},"チェック項目　FALSE ：□、TRUE：ゝ"]
["「技術分野」－要素技術等(4, 4)－項目名",{"$f":"IF('2技術分野(別紙1)'!$I$21<>\"\",'2技術分野(別紙1)'!$I$21,\"\")","v":"新技術\n（　）"},"新技術"]
["「技術分野」－要素技術等(4, 5)－チェック",{"$f":"IF('2技術分野(別紙1)'!$H$22=\"ゝ\",TRUE,FALSE)","v":false},"チェック項目　FALSE ：□、TRUE：ゝ"]
["「技術分野」－要素技術等(4, 5)－項目名",{"$f":"IF('2技術分野(別紙1)'!$I$22<>\"\",'2技術分野(別紙1)'!$I$22,\"\")","v":"IT技術\n（　）"},"IT技術"]
["「技術分野」－要素技術等(5, 1)－チェック",{"$f":"IF('2技術分野(別紙1)'!$J$18=\"ゝ\",TRUE,FALSE)","v":false},"チェック項目　FALSE ：□、TRUE：ゝ"]
["「技術分野」－要素技術等(5, 1)－項目名",{"$f":"IF('2技術分野(別紙1)'!$K$18<>\"\",'2技術分野(別紙1)'!$K$18,\"\")","v":"特高設備"},"特高設備"]
["「技術分野」－要素技術等(5, 2)－チェック",{"$f":"IF('2技術分野(別紙1)'!$J$19=\"ゝ\",TRUE,FALSE)","v":false},"チェック項目　FALSE ：□、TRUE：ゝ"]
["「技術分野」－要素技術等(5, 2)－項目名",{"$f":"IF('2技術分野(別紙1)'!$K$19<>\"\",'2技術分野(別紙1)'!$K$19,\"\")","v":"環境\n（　）"},"環境"]
["「技術分野」－要素技術等(5, 3)－チェック",{"$f":"IF('2技術分野(別紙1)'!$J$20=\"ゝ\",TRUE,FALSE)","v":false},"チェック項目　FALSE ：□、TRUE：ゝ"]
["「技術分野」－要素技術等(5, 3)－項目名",{"$f":"IF('2技術分野(別紙1)'!$K$20<>\"\",'2技術分野(別紙1)'!$K$20,\"\")","v":""},"自由記入項目"]
["「技術分野」－要素技術等(5, 4)－チェック",{"$f":"IF('2技術分野(別紙1)'!$J$21=\"ゝ\",TRUE,FALSE)","v":false},"チェック項目　FALSE ：□、TRUE：ゝ"]
["「技術分野」－要素技術等(5, 4)－項目名",{"$f":"IF('2技術分野(別紙1)'!$K$21<>\"\",'2技術分野(別紙1)'!$K$21,\"\")","v":""},"自由記入項目"]
["「技術分野」－要素技術等(5, 5)－チェック",{"$f":"IF('2技術分野(別紙1)'!$J$22=\"ゝ\",TRUE,FALSE)","v":false},"チェック項目　FALSE ：□、TRUE：ゝ"]
["「技術分野」－要素技術等(5, 5)－項目名",{"$f":"IF('2技術分野(別紙1)'!$K$22<>\"\",'2技術分野(別紙1)'!$K$22,\"\")","v":""},"自由記入項目"]
["「技術分野」－要素技術等(6, 1)－チェック",{"$f":"IF('2技術分野(別紙1)'!$L$18=\"ゝ\",TRUE,FALSE)","v":false},"チェック項目　FALSE ：□、TRUE：ゝ"]
["「技術分野」－要素技術等(6, 1)－項目名",{"$f":"IF('2技術分野(別紙1)'!$M$18<>\"\",'2技術分野(別紙1)'!$M$18,\"\")","v":""},"自由記入項目"]
["「技術分野」－要素技術等(6, 2)－チェック",{"$f":"IF('2技術分野(別紙1)'!$L$19=\"ゝ\",TRUE,FALSE)","v":false},"チェック項目　FALSE ：□、TRUE：ゝ"]
["「技術分野」－要素技術等(6, 2)－項目名",{"$f":"IF('2技術分野(別紙1)'!$M$19<>\"\",'2技術分野(別紙1)'!$M$19,\"\")","v":""},"自由記入項目"]
["「技術分野」－要素技術等(6, 3)－チェック",{"$f":"IF('2技術分野(別紙1)'!$L$20=\"ゝ\",TRUE,FALSE)","v":false},"チェック項目　FALSE ：□、TRUE：ゝ"]
["「技術分野」－要素技術等(6, 3)－項目名",{"$f":"IF('2技術分野(別紙1)'!$M$20<>\"\",'2技術分野(別紙1)'!$M$20,\"\")","v":""},"自由記入項目"]
["「技術分野」－要素技術等(6, 4)－チェック",{"$f":"IF('2技術分野(別紙1)'!$L$21=\"ゝ\",TRUE,FALSE)","v":false},"チェック項目　FALSE ：□、TRUE：ゝ"]
["「技術分野」－要素技術等(6, 4)－項目名",{"$f":"IF('2技術分野(別紙1)'!$M$21<>\"\",'2技術分野(別紙1)'!$M$21,\"\")","v":""},"自由記入項目"]
["「技術分野」－要素技術等(6, 5)－チェック",{"$f":"IF('2技術分野(別紙1)'!$L$22=\"ゝ\",TRUE,FALSE)","v":false},"チェック項目　FALSE ：□、TRUE：ゝ"]
["「技術分野」－要素技術等(6, 5)－項目名",{"$f":"IF('2技術分野(別紙1)'!$M$22<>\"\",'2技術分野(別紙1)'!$M$22,\"\")","v":""},"自由記入項目"]
["「技術分野」－その他(1, 1)－チェック",{"$f":"IF('2技術分野(別紙1)'!$B$25=\"ゝ\",TRUE,FALSE)","v":false},"チェック項目　FALSE ：□、TRUE：ゝ"]
["「技術分野」－その他(1, 1)－項目名",{"$f":"IF('2技術分野(別紙1)'!$C$25<>\"\",'2技術分野(別紙1)'!$C$25,\"\")","v":""},"自由記入項目"]
["「技術分野」－その他(1, 2)－チェック",{"$f":"IF('2技術分野(別紙1)'!$B$26=\"ゝ\",TRUE,FALSE)","v":false},"チェック項目　FALSE ：□、TRUE：ゝ"]
["「技術分野」－その他(1, 2)－項目名",{"$f":"IF('2技術分野(別紙1)'!$C$26<>\"\",'2技術分野(別紙1)'!$C$26,\"\")","v":""},"自由記入項目"]
["「技術分野」－その他(1, 3)－チェック",{"$f":"IF('2技術分野(別紙1)'!$B$27=\"ゝ\",TRUE,FALSE)","v":false},"チェック項目　FALSE ：□、TRUE：ゝ"]
["「技術分野」－その他(1, 3)－項目名",{"$f":"IF('2技術分野(別紙1)'!$C$27<>\"\",'2技術分野(別紙1)'!$C$27,\"\")","v":""},"自由記入項目"]
["「技術分野」－その他(1, 4)－チェック",{"$f":"IF('2技術分野(別紙1)'!$B$28=\"ゝ\",TRUE,FALSE)","v":false},"チェック項目　FALSE ：□、TRUE：ゝ"]
["「技術分野」－その他(1, 4)－項目名",{"$f":"IF('2技術分野(別紙1)'!$C$28<>\"\",'2技術分野(別紙1)'!$C$28,\"\")","v":""},"自由記入項目"]
["「技術分野」－その他(1, 5)－チェック",{"$f":"IF('2技術分野(別紙1)'!$B$29=\"ゝ\",TRUE,FALSE)","v":false},"チェック項目　FALSE ：□、TRUE：ゝ"]
["「技術分野」－その他(1, 5)－項目名",{"$f":"IF('2技術分野(別紙1)'!$C$29<>\"\",'2技術分野(別紙1)'!$C$29,\"\")","v":""},"自由記入項目"]
["「技術分野」－その他(2, 1)－チェック",{"$f":"IF('2技術分野(別紙1)'!$D$25=\"ゝ\",TRUE,FALSE)","v":false},"チェック項目　FALSE ：□、TRUE：ゝ"]
["「技術分野」－その他(2, 1)－項目名",{"$f":"IF('2技術分野(別紙1)'!$E$25<>\"\",'2技術分野(別紙1)'!$E$25,\"\")","v":""},"自由記入項目"]
["「技術分野」－その他(2, 2)－チェック",{"$f":"IF('2技術分野(別紙1)'!$D$26=\"ゝ\",TRUE,FALSE)","v":false},"チェック項目　FALSE ：□、TRUE：ゝ"]
["「技術分野」－その他(2, 2)－項目名",{"$f":"IF('2技術分野(別紙1)'!$E$26<>\"\",'2技術分野(別紙1)'!$E$26,\"\")","v":""},"自由記入項目"]
["「技術分野」－その他(2, 3)－チェック",{"$f":"IF('2技術分野(別紙1)'!$D$27=\"ゝ\",TRUE,FALSE)","v":false},"チェック項目　FALSE ：□、TRUE：ゝ"]
["「技術分野」－その他(2, 3)－項目名",{"$f":"IF('2技術分野(別紙1)'!$E$27<>\"\",'2技術分野(別紙1)'!$E$27,\"\")","v":""},"自由記入項目"]
["「技術分野」－その他(2, 4)－チェック",{"$f":"IF('2技術分野(別紙1)'!$D$28=\"ゝ\",TRUE,FALSE)","v":false},"チェック項目　FALSE ：□、TRUE：ゝ"]
["「技術分野」－その他(2, 4)－項目名",{"$f":"IF('2技術分野(別紙1)'!$E$28<>\"\",'2技術分野(別紙1)'!$E$28,\"\")","v":""},"自由記入項目"]
["「技術分野」－その他(2, 5)－チェック",{"$f":"IF('2技術分野(別紙1)'!$D$29=\"ゝ\",TRUE,FALSE)","v":false},"チェック項目　FALSE ：□、TRUE：ゝ"]
["「技術分野」－その他(2, 5)－項目名",{"$f":"IF('2技術分野(別紙1)'!$E$29<>\"\",'2技術分野(別紙1)'!$E$29,\"\")","v":""},"自由記入項目"]
["「技術分野」－その他(3, 1)－チェック",{"$f":"IF('2技術分野(別紙1)'!$F$25=\"ゝ\",TRUE,FALSE)","v":false},"チェック項目　FALSE ：□、TRUE：ゝ"]
["「技術分野」－その他(3, 1)－項目名",{"$f":"IF('2技術分野(別紙1)'!$G$25<>\"\",'2技術分野(別紙1)'!$G$25,\"\")","v":""},"自由記入項目"]
["「技術分野」－その他(3, 2)－チェック",{"$f":"IF('2技術分野(別紙1)'!$F$26=\"ゝ\",TRUE,FALSE)","v":false},"チェック項目　FALSE ：□、TRUE：ゝ"]
["「技術分野」－その他(3, 2)－項目名",{"$f":"IF('2技術分野(別紙1)'!$G$26<>\"\",'2技術分野(別紙1)'!$G$26,\"\")","v":""},"自由記入項目"]
["「技術分野」－その他(3, 3)－チェック",{"$f":"IF('2技術分野(別紙1)'!$F$27=\"ゝ\",TRUE,FALSE)","v":false},"チェック項目　FALSE ：□、TRUE：ゝ"]
["「技術分野」－その他(3, 3)－項目名",{"$f":"IF('2技術分野(別紙1)'!$G$27<>\"\",'2技術分野(別紙1)'!$G$27,\"\")","v":""},"自由記入項目"]
["「技術分野」－その他(3, 4)－チェック",{"$f":"IF('2技術分野(別紙1)'!$F$28=\"ゝ\",TRUE,FALSE)","v":false},"チェック項目　FALSE ：□、TRUE：ゝ"]
["「技術分野」－その他(3, 4)－項目名",{"$f":"IF('2技術分野(別紙1)'!$G$28<>\"\",'2技術分野(別紙1)'!$G$28,\"\")","v":""},"自由記入項目"]
["「技術分野」－その他(3, 5)－チェック",{"$f":"IF('2技術分野(別紙1)'!$F$29=\"ゝ\",TRUE,FALSE)","v":false},"チェック項目　FALSE ：□、TRUE：ゝ"]
["「技術分野」－その他(3, 5)－項目名",{"$f":"IF('2技術分野(別紙1)'!$G$29<>\"\",'2技術分野(別紙1)'!$G$29,\"\")","v":""},"自由記入項目"]
["◆　『添付資料（様式２）』集計部"]
["「添付資料」－活動実績",{"$f":"IF(#REF!<>\"\",#REF!,\"\")","v":{"$error":"#REF!"}}]
["「添付資料」－抱負",{"$f":"IF(#REF!<>\"\",#REF!,\"\")","v":{"$error":"#REF!"}}]
["◆　『口座振込依頼書』集計部"]
["「口座振込」－講座振込依頼書作成日－年号（和暦）",{"$f":"IF('3口座振込'!$AC$2<>\"\",'3口座振込'!$AC$2,\"\")","v":"令和"}]
["「口座振込」－講座振込依頼書作成日－年（和暦）",{"$f":"IF('3口座振込'!$AE$2<>\"\",'3口座振込'!$AE$2,\"\")","v":""}]
["「口座振込」－講座振込依頼書作成日－月",{"$f":"IF('3口座振込'!$AH$2<>\"\",'3口座振込'!$AH$2,\"\")","v":""}]
["「口座振込」－講座振込依頼書作成日－日",{"$f":"IF('3口座振込'!$AK$2<>\"\",'3口座振込'!$AK$2,\"\")","v":""}]
["「口座振込」－新規・更新の選択",{"$f":"IF('3口座振込'!$E$6=\"●\",1,IF('3口座振込'!$J$6=\"●\",2,IF('3口座振込'!$O$6=\"●\",3,0)))","v":1},"選択項目　1:新規、2:変更あり、3:変更なし"]
["「口座振込」－氏名（フリガナ）",{"$f":"IF('3口座振込'!$AC$5<>\"\",'3口座振込'!$AC$5,\"\")","v":""}]
["「口座振込」－氏名（漢字）",{"$f":"IF('3口座振込'!$AC$6<>\"\",'3口座振込'!$AC$6,\"\")","v":""}]
["「口座振込」－変更有無－現住所",{"$f":"IF('3口座振込'!$C$9=\"ゝ\",TRUE,FALSE)","v":false},"チェック項目　FALSE ：□、TRUE：ゝ"]
["「口座振込」－変更有無－現住所〒",{"$f":"IF('3口座振込'!$E$11=\"ゝ\",TRUE,FALSE)","v":false},"チェック項目　FALSE ：□、TRUE：ゝ"]
["「口座振込」－現住所〒",{"$f":"IF('3口座振込'!$H$11<>\"\",'3口座振込'!$H$11,\"\")","v":""}]
["「口座振込」－変更有無－現住所TEL",{"$f":"IF('3口座振込'!$R$11=\"ゝ\",TRUE,FALSE)","v":false},"チェック項目　FALSE ：□、TRUE：ゝ"]
["「口座振込」－現住所TEL",{"$f":"IF('3口座振込'!$U$11<>\"\",'3口座振込'!$U$11,\"\")","v":""}]
["「口座振込」－変更有無－現住所FAX",{"$f":"IF('3口座振込'!$AD$11=\"ゝ\",TRUE,FALSE)","v":false},"チェック項目　FALSE ：□、TRUE：ゝ"]
["「口座振込」－現住所FAX",{"$f":"IF('3口座振込'!$AG$11<>\"\",'3口座振込'!$AG$11,\"\")","v":""}]
["「口座振込」－変更有無－現住所住所",{"$f":"IF('3口座振込'!$E$13=\"ゝ\",TRUE,FALSE)","v":false},"チェック項目　FALSE ：□、TRUE：ゝ"]
["「口座振込」－現住所住所",{"$f":"IF('3口座振込'!$H$13<>\"\",'3口座振込'!$H$13,\"\")","v":""}]
["「口座振込」－変更有無－携帯Tel",{"$f":"IF('3口座振込'!$R$15=\"ゝ\",TRUE,FALSE)","v":false},"チェック項目　FALSE ：□、TRUE：ゝ"]
["「口座振込」－携帯Tel",{"$f":"IF('3口座振込'!$U$15<>\"\",'3口座振込'!$U$15,\"\")","v":""}]
["「口座振込」－変更有無－最寄の公共交通機関 ",{"$f":"IF('3口座振込'!$C$17=\"ゝ\",TRUE,FALSE)","v":false},"チェック項目　FALSE ：□、TRUE：ゝ"]
["「口座振込」－変更有無－①鉄道",{"$f":"IF('3口座振込'!$E$19=\"ゝ\",TRUE,FALSE)","v":false},"チェック項目　FALSE ：□、TRUE：ゝ"]
["「口座振込」－鉄道名",{"$f":"IF('3口座振込'!$K$19<>\"\",'3口座振込'!$K$19,\"\")","v":""}]
["「口座振込」－駅",{"$f":"IF('3口座振込'!$AD$19<>\"\",'3口座振込'!$AD$19,\"\")","v":""}]
["「口座振込」－変更有無－②バス会社",{"$f":"IF('3口座振込'!$E$21=\"ゝ\",TRUE,FALSE)","v":false},"チェック項目　FALSE ：□、TRUE：ゝ"]
["「口座振込」－バス会社名",{"$f":"IF('3口座振込'!$K$21<>\"\",'3口座振込'!$K$21,\"\")","v":""}]
["「口座振込」－停留所",{"$f":"IF('3口座振込'!$AD$21<>\"\",'3口座振込'!$AD$21,\"\")","v":""}]
["「口座振込」－○○経由（○○行）",{"$f":"IF('3口座振込'!$K$23<>\"\",'3口座振込'!$K$23,\"\")","v":""}]
["「口座振込」－距離［km］",{"$f":"IF('3口座振込'!$AD$23<>\"\",'3口座振込'!$AD$23,\"\")","v":""}]
["「口座振込」－料金［円］",{"$f":"IF('3口座振込'!$AJ$23<>\"\",'3口座振込'!$AJ$23,\"\")","v":""}]
["「口座振込」－変更有無－住民票のある住所",{"$f":"IF('3口座振込'!$C$27=\"ゝ\",TRUE,FALSE)","v":false},"チェック項目　FALSE ：□、TRUE：ゝ"]
["「口座振込」－変更有無－住民票〒",{"$f":"IF('3口座振込'!$E$29=\"ゝ\",TRUE,FALSE)","v":false},"チェック項目　FALSE ：□、TRUE：ゝ"]
["「口座振込」－住民票〒",{"$f":"IF('3口座振込'!$H$29<>\"\",'3口座振込'!$H$29,\"\")","v":""}]
["「口座振込」－変更有無－住民票TEL",{"$f":"IF('3口座振込'!$R$29=\"ゝ\",TRUE,FALSE)","v":false},"チェック項目　FALSE ：□、TRUE：ゝ"]
["「口座振込」－住民票TEL",{"$f":"IF('3口座振込'!$U$29<>\"\",'3口座振込'!$U$29,\"\")","v":""}]
["「口座振込」－変更有無－住民票住所",{"$f":"IF('3口座振込'!$E$31=\"ゝ\",TRUE,FALSE)","v":false},"チェック項目　FALSE ：□、TRUE：ゝ"]
["「口座振込」－住民票住所",{"$f":"IF('3口座振込'!$H$31<>\"\",'3口座振込'!$H$31,\"\")","v":""}]
["「口座振込」－変更有無－法人住所",{"$f":"IF('3口座振込'!$C$34=\"ゝ\",TRUE,FALSE)","v":false},"チェック項目　FALSE ：□、TRUE：ゝ"]
["「口座振込」－変更有無－法人〒",{"$f":"IF('3口座振込'!$E$36=\"ゝ\",TRUE,FALSE)","v":false},"チェック項目　FALSE ：□、TRUE：ゝ"]
["「口座振込」－法人〒",{"$f":"IF('3口座振込'!$H$36<>\"\",'3口座振込'!$H$36,\"\")","v":""}]
["「口座振込」－変更有無－法人Tel",{"$f":"IF('3口座振込'!$R$36=\"ゝ\",TRUE,FALSE)","v":false},"チェック項目　FALSE ：□、TRUE：ゝ"]
["「口座振込」－法人Tel",{"$f":"IF('3口座振込'!$U$36<>\"\",'3口座振込'!$U$36,\"\")","v":""}]
["「口座振込」－変更有無－法人Fax",{"$f":"IF('3口座振込'!$AD$36=\"ゝ\",TRUE,FALSE)","v":false},"チェック項目　FALSE ：□、TRUE：ゝ"]
["「口座振込」－法人Fax",{"$f":"IF('3口座振込'!$AG$36<>\"\",'3口座振込'!$AG$36,\"\")","v":""}]
["「口座振込」－変更有無－法人住所",{"$f":"IF('3口座振込'!$E$38=\"ゝ\",TRUE,FALSE)","v":false},"チェック項目　FALSE ：□、TRUE：ゝ"]
["「口座振込」－法人住所",{"$f":"IF('3口座振込'!$H$37<>\"\",'3口座振込'!$H$37,\"\")","v":""}]
["「口座振込」－変更有無－法人名",{"$f":"IF('3口座振込'!$C$40=\"ゝ\",TRUE,FALSE)","v":false},"チェック項目　FALSE ：□、TRUE：ゝ"]
["「口座振込」－法人名",{"$f":"IF('3口座振込'!$K$40<>\"\",'3口座振込'!$K$40,\"\")","v":""}]
["「口座振込」－変更有無－法人番号",{"$f":"IF('3口座振込'!$C$42=\"ゝ\",TRUE,FALSE)","v":false},"チェック項目　FALSE ：□、TRUE：ゝ"]
["「口座振込」－法人番号",{"$f":"IF('3口座振込'!$K$42<>\"\",'3口座振込'!$K$42,\"\")","v":""}]
["「口座振込」－変更有無－所属部署",{"$f":"IF('3口座振込'!$C$44=\"ゝ\",TRUE,FALSE)","v":false},"チェック項目　FALSE ：□、TRUE：ゝ"]
["「口座振込」－所属部署",{"$f":"IF('3口座振込'!$K$44<>\"\",'3口座振込'!$K$44,\"\")","v":""}]
["「口座振込」－変更有無－役職",{"$f":"IF('3口座振込'!$AD$44=\"ゝ\",TRUE,FALSE)","v":false},"チェック項目　FALSE ：□、TRUE：ゝ"]
["「口座振込」－役職",{"$f":"IF('3口座振込'!$AG$44<>\"\",'3口座振込'!$AG$44,\"\")","v":""}]
["「口座振込」－変更有無－振込口座",{"$f":"IF('3口座振込'!$C$47=\"ゝ\",TRUE,FALSE)","v":false},"チェック項目　FALSE ：□、TRUE：ゝ"]
["「口座振込」－口座名義（フリガナ）",{"$f":"IF('3口座振込'!$K$48<>\"\",'3口座振込'!$K$48,\"\")","v":""}]
["「口座振込」－口座名義（漢字）",{"$f":"IF('3口座振込'!$K$49<>\"\",'3口座振込'!$K$49,\"\")","v":""}]
["「口座振込」－法人種別",{"$f":"IF('3口座振込'!$AD$49=\"●\",1,IF('3口座振込'!$AI$49=\"●\",2,0))","v":0},"選択項目　1:個人、2:法人"]
["「口座振込」－振込銀行名",{"$f":"IF('3口座振込'!$K$51<>\"\",'3口座振込'!$K$51,\"\")","v":""}]
["「口座振込」－本店名",{"$f":"IF('3口座振込'!$AD$51<>\"\",'3口座振込'!$AD$51,\"\")","v":""},"○○本店"]
["「口座振込」－支店名",{"$f":"IF('3口座振込'!$AI$51<>\"\",'3口座振込'!$AI$51,\"\")","v":""},"○○支店"]
["「口座振込」－預金／貯金種別の選択",{"$f":"IF('3口座振込'!$K$53=\"●\",1,IF('3口座振込'!$P$53=\"●\",2,0))","v":0},"選択項目　1:普通、2:当座"]
["「口座振込」－口座番号",{"$f":"IF('3口座振込'!$AD$53<>\"\",'3口座振込'!$AD$53,\"\")","v":""}]
["「口座振込」－外部個人・法人",{"$f":"IF('3口座振込'!$K$65=\"●\",1,IF('3口座振込'!$P$65=\"●\",2,0))","v":0},"【センター記入項目】選択項目　1:外部個人、2:法人"]
["「口座振込」－新規／変更の選択",{"$f":"IF('3口座振込'!$K$67=\"●\",1,IF('3口座振込'!$P$67=\"●\",2,0))","v":0},"【センター記入項目】選択項目　1:新規、2:変更"]
["「口座振込」－初回旅費発生日－年号（和暦）",{"$f":"IF('3口座振込'!$K$71<>\"\",'3口座振込'!$K$71,\"\")","v":""},"【センター記入項目】"]
["「口座振込」－初回旅費発生日－年（和暦）",{"$f":"IF('3口座振込'!$M$71<>\"\",'3口座振込'!$M$71,\"\")","v":""},"　〃"]
["「口座振込」－初回旅費発生日－月",{"$f":"IF('3口座振込'!$P$71<>\"\",'3口座振込'!$P$71,\"\")","v":""},"　〃"]
["「口座振込」－初回旅費発生日－日",{"$f":"IF('3口座振込'!$S$71<>\"\",'3口座振込'!$S$71,\"\")","v":""},"　〃"]
["「口座振込」－旅費等級",{"$f":"IF('3口座振込'!$K$73<>\"\",'3口座振込'!$K$73,\"\")","v":"２級"},"　〃"]
["「口座振込」－管轄支部",{"$f":"IF('3口座振込'!$AI$73<>\"\",'3口座振込'!$AI$73,\"\")","v":""},"　〃"]
["「口座振込」－支払受者番号",{"$f":"IF('3口座振込'!$K$75<>\"\",'3口座振込'!$K$75,\"\")","v":""},"　〃"]
["「口座振込」－継続取引有無",{"$f":"IF('3口座振込'!$K$77=\"●\",1,IF('3口座振込'!$P$77=\"●\",2,0))","v":0},"【センター記入項目】選択項目　1:有り、2:無し"]